Vendor Name,Corporate Subjective Description,Invoice Payment Amount,Payment Date
11KBW Ltd (11 KBW Holding Account),Advertising,-975,06/08/2020
11KBW Ltd (11 KBW Holding Account),Personal Accounts - Other,975,06/08/2020
2M HEATH & HOMECARE SERVICES LTD&&ISHC3873,Home Care / Domiciliary,1072.79,07/08/2020
2M HEATH & HOMECARE SERVICES LTD&&ISHC3873,Home Care / Domiciliary,4023.19,07/08/2020
2M HEATH & HOMECARE SERVICES LTD&&ISHC3873,Home Care / Domiciliary,22255.16,04/09/2020
2M HEATH & HOMECARE SERVICES LTD&&ISHC3873,Home Care / Domiciliary,14789.53,07/08/2020
2M HEATH & HOMECARE SERVICES LTD&&ISHC3873,Home Care / Domiciliary,865.45,04/09/2020
2M HEATH & HOMECARE SERVICES LTD&&ISHC3873,Payments in Advance,2030,14/08/2020
2M HEATH & HOMECARE SERVICES LTD&&ISHC3873,Payments in Advance,1800,09/09/2020
2M HEATH & HOMECARE SERVICES LTD&&ISHC3873,Payments in Advance,1688,14/08/2020
36 Group Ltd,Other Expenditure,720,18/09/2020
4PureHeart Limited,Private Contractors,15500,26/08/2020
5ab Care Ltd,Private Contractors,22120.67,07/08/2020
5ab Care Ltd,Private Contractors,22120.67,17/09/2020
A1 63 Mercia Taxi,S.E.N. Taxi Hire,1172.5,12/08/2020
A1 63 Mercia Taxi,S.E.N. Taxi Hire,1425,04/09/2020
A1 Taxis & Private Hire,S.E.N. Taxi Hire,624,25/08/2020
A1 Taxis & Private Hire,S.E.N. Taxi Hire,565.44,25/08/2020
A2B Taxis T/A N McMillan,Home to Sch Trans - Buses,672,26/08/2020
AAA Private Hire(Shephed) Ltd,S.E.N. Taxi Hire,540,16/09/2020
AAA Private Hire(Shephed) Ltd,S.E.N. Taxi Hire,518.4,16/09/2020
AAA Private Hire(Shephed) Ltd,S.E.N. Taxi Hire,864,14/08/2020
AAA Private Hire(Shephed) Ltd,S.E.N. Taxi Hire,1440,14/08/2020
AAA Private Hire(Shephed) Ltd,S.E.N. Taxi Hire,1526.4,14/08/2020
AA Taxis,S.E.N. Taxi Hire,528,03/08/2020
ABBERDALE LIMITED&&SSAROE40419,Residential,4840,21/09/2020
ABBERDALE LIMITED&&SSAROE40419,Residential,4840,24/08/2020
Abbey Cars,Recharge of Pooled Transp Cost,1395,20/08/2020
Abbey Cars,Recharge of Pooled Transp Cost,1227.6,23/09/2020
ABBEYFIELDS EXTRA CARE&&SSAROE52835,Residential,19576.18,21/09/2020
ABBEYFIELDS EXTRA CARE&&SSAROE52835,Residential,-595.5,24/08/2020
ABBEYFIELDS EXTRA CARE&&SSAROE52835,Residential,13074.68,24/08/2020
ABBEYFIELDS EXTRA CARE&&SSAROE52835,Residential,3284,21/09/2020
ABBEYFIELDS EXTRA CARE&&SSAROE52835,Residential,2463,21/09/2020
ABBEYFIELDS EXTRA CARE&&SSAROE52835,Residential,547.5,24/08/2020
ABBEYFIELDS EXTRA CARE&&SSAROE52835,Payments in Advance,500,18/08/2020
ABBEYFIELDS EXTRA CARE&&SSAROE52835,Payments in Advance,16430,07/08/2020
ABBEY HEALTHCARE (AARON COURT) LTD&&SSARO2996,Nursing,67432.95,21/09/2020
ABBEY HEALTHCARE (AARON COURT) LTD&&SSARO2996,Private Contractors,67432.95,21/09/2020
ABBEY HEALTHCARE (AARON COURT) LTD&&SSARO2996,Residential,67432.95,21/09/2020
ABBEY HEALTHCARE (AARON COURT) LTD&&SSARO2996,Nursing,65330.53,24/08/2020
ABBEY HEALTHCARE (AARON COURT) LTD&&SSARO2996,Private Contractors,65330.53,24/08/2020
ABBEY HEALTHCARE (AARON COURT) LTD&&SSARO2996,Residential,65330.53,24/08/2020
ABBEY HEALTHCARE (AARON COURT) LTD&&SSARO2996,Residential,1518.85,21/09/2020
ABBEY HEALTHCARE (AARON COURT) LTD&&SSARO2996,Nursing,2044.3,24/08/2020
ABBEY HEALTHCARE (AARON COURT) LTD&&SSARO2996,Other Support,2044.3,24/08/2020
ABBEY HEALTHCARE (AARON COURT) LTD&&SSARO2996,Residential,2044.3,24/08/2020
ABBEY HEALTHCARE (AARON COURT) LTD&&SSARO2996,Residential,-589.01,21/09/2020
ABBEY HEALTHCARE (AARON COURT) LTD&&SSARO2996,Residential,4457.14,24/08/2020
ABBEY HEALTHCARE (AARON COURT) LTD&&SSARO2996,Residential,642.85,21/09/2020
ABBEY HEALTHCARE (AARON COURT) LTD&&SSARO2996,Nursing,-800,24/08/2020
ABBEY HEALTHCARE (AARON COURT) LTD&&SSARO2996,Other Support,-800,24/08/2020
ABBEY HEALTHCARE (AARON COURT) LTD&&SSARO2996,Residential,-800,24/08/2020
ABBEY HEALTHCARE (AARON COURT) LTD&&SSARO2996,Residential,-589.01,21/09/2020
ABBEY HEALTHCARE (AARON COURT) LTD&&SSARO2996,Residential,-589.01,21/09/2020
ABBEY HEALTHCARE (AARON COURT) LTD&&SSARO2996,Residential,800,24/08/2020
ABBEY HEALTHCARE (AARON COURT) LTD&&SSARO2996,Residential,-589.01,21/09/2020
ABBEY HEALTHCARE (AARON COURT) LTD&&SSARO2996,Residential,1257.14,24/08/2020
ABBEY HEALTHCARE (AARON COURT) LTD&&SSARO2996,Residential,-1296.43,24/08/2020
ABBEY HEALTHCARE (AARON COURT) LTD&&SSARO2996,Other Support,-1714.29,24/08/2020
ABBEY HEALTHCARE (AARON COURT) LTD&&SSARO2996,Payments in Advance,2500,18/08/2020
ABBEY HEALTHCARE (AARON COURT) LTD&&SSARO2996,Payments in Advance,2400,14/09/2020
ABBOTSFORD CARE LTD&&SSARO2339,Payments in Advance,1600,18/08/2020
ABBOTSFORD CARE LTD&&SSARO2339,Payments in Advance,1400,14/09/2020
ABBOTSFORD CARE LTD&&SSARO2339,Residential,33792.96,21/09/2020
ABBOTSFORD CARE LTD&&SSARO2339,Residential,975,24/08/2020
ABBOTSFORD CARE LTD&&SSARO2339,Residential,1578.57,24/08/2020
ABBOTSFORD CARE LTD&&SSARO2339,Residential,33494.38,24/08/2020
ABBOTSFORD CARE LTD&&SSARO2339,Residential,3355.01,21/09/2020
ABBOTSFORD CARE LTD&&SSARO2339,Residential,1950,24/08/2020
ABBOTSFORD CARE LTD&&SSARO2339,Residential,2135.71,24/08/2020
ABBOTSFORD CARE LTD&&SSARO2339,Other Support,-1950,24/08/2020
ABBOTSFORD CARE LTD&&SSARO2339,Residential,-2321.43,24/08/2020
ABBOTSFORD CARE LTD&&SSARO2339,Residential,-2507.14,24/08/2020
ABBOTSFORD CARE LTD&&SSARO2339,Residential,650,21/09/2020
ABBOTSFORD CARE LTD&&SSARO2339,Other Support,789.28,24/08/2020
ABBOTSFORD CARE LTD&&SSARO2339,Residential,789.28,24/08/2020
ABBOTSFORD CARE LTD&&SSARO2339,Residential,835.71,24/08/2020
ABBOTSFORD CARE LTD&&SSARO2339,Residential,650,24/08/2020
ABBOTSFORD CARE LTD&&SSARO2339,Residential,-1021.43,24/08/2020
ABBOTSFORD CARE LTD&&SSARO2339,Residential,2135.71,21/09/2020
ABC Taxis (Leicester) Ltd,Recharge of Pooled Transp Cost,825,07/08/2020
Abdul Samad Bariwala,S.E.N. Taxi Hire,513,07/08/2020
Abellio Group Ltd T/A East Midlands Railway,Public Transport -  Staff,-655.9,21/09/2020
Abellio Group Ltd T/A East Midlands Railway,Minimum Cost Contracts,-1788.01,21/09/2020
Abellio Group Ltd T/A East Midlands Railway,Minimum Cost Contracts,1788.01,21/09/2020
Abellio Group Ltd T/A East Midlands Railway,Minimum Cost Contracts,1199.56,21/09/2020
Above & Beyond CIC,Grants,3155.55,17/09/2020
ABSOLUTE CARE AGENCY&&ISHC2620,Home Care / Domiciliary,613.66,07/08/2020
ABSOLUTE CARE AGENCY&&ISHC2620,Home Care / Domiciliary,516.99,04/09/2020
ABSOLUTE CARE AGENCY&&ISHC2620,Home Care / Domiciliary,630.36,04/09/2020
ABSOLUTE CARE AGENCY&&ISHC2620,Home Care / Domiciliary,2580.8,07/08/2020
ABSOLUTE CARE AGENCY&&ISHC2620,Home Care / Domiciliary,44457.66,04/09/2020
ABSOLUTE CARE AGENCY&&ISHC2620,Home Care / Domiciliary,39325.84,07/08/2020
ABSOLUTE CARE AGENCY&&ISHC2620,Home Care / Domiciliary,1562.42,07/08/2020
ABSOLUTE CARE AGENCY&&ISHC2620,Home Care / Domiciliary,518.83,04/09/2020
ABSOLUTE CARE AGENCY&&ISHC2620,Home Care / Domiciliary,878.05,04/09/2020
ABSOLUTE CARE AGENCY&&ISHC2620,Payments in Advance,6040,14/08/2020
ABSOLUTE CARE AGENCY&&ISHC2620,Payments in Advance,5240,09/09/2020
ABSOLUTE CARE AGENCY&&ISHC2620,Payments in Advance,3696,02/09/2020
ABSOLUTE CARE AGENCY&&ISHC2620,Payments in Advance,19936,14/08/2020
Abundant Life Care Ltd,Payments in Advance,2688,16/09/2020
ACACIA CARE (NOTTINGHAM) LTD T/A KINGSFIELD COURT&&SSARO8540,Payments in Advance,1750,18/08/2020
ACACIA CARE (NOTTINGHAM) LTD T/A KINGSFIELD COURT&&SSARO8540,Payments in Advance,1300,14/09/2020
ACACIA CARE (NOTTINGHAM) LTD T/A KINGSFIELD COURT&&SSARO8540,Payments in Advance,37100,07/08/2020
ACACIA CARE (NOTTINGHAM) LTD T/A KINGSFIELD COURT&&SSARO8540,Residential,2153.57,24/08/2020
ACACIA CARE (NOTTINGHAM) LTD T/A KINGSFIELD COURT&&SSARO8540,Residential,-2153.57,21/09/2020
ACACIA CARE (NOTTINGHAM) LTD T/A KINGSFIELD COURT&&SSARO8540,Residential,35807.43,21/09/2020
ACACIA CARE (NOTTINGHAM) LTD T/A KINGSFIELD COURT&&SSARO8540,Residential,41225.15,24/08/2020
ACACIA CARE (NOTTINGHAM) LTD T/A KINGSFIELD COURT&&SSARO8540,Residential,1502.57,21/09/2020
ACACIA CARE (NOTTINGHAM) LTD T/A KINGSFIELD COURT&&SSARO8540,Other Support,806.14,24/08/2020
ACACIA CARE (NOTTINGHAM) LTD T/A KINGSFIELD COURT&&SSARO8540,Residential,806.14,24/08/2020
ACACIA CARE (NOTTINGHAM) LTD T/A KINGSFIELD COURT&&SSARO8540,Residential,603,24/08/2020
ACACIA CARE (NOTTINGHAM) LTD T/A KINGSFIELD COURT&&SSARO8540,Residential,775.29,21/09/2020
ACACIA CARE (NOTTINGHAM) LTD T/A KINGSFIELD COURT&&SSARO8540,Residential,1285.71,24/08/2020
ACACIA CARE (NOTTINGHAM) LTD T/A KINGSFIELD COURT&&SSARO8540,Residential,771.43,24/08/2020
ACACIA CARE (NOTTINGHAM) LTD T/A KINGSFIELD COURT&&SSARO8540,Residential,-575,24/08/2020
ACACIA CARE (NOTTINGHAM) LTD T/A KINGSFIELD COURT&&SSARO8540,Other Support,-1800,24/08/2020
ACACIA CARE (NOTTINGHAM) LTD T/A KINGSFIELD COURT&&SSARO8540,Residential,-1285.72,21/09/2020
ACACIA CARE (NOTTINGHAM) LTD T/A KINGSFIELD COURT&&SSARO8540,Residential,-1285.71,24/08/2020
ACACIA CARE (NOTTINGHAM) LTD T/A KINGSFIELD COURT&&SSARO8540,Residential,909,21/09/2020
ACACIA CARE (NOTTINGHAM) LTD T/A KINGSFIELD COURT&&SSARO8540,Residential,-771.43,21/09/2020
Accountant General of the Senior Courts,Provisions Expenditure,3582.35,29/09/2020
ACCREDO SUPPORT AND DEVELOPMENT LTD&&CLCD3325,Day / CLC Services,3611.8,04/09/2020
ACCREDO SUPPORT AND DEVELOPMENT LTD&&CLCD3325,Day / CLC Services,3611.8,07/08/2020
Ace Cars,S.E.N. Taxi Hire,2249.02,25/08/2020
ACHIEVE WITH US LIMITED&&CLCD3319,Day / CLC Services,10014.32,04/09/2020
ACHIEVE WITH US LIMITED&&CLCD3319,Managed/Traditional Services,10014.32,04/09/2020
ACHIEVE WITH US LIMITED&&CLCD3319,Day / CLC Services,7713.8,07/08/2020
ACHIEVE WITH US LIMITED&&CLCD3319,Managed/Traditional Services,7713.8,07/08/2020
Acorn Care & Education Ltd (Sales),Private Contractors,17736.43,06/08/2020
Acorn Care & Education Ltd (Sales),Private Contractors,14056.29,06/08/2020
Acorn Care & Education Ltd (Sales),Private Contractors,17249.29,06/08/2020
Acorn Care & Education Ltd (Sales),Private Contractors,16496.43,04/08/2020
Acorn Care & Education Ltd (Sales),Private Contractors,32085,04/08/2020
Acorn Care & Education Ltd (Sales),Private Contractors,17164.29,06/08/2020
Acorn Care & Education Ltd (Sales),Private Contractors,13602.86,06/08/2020
Acorn Care & Education Ltd (Sales),Private Contractors,16692.86,06/08/2020
Acorn Care & Education Ltd (Sales),Private Contractors,15964.29,06/08/2020
Acorn Care & Education Ltd (Sales),Private Contractors,31050,06/08/2020
Acorn Care & Education Ltd (Sales),Private Contractors,4451.43,06/08/2020
Acorn Care & Education Ltd (Sales),Private Contractors,32085,28/08/2020
Acorn Care & Education Ltd (Sales),Private Contractors,16496.43,28/08/2020
Acorn Care & Education Ltd (Sales),Private Contractors,17736.43,28/08/2020
Acorn Care & Education Ltd (Sales),Private Contractors,17249.29,28/08/2020
Acorn Care & Education Ltd (Sales),Payment to Ext SEN Providers,631928.36,16/09/2020
Acorn Fostering Services Ltd,Other Agency & Cont Services,2932.47,28/08/2020
Acorn Fostering Services Ltd,Other Agency & Cont Services,2932.47,28/08/2020
Acorn Fostering Services Ltd,Other Agency & Cont Services,2995.93,28/08/2020
Acorn Fostering Services Ltd,Other Agency & Cont Services,2995.93,28/08/2020
Acorn Fostering Services Ltd,Other Agency & Cont Services,3007,28/08/2020
Acorn Fostering Services Ltd,Other Agency & Cont Services,3246.14,28/08/2020
Acorn Fostering Services Ltd,Other Agency & Cont Services,2837.87,30/09/2020
Acorn Fostering Services Ltd,Other Agency & Cont Services,2837.87,30/09/2020
Acorn Fostering Services Ltd,Private Contractors,-2439.65,30/09/2020
Acorn Fostering Services Ltd,Other Agency & Cont Services,2899.29,30/09/2020
Acorn Fostering Services Ltd,Other Agency & Cont Services,2899.29,30/09/2020
Acorn Fostering Services Ltd,Other Agency & Cont Services,2910,30/09/2020
Acorn Fostering Services Ltd,Other Agency & Cont Services,3141.43,30/09/2020
Acorn Fostering Services Ltd,Private Contractors,9016.07,30/09/2020
ACORN LODGE&&SSARO3214,Residential,1700,21/09/2020
Action for Children Services Ltd,Private Contractors,42497.32,18/08/2020
Action for Children Services Ltd,Private Contractors,36904.28,05/08/2020
Action for Children Services Ltd,Private Contractors,36904.28,14/09/2020
ADA HOMECARE LTD(&&ISHC5852),Home Care / Domiciliary,3827.19,04/09/2020
ADA HOMECARE LTD(&&ISHC5852),Home Care / Domiciliary,3827.19,07/08/2020
ADA HOMECARE LTD(&&ISHC5852),Payments in Advance,11224,14/08/2020
ADAM HTT LIMITED T/A ADAM&&SUPL5827,Supported Living,2282.54,01/09/2020
ADAM HTT LIMITED T/A ADAM&&SUPL5827,Supported Living,2405.96,14/09/2020
ADAM HTT LIMITED T/A ADAM&&SUPL5827,Supported Living,755.76,10/08/2020
ADAM HTT LIMITED T/A ADAM&&SUPL5827,Supported Living,198050.17,10/08/2020
ADAM HTT LIMITED T/A ADAM&&SUPL5827,Supported Living,91875.91,17/08/2020
ADAM HTT LIMITED T/A ADAM&&SUPL5827,Supported Living,19993.3,24/08/2020
ADAM HTT LIMITED T/A ADAM&&SUPL5827,Supported Living,5591.77,01/09/2020
ADAM HTT LIMITED T/A ADAM&&SUPL5827,Supported Living,1302.76,07/09/2020
ADAM HTT LIMITED T/A ADAM&&SUPL5827,Supported Living,2274.92,14/09/2020
ADAM HTT LIMITED T/A ADAM&&SUPL5827,Supported Living,1143.87,21/09/2020
ADAM HTT LIMITED T/A ADAM&&SUPL5827,Supported Living,3901.8,28/09/2020
ADAM HTT LIMITED T/A ADAM&&SUPL5827,Supported Living,643.6,17/08/2020
ADAM HTT LIMITED T/A ADAM&&SUPL5827,Supported Living,3103.5,07/09/2020
ADAM HTT LIMITED T/A ADAM&&SUPL5827,Supported Living,794.85,17/08/2020
ADAM HTT LIMITED T/A ADAM&&SUPL5827,Supported Living,1430.55,07/09/2020
ADAM HTT LIMITED T/A ADAM&&SUPL5827,Supported Living,1156.65,21/09/2020
ADAM HTT LIMITED T/A ADAM&&SUPL5827,Supported Living,1086.92,10/08/2020
ADAM HTT LIMITED T/A ADAM&&SUPL5827,Supported Living,-518.79,17/08/2020
ADAM HTT LIMITED T/A ADAM&&SUPL5827,Supported Living,4341.93,24/08/2020
ADAM HTT LIMITED T/A ADAM&&SUPL5827,Supported Living,1368.33,01/09/2020
ADAM HTT LIMITED T/A ADAM&&SUPL5827,Supported Living,6224.55,07/09/2020
ADAM HTT LIMITED T/A ADAM&&SUPL5827,Supported Living,742.83,14/09/2020
ADAM HTT LIMITED T/A ADAM&&SUPL5827,Supported Living,3030.17,21/09/2020
ADAM HTT LIMITED T/A ADAM&&SUPL5827,Supported Living,2362.99,28/09/2020
ADAM HTT LIMITED T/A ADAM&&SUPL5827,Supported Living,1829.02,17/08/2020
ADAM HTT LIMITED T/A ADAM&&SUPL5827,Supported Living,231332.7,14/09/2020
ADAM HTT LIMITED T/A ADAM&&SUPL5827,Supported Living,51904.85,21/09/2020
ADAM HTT LIMITED T/A ADAM&&SUPL5827,Supported Living,7257.38,28/09/2020
ADAM HTT LIMITED T/A ADAM&&SUPL5827,Supported Living,656.48,17/08/2020
ADAM HTT LIMITED T/A ADAM&&SUPL5827,Supported Living,5954.93,07/09/2020
ADAM HTT LIMITED T/A ADAM&&SUPL5827,Supported Living,1870.55,14/09/2020
ADAM HTT LIMITED T/A ADAM&&SUPL5827,Supported Living,1861.04,21/09/2020
ADAM HTT LIMITED T/A ADAM&&SUPL5827,Supported Living,2611.75,01/09/2020
ADAM HTT LIMITED T/A ADAM&&SUPL5827,Supported Living,2303.22,14/09/2020
ADAM HTT LIMITED T/A ADAM&&SUPL5827,Supported Living,235571.03,17/08/2020
ADAM HTT LIMITED T/A ADAM&&SUPL5827,Supported Living,38879.01,24/08/2020
ADAM HTT LIMITED T/A ADAM&&SUPL5827,Supported Living,8627.78,01/09/2020
ADAM HTT LIMITED T/A ADAM&&SUPL5827,Supported Living,1138.29,07/09/2020
ADAM HTT LIMITED T/A ADAM&&SUPL5827,Supported Living,35443.88,14/09/2020
ADAM HTT LIMITED T/A ADAM&&SUPL5827,Supported Living,1143.87,21/09/2020
ADAM HTT LIMITED T/A ADAM&&SUPL5827,Supported Living,5603.93,28/09/2020
ADAM HTT LIMITED T/A ADAM&&SUPL5827,Supported Living,670.48,17/08/2020
ADAM HTT LIMITED T/A ADAM&&SUPL5827,Supported Living,2775.73,07/09/2020
ADAM HTT LIMITED T/A ADAM&&SUPL5827,Supported Living,656.48,17/08/2020
ADAM HTT LIMITED T/A ADAM&&SUPL5827,Supported Living,2450.01,21/09/2020
ADAM HTT LIMITED T/A ADAM&&SUPL5827,Supported Living,1028.05,28/09/2020
ADAM HTT LIMITED T/A ADAM&&SUPL5827,Supported Living,3017.95,10/08/2020
ADAM HTT LIMITED T/A ADAM&&SUPL5827,Supported Living,1655.85,17/08/2020
ADAM HTT LIMITED T/A ADAM&&SUPL5827,Supported Living,4102.54,24/08/2020
ADAM HTT LIMITED T/A ADAM&&SUPL5827,Supported Living,6613.4,01/09/2020
ADAM HTT LIMITED T/A ADAM&&SUPL5827,Supported Living,2470.27,07/09/2020
ADAM HTT LIMITED T/A ADAM&&SUPL5827,Supported Living,1799.38,14/09/2020
ADAM HTT LIMITED T/A ADAM&&SUPL5827,Supported Living,3505.67,21/09/2020
ADAM HTT LIMITED T/A ADAM&&SUPL5827,Supported Living,931.56,28/09/2020
ADAM HTT LIMITED T/A ADAM&&SUPL5827,Supported Living,225167.51,21/09/2020
ADAM HTT LIMITED T/A ADAM&&SUPL5827,Supported Living,58326.68,28/09/2020
ADAM HTT LIMITED T/A ADAM&&SUPL5827,Supported Living,1132.72,14/09/2020
ADAM HTT LIMITED T/A ADAM&&SUPL5827,Supported Living,656.48,17/08/2020
ADAM HTT LIMITED T/A ADAM&&SUPL5827,Supported Living,1368.33,01/09/2020
ADAM HTT LIMITED T/A ADAM&&SUPL5827,Supported Living,5954.93,07/09/2020
ADAM HTT LIMITED T/A ADAM&&SUPL5827,Supported Living,1861.04,21/09/2020
ADAM HTT LIMITED T/A ADAM&&SUPL5827,Supported Living,900.48,24/08/2020
ADAM HTT LIMITED T/A ADAM&&SUPL5827,Supported Living,534.01,07/09/2020
ADAM HTT LIMITED T/A ADAM&&SUPL5827,Supported Living,2278.48,01/09/2020
ADAM HTT LIMITED T/A ADAM&&SUPL5827,Supported Living,223641.69,24/08/2020
ADAM HTT LIMITED T/A ADAM&&SUPL5827,Supported Living,47431.68,01/09/2020
ADAM HTT LIMITED T/A ADAM&&SUPL5827,Supported Living,2432.26,07/09/2020
ADAM HTT LIMITED T/A ADAM&&SUPL5827,Supported Living,9150.64,14/09/2020
ADAM HTT LIMITED T/A ADAM&&SUPL5827,Supported Living,1143.87,21/09/2020
ADAM HTT LIMITED T/A ADAM&&SUPL5827,Supported Living,2361.73,28/09/2020
ADAM HTT LIMITED T/A ADAM&&SUPL5827,Supported Living,-1841.9,10/08/2020
ADAM HTT LIMITED T/A ADAM&&SUPL5827,Supported Living,656.48,17/08/2020
ADAM HTT LIMITED T/A ADAM&&SUPL5827,Supported Living,-735.13,01/09/2020
ADAM HTT LIMITED T/A ADAM&&SUPL5827,Supported Living,2078.32,07/09/2020
ADAM HTT LIMITED T/A ADAM&&SUPL5827,Supported Living,-710.9,14/09/2020
ADAM HTT LIMITED T/A ADAM&&SUPL5827,Supported Living,1467.08,21/09/2020
ADAM HTT LIMITED T/A ADAM&&SUPL5827,Supported Living,1455.09,14/09/2020
ADAM HTT LIMITED T/A ADAM&&SUPL5827,Supported Living,643.6,17/08/2020
ADAM HTT LIMITED T/A ADAM&&SUPL5827,Supported Living,607.14,07/09/2020
ADAM HTT LIMITED T/A ADAM&&SUPL5827,Supported Living,2520.89,21/09/2020
ADAM HTT LIMITED T/A ADAM&&SUPL5827,Supported Living,-511.13,28/09/2020
ADAM HTT LIMITED T/A ADAM&&SUPL5827,Supported Living,79794.68,03/08/2020
ADAM HTT LIMITED T/A ADAM&&SUPL5827,Supported Living,37349.23,10/08/2020
ADAM HTT LIMITED T/A ADAM&&SUPL5827,Supported Living,1655.86,17/08/2020
ADAM HTT LIMITED T/A ADAM&&SUPL5827,Supported Living,16068.58,24/08/2020
ADAM HTT LIMITED T/A ADAM&&SUPL5827,Supported Living,6081.48,01/09/2020
ADAM HTT LIMITED T/A ADAM&&SUPL5827,Supported Living,2470.27,07/09/2020
ADAM HTT LIMITED T/A ADAM&&SUPL5827,Supported Living,2178.67,14/09/2020
ADAM HTT LIMITED T/A ADAM&&SUPL5827,Supported Living,1143.87,21/09/2020
ADAM HTT LIMITED T/A ADAM&&SUPL5827,Supported Living,2361.73,28/09/2020
ADAM HTT LIMITED T/A ADAM&&SUPL5827,Supported Living,-2525.3,24/08/2020
ADAM HTT LIMITED T/A ADAM&&SUPL5827,Supported Living,263985.5,28/09/2020
ADAM HTT LIMITED T/A ADAM&&SUPL5827,Supported Living,1079.78,10/08/2020
ADAM HTT LIMITED T/A ADAM&&SUPL5827,Supported Living,659.12,17/08/2020
ADAM HTT LIMITED T/A ADAM&&SUPL5827,Supported Living,1368.33,01/09/2020
ADAM HTT LIMITED T/A ADAM&&SUPL5827,Supported Living,4836.82,07/09/2020
ADAM HTT LIMITED T/A ADAM&&SUPL5827,Supported Living,-1329.4,14/09/2020
ADAM HTT LIMITED T/A ADAM&&SUPL5827,Supported Living,1886.3,21/09/2020
ADAM HTT LIMITED T/A ADAM&&SUPL5827,Supported Living,626.99,07/09/2020
ADAM HTT LIMITED T/A ADAM&&SUPL5827,Supported Living,1882.55,07/09/2020
ADAM HTT LIMITED T/A ADAM&&SUPL5827,Supported Living,836.38,14/09/2020
ADAM HTT LIMITED T/A ADAM&&SUPL5827,Supported Living,218471.12,01/09/2020
ADAM HTT LIMITED T/A ADAM&&SUPL5827,Supported Living,53627.54,07/09/2020
ADAM HTT LIMITED T/A ADAM&&SUPL5827,Supported Living,13450.95,14/09/2020
ADAM HTT LIMITED T/A ADAM&&SUPL5827,Supported Living,1143.87,21/09/2020
ADAM HTT LIMITED T/A ADAM&&SUPL5827,Supported Living,6773.51,28/09/2020
ADAM HTT LIMITED T/A ADAM&&SUPL5827,Supported Living,656.48,17/08/2020
ADAM HTT LIMITED T/A ADAM&&SUPL5827,Supported Living,-735.13,01/09/2020
ADAM HTT LIMITED T/A ADAM&&SUPL5827,Supported Living,2148.44,07/09/2020
ADAM HTT LIMITED T/A ADAM&&SUPL5827,Supported Living,770.63,21/09/2020
ADAM HTT LIMITED T/A ADAM&&SUPL5827,Supported Living,2409.43,24/08/2020
ADAM HTT LIMITED T/A ADAM&&SUPL5827,Supported Living,2197.03,14/09/2020
ADAM HTT LIMITED T/A ADAM&&SUPL5827,Supported Living,2642.6,28/09/2020
ADAM HTT LIMITED T/A ADAM&&SUPL5827,Supported Living,773.11,10/08/2020
ADAM HTT LIMITED T/A ADAM&&SUPL5827,Supported Living,656.48,17/08/2020
ADAM HTT LIMITED T/A ADAM&&SUPL5827,Supported Living,1304.55,07/09/2020
ADAM HTT LIMITED T/A ADAM&&SUPL5827,Supported Living,194103.31,03/08/2020
ADAM HTT LIMITED T/A ADAM&&SUPL5827,Supported Living,99645.88,10/08/2020
ADAM HTT LIMITED T/A ADAM&&SUPL5827,Supported Living,4006.32,17/08/2020
ADAM HTT LIMITED T/A ADAM&&SUPL5827,Supported Living,17929.7,24/08/2020
ADAM HTT LIMITED T/A ADAM&&SUPL5827,Supported Living,5815.63,01/09/2020
ADAM HTT LIMITED T/A ADAM&&SUPL5827,Supported Living,2470.27,07/09/2020
ADAM HTT LIMITED T/A ADAM&&SUPL5827,Supported Living,3143.5,14/09/2020
ADAM HTT LIMITED T/A ADAM&&SUPL5827,Supported Living,1143.87,21/09/2020
ADAM HTT LIMITED T/A ADAM&&SUPL5827,Supported Living,2961.51,28/09/2020
ADAM HTT LIMITED T/A ADAM&&SUPL5827,Supported Living,662.64,17/08/2020
ADAM HTT LIMITED T/A ADAM&&SUPL5827,Supported Living,1368.33,01/09/2020
ADAM HTT LIMITED T/A ADAM&&SUPL5827,Supported Living,5829.04,07/09/2020
ADAM HTT LIMITED T/A ADAM&&SUPL5827,Supported Living,4885.73,21/09/2020
ADAM HTT LIMITED T/A ADAM&&SUPL5827,Supported Living,1619.31,21/09/2020
ADAM HTT LIMITED T/A ADAM&&SUPL5827,Supported Living,209291.9,07/09/2020
ADAM HTT LIMITED T/A ADAM&&SUPL5827,Supported Living,73115.7,14/09/2020
ADAM HTT LIMITED T/A ADAM&&SUPL5827,Supported Living,2402.47,21/09/2020
ADAM HTT LIMITED T/A ADAM&&SUPL5827,Supported Living,7257.38,28/09/2020
ADAM HTT LIMITED T/A ADAM&&SUPL5827,Supported Living,572.22,07/09/2020
ADAM HTT LIMITED T/A ADAM&&SUPL5827,Supported Living,656.48,17/08/2020
ADAM HTT LIMITED T/A ADAM&&SUPL5827,Supported Living,2148.44,07/09/2020
ADAM HTT LIMITED T/A ADAM&&SUPL5827,Supported Living,770.63,21/09/2020
ADAM HTT LIMITED T/A ADAM&&SUPL5827,Payments in Advance,82892,13/08/2020
ADAM HTT LIMITED T/A ADAM&&SUPL5827,Payments in Advance,42375,14/08/2020
ADAM HTT LIMITED T/A ADAM&&SUPL5827,Payments in Advance,33700,20/08/2020
ADAPTUS CARES LTD&&ISHC5289,Home Care / Domiciliary,842.6,07/08/2020
ADAPTUS CARES LTD&&ISHC5289,Payments in Advance,1750,21/08/2020
ADEN HOUSE LTD&&SSARO2794,Residential,2330.24,21/09/2020
ADEN HOUSE LTD&&SSARO2794,Residential,-1113.54,21/09/2020
ADEN HOUSE LTD&&SSARO2794,Residential,2250.24,24/08/2020
ADEN HOUSE LTD&&SSARO2794,Residential,1125.12,24/08/2020
ADEN HOUSE LTD&&SSARO2794,Residential,1205.12,21/09/2020
ADEN HOUSE LTD&&SSARO2794,Residential,1165.12,21/09/2020
ADEN HOUSE LTD&&SSARO2794,Residential,-1113.54,24/08/2020
ADEN HOUSE LTD&&SSARO2794,Residential,-1113.54,21/09/2020
ADJUVO CARE & SUPPORT&&SSARO2208,Residential,27178.88,21/09/2020
ADJUVO CARE & SUPPORT&&SSARO2208,Residential,27178.88,24/08/2020
ADJUVO CARE & SUPPORT&&SSARO2208,Payments in Advance,1000,18/08/2020
ADJUVO CARE & SUPPORT&&SSARO2208,Payments in Advance,800,14/09/2020
ADJUVO CARE & SUPPORT&&SSARO2208,Payments in Advance,5300,07/08/2020
Adullam Homes Housing Association Ltd     1,Other Agency & Cont Services,2295,27/08/2020
Adullam Homes Housing Association Ltd     1,Other Agency & Cont Services,4505.2,27/08/2020
Adullam Homes Housing Association Ltd     1,Other Agency & Cont Services,4505.2,27/08/2020
Adullam Homes Housing Association Ltd     1,Other Agency & Cont Services,3089.28,27/08/2020
Adullam Homes Housing Association Ltd     1,Other Agency & Cont Services,4505.2,27/08/2020
Adullam Homes Housing Association Ltd     1,Other Agency & Cont Services,4505.2,27/08/2020
Adullam Homes Housing Association Ltd     1,Other Agency & Cont Services,2316.96,01/09/2020
Adullam Homes Housing Association Ltd     1,Other Agency & Cont Services,2320.85,01/09/2020
Adullam Homes Housing Association Ltd     1,Other Agency & Cont Services,2320.85,01/09/2020
Adullam Homes Housing Association Ltd     1,Other Agency & Cont Services,4505.2,04/09/2020
Adullam Homes Housing Association Ltd     1,Other Agency & Cont Services,4505.2,27/08/2020
Adullam Homes Housing Association Ltd     1,Other Agency & Cont Services,2320.85,01/09/2020
Adullam Homes Housing Association Ltd     1,Other Agency & Cont Services,4505.2,01/09/2020
Adullam Homes Housing Association Ltd     1,Other Agency & Cont Services,2320.85,01/09/2020
Adullam Homes Housing Association Ltd     1,Other Agency & Cont Services,4505.2,01/09/2020
Adullam Homes Housing Association Ltd     1,Other Agency & Cont Services,1836,28/09/2020
Adullam Homes Housing Association Ltd     1,Other Agency & Cont Services,1836,28/09/2020
Adullam Homes Housing Association Ltd     1,Other Agency & Cont Services,3604.16,28/09/2020
Adullam Homes Housing Association Ltd     1,Other Agency & Cont Services,3604.16,28/09/2020
Adullam Homes Housing Association Ltd     1,Other Agency & Cont Services,2059.52,28/09/2020
Adullam Homes Housing Association Ltd     1,Other Agency & Cont Services,3604.16,28/09/2020
Adullam Homes Housing Association Ltd     1,Other Agency & Cont Services,3604.16,28/09/2020
Adullam Homes Housing Association Ltd     1,Other Agency & Cont Services,3604.16,28/09/2020
Adullam Homes Housing Association Ltd     1,Other Agency & Cont Services,1856.68,28/09/2020
Adullam Homes Housing Association Ltd     1,Other Agency & Cont Services,1856.68,28/09/2020
Adullam Homes Housing Association Ltd     1,Other Agency & Cont Services,3604.16,28/09/2020
Adullam Homes Housing Association Ltd     1,Other Agency & Cont Services,2668.01,28/09/2020
Adullam Homes Housing Association Ltd     1,Other Agency & Cont Services,1856.68,28/09/2020
Adullam Homes Housing Association Ltd     1,Other Agency & Cont Services,3604.16,28/09/2020
Adullam Homes Housing Association Ltd     1,Other Agency & Cont Services,1856.68,28/09/2020
Adullam Homes Housing Association Ltd     1,Other Agency & Cont Services,3604.16,28/09/2020
Advance Housing & Support Ltd,Supported Living,9419.93,03/09/2020
AECOM Infrastructure & Environment UK Ltd,Design & Supervision Fees Ext,1812.16,11/09/2020
AECOM Infrastructure & Environment UK Ltd,Design & Supervision Fees Ext,2659.2,11/09/2020
AF Blakemore & Son Ltd T/A Blakemore Food Service Ltd,Subsistence,738.84,14/08/2020
AF Contractors,Personal Accounts - Other,9450,20/08/2020
Affinity Teaching School Alliance,Children&Families Spprt Servs,4250,11/08/2020
AFFINITY TRUST&&SUPL4188,Supported Living,536.19,25/09/2020
AGE UK LEICESTERSHIRE AND RUTLAND&&CLCD3314,Day / CLC Services,27948.32,04/09/2020
AGE UK LEICESTERSHIRE AND RUTLAND&&CLCD3314,Day / CLC Services,25927.92,07/08/2020
AGE UK LEICESTERSHIRE AND RUTLAND&&CLCD3314,Day / CLC Services,3155.28,04/09/2020
AGE UK LEICESTERSHIRE AND RUTLAND&&CLCD3314,Day / CLC Services,2306.28,04/09/2020
AGE UK LEICESTERSHIRE AND RUTLAND&&CLCD3314,Day / CLC Services,2347.12,04/09/2020
AGE UK LEICESTERSHIRE AND RUTLAND&&CLCD3314,Day / CLC Services,971.52,04/09/2020
AGE UK LEICESTERSHIRE AND RUTLAND&&CLCD3314,Day / CLC Services,817.99,04/09/2020
Age Uk Leicestershire & Rutland      1,Voluntary Associations,58111.5,28/09/2020
Age Uk Leicester Shire & Rutland Home Help Ltd,Private Contractors,798,18/09/2020
Age Uk Leicester Shire & Rutland Home Help Ltd,Payments in Advance,44688,28/08/2020
AHAVAH HEALTHCARELTD&&SSARO1638,Payments in Advance,875,18/08/2020
AHAVAH HEALTHCARELTD&&SSARO1638,Payments in Advance,600,14/09/2020
AHAVAH HEALTHCARELTD&&SSARO1638,Residential,14073.36,21/09/2020
AHAVAH HEALTHCARELTD&&SSARO1638,Residential,-6589.8,24/08/2020
AHAVAH HEALTHCARELTD&&SSARO1638,Residential,17173.36,24/08/2020
AHAVAH HEALTHCARELTD&&SSARO1638,Residential,893.76,24/08/2020
AHAVAH HEALTHCARELTD&&SSARO1638,Residential,893.76,24/08/2020
AHAVAH HEALTHCARELTD&&SSARO1638,Residential,893.76,24/08/2020
AHAVAH HEALTHCARELTD&&SSARO1638,Residential,893.76,24/08/2020
AHAVAH HEALTHCARELTD&&SSARO1638,Residential,7036.68,24/08/2020
AHAVAH HEALTHCARELTD&&SSARO1638,Residential,-1992.86,21/09/2020
Airports 4 U,S.E.N. Taxi Hire,1200,21/08/2020
AKARI CARE LTD T/A SEALE PASTURES&&SSAROE47014,Residential,9750.68,21/09/2020
AKARI CARE LTD T/A SEALE PASTURES&&SSAROE47014,Residential,7338.68,24/08/2020
AKARI CARE LTD T/A SEALE PASTURES&&SSAROE47014,Residential,1033.71,21/09/2020
ALA CARE LTD&&SSAROE1044,Payments in Advance,875,18/08/2020
ALA CARE LTD&&SSAROE1044,Payments in Advance,900,14/09/2020
ALA CARE LTD&&SSAROE1044,Payments in Advance,21200,07/08/2020
ALA CARE LTD&&SSAROE1044,Residential,22668,21/09/2020
ALA CARE LTD&&SSAROE1044,Residential,20168,24/08/2020
ALA CARE LTD&&SSAROE1044,Residential,4048.57,21/09/2020
ALA CARE LTD&&SSAROE1044,Residential,1089.14,24/08/2020
ALA CARE LTD&&SSAROE1044,Residential,1119.86,21/09/2020
ALA CARE LTD&&SSAROE1044,Residential,1464.43,24/08/2020
ALA CARE LTD&&SSAROE1044,Residential,-2591.14,21/09/2020
ALA CARE LTD&&SSAROE182,Payments in Advance,2375,18/08/2020
ALA CARE LTD&&SSAROE182,Payments in Advance,1875,14/09/2020
ALA CARE LTD&&SSAROE182,Payments in Advance,21200,07/08/2020
ALA CARE LTD&&SSAROE182,Residential,43938.23,21/09/2020
ALA CARE LTD&&SSAROE182,Residential,47720.53,24/08/2020
ALA CARE LTD&&SSAROE182,Residential,2005.72,21/09/2020
ALA CARE LTD&&SSAROE182,Residential,-3906.74,21/09/2020
ALA CARE LTD&&SSAROE182,Residential,-1206,24/08/2020
ALA CARE LTD&&SSAROE40269,Payments in Advance,1875,18/08/2020
ALA CARE LTD&&SSAROE40269,Payments in Advance,1400,14/09/2020
ALA CARE LTD&&SSAROE40269,Payments in Advance,20140,07/08/2020
ALA CARE LTD&&SSAROE40269,Other Support,-1378.29,24/08/2020
ALA CARE LTD&&SSAROE40269,Residential,-650,24/08/2020
ALA CARE LTD&&SSAROE40269,Residential,1240.71,24/08/2020
ALA CARE LTD&&SSAROE40269,Residential,38595.54,21/09/2020
ALA CARE LTD&&SSAROE40269,Residential,33815.54,24/08/2020
ALA CARE LTD&&SSAROE40269,Residential,971.43,21/09/2020
ALA CARE LTD&&SSAROE40269,Other Support,-1571.57,24/08/2020
ALA CARE LTD&&SSAROE40269,Residential,4364.3,24/08/2020
ALA CARE LTD&&SSAROE40269,Residential,689.14,24/08/2020
ALA CARE LTD&&SSAROE40269,Other Support,-1033.71,24/08/2020
ALA CARE LTD&&SSAROE40269,Residential,1033.71,24/08/2020
ALA CARE LTD&&SSAROE40269,Residential,-650,21/09/2020
ALA CARE LTD&&SSAROE40269,Residential,-557.15,21/09/2020
Alan Bott,Nursing,1367.52,07/09/2020
Alan Brian Stevenson,Residential,537.08,14/09/2020
Alan Deacon,Residential,711.17,11/09/2020
Albert Village Primary School,Payment to Ext SEN Providers,604,24/09/2020
Aldi Stores Ltd,Personal Accounts - Other,127333.09,13/08/2020
ALEXANDRA CARE (LEICESTER) LTD DANE VIEW CARE HOME&&SSARO5677,Residential,2314.29,24/08/2020
ALEXANDRA CARE (LEICESTER) LTD DANE VIEW CARE HOME&&SSARO5677,Private Contractors,6200,21/09/2020
ALEXANDRA CARE (LEICESTER) LTD DANE VIEW CARE HOME&&SSARO5677,Residential,6200,21/09/2020
ALEXANDRA CARE (LEICESTER) LTD DANE VIEW CARE HOME&&SSARO5677,Private Contractors,10000,24/08/2020
ALEXANDRA CARE (LEICESTER) LTD DANE VIEW CARE HOME&&SSARO5677,Residential,10000,24/08/2020
ALEXANDRA CARE (LEICESTER) LTD DANE VIEW CARE HOME&&SSARO5677,Other Support,-2828.57,24/08/2020
ALEXANDRA CARE (LEICESTER) LTD DANE VIEW CARE HOME&&SSARO5677,Residential,2035.71,24/08/2020
ALEXANDRA CARE (LEICESTER) LTD DANE VIEW CARE HOME&&SSARO5677,Residential,-1928.57,24/08/2020
ALICE HOUSE (FLOLLIE INVESTMENTS LIMITED)&&SSARO5641,Residential,2425.2,21/09/2020
ALICE HOUSE (FLOLLIE INVESTMENTS LIMITED)&&SSARO5641,Residential,2425.2,24/08/2020
Aliyah Rose,Other Transfer Payments,1000,15/09/2020
ALLAG CARE LIMITED  GWENDOLEN&&SSARO3351,Residential,5233.02,21/09/2020
ALLAG CARE LIMITED  GWENDOLEN&&SSARO3351,Residential,5233.02,24/08/2020
ALLAG CARE LIMITED  GWENDOLEN&&SSARO3351,Other Support,-1657.14,21/09/2020
ALLAG CARE LTD T/A SYCAMORE COTTAGE&&SSAROE44469,Payments in Advance,500,18/08/2020
ALLAG CARE LTD T/A SYCAMORE COTTAGE&&SSAROE44469,Payments in Advance,7420,28/08/2020
ALLAG CARE LTD T/A SYCAMORE COTTAGE&&SSAROE44469,Residential,7824,21/09/2020
ALLAG CARE LTD T/A SYCAMORE COTTAGE&&SSAROE44469,Residential,10236,24/08/2020
ALLAG CARE LTD T/A SYCAMORE COTTAGE&&SSAROE44469,Residential,-2153.57,21/09/2020
ALLAG CARE LTD T/A SYCAMORE COTTAGE&&SSAROE44469,Residential,2571.43,24/08/2020
ALLAG CARE LTD T/A SYCAMORE COTTAGE&&SSAROE44469,Other Support,-3000,24/08/2020
ALLAG CARE LTD T/A SYCAMORE COTTAGE&&SSAROE44469,Residential,-3000,24/08/2020
ALLAG CARE LTD T/A SYCAMORE COTTAGE&&SSAROE44469,Residential,1700.64,24/08/2020
ALLAG CARE LTD T/A SYCAMORE COTTAGE&&SSAROE44469,Residential,566.88,24/08/2020
ALLAG CARE LTD T/A SYCAMORE COTTAGE&&SSAROE44469,Other Support,-3401.28,24/08/2020
ALLAG CARE LTD T/A SYCAMORE COTTAGE&&SSAROE44469,Other Support,-1700.64,24/08/2020
ALLAG CARE LTD T/A SYCAMORE COTTAGE&&SSAROE44469,Residential,1488.06,24/08/2020
ALLCONTRAST LTD & GIVECARE LTD&&SSAROE2374,Residential,50093.36,21/09/2020
ALLCONTRAST LTD & GIVECARE LTD&&SSAROE2374,Residential,45957.68,24/08/2020
ALLCONTRAST LTD & GIVECARE LTD&&SSAROE2374,Residential,1292.35,21/09/2020
ALLCONTRAST LTD & GIVECARE LTD&&SSAROE2374,Residential,567.85,24/08/2020
ALLCONTRAST LTD & GIVECARE LTD&&SSAROE2374,Payments in Advance,1750,18/08/2020
ALLCONTRAST LTD & GIVECARE LTD&&SSAROE2374,Payments in Advance,22260,07/08/2020
All Purpose Cleaning Supplies Ltd,Cleaning Materials,749.49,09/09/2020
All Purpose Cleaning Supplies Ltd,Other Expenditure,621.79,18/09/2020
All Saints CE Primary School Sapcote (Inspiring Primaries Academy Trust),Payment to Ext SEN Providers,-2536,24/09/2020
All Saints CE Primary School Sapcote (Inspiring Primaries Academy Trust),Payment to Ext SEN Providers,2956,25/08/2020
All Saints CE Primary School Sapcote (Inspiring Primaries Academy Trust),Payment to Ext SEN Providers,5874,24/09/2020
Allscreens Nationwide Ltd,R&M of Vehicles-Non Contract,578.4,18/09/2020
ALPHA CARE MANAGEMENT SERVICES NO 2 LTD&&SSARO1217,Private Contractors,5758.04,21/09/2020
ALPHA CARE MANAGEMENT SERVICES NO 2 LTD&&SSARO1217,Residential,5758.04,21/09/2020
ALPHA CARE MANAGEMENT SERVICES NO 2 LTD&&SSARO1217,Private Contractors,5758.04,24/08/2020
ALPHA CARE MANAGEMENT SERVICES NO 2 LTD&&SSARO1217,Residential,5758.04,24/08/2020
Alpha Tutorials,Payment to Ext SEN Providers,850,25/08/2020
AMBERWOOD CARE HOME LTD&&SSAROE40398,Residential,20756,21/09/2020
AMBERWOOD CARE HOME LTD&&SSAROE40398,Residential,37292,24/08/2020
AMBERWOOD CARE HOME LTD&&SSAROE40398,Residential,2742.86,21/09/2020
AMBERWOOD CARE HOME LTD&&SSAROE40398,Residential,-1232,21/09/2020
AMBERWOOD CARE HOME LTD&&SSAROE40398,Payments in Advance,1500,18/08/2020
AMBERWOOD CARE HOME LTD&&SSAROE40398,Payments in Advance,1300,14/09/2020
AMBERWOOD CARE HOME LTD&&SSAROE40398,Payments in Advance,23320,07/08/2020
AMG CONSULTANCY SERVICES LTD&&ISHC9210,Home Care / Domiciliary,1551.01,04/09/2020
AMG CONSULTANCY SERVICES LTD&&ISHC9210,Home Care / Domiciliary,4522.09,04/09/2020
AMICARE DOMICILIRY CARE SERVICES LTD&&ISHC2524,Home Care / Domiciliary,1732.24,04/09/2020
AMICARE DOMICILIRY CARE SERVICES LTD&&ISHC2524,Home Care / Domiciliary,1011.46,04/09/2020
AMICARE DOMICILIRY CARE SERVICES LTD&&ISHC2524,Home Care / Domiciliary,1433.37,07/08/2020
AMICARE DOMICILIRY CARE SERVICES LTD&&ISHC2524,Home Care / Domiciliary,27727.92,04/09/2020
AMICARE DOMICILIRY CARE SERVICES LTD&&ISHC2524,Home Care / Domiciliary,24203.88,07/08/2020
AMICARE DOMICILIRY CARE SERVICES LTD&&ISHC2524,Home Care / Domiciliary,660.8,04/09/2020
AMICARE DOMICILIRY CARE SERVICES LTD&&ISHC2524,Home Care / Domiciliary,745.31,07/08/2020
AMICARE DOMICILIRY CARE SERVICES LTD&&ISHC2524,Payments in Advance,3560,14/08/2020
AMICARE DOMICILIRY CARE SERVICES LTD&&ISHC2524,Payments in Advance,2870,09/09/2020
AMICARE DOMICILIRY CARE SERVICES LTD&&ISHC2524,Payments in Advance,24904,14/08/2020
AMICURA LTD&&SSARO6112,Residential,2316,21/09/2020
AMICURA LTD&&SSARO6112,Residential,2316,24/08/2020
AMS CARE SERVICE LTD&&SSARO2055 T/A APRIL COTTAGE,Residential,9648,21/09/2020
AMS CARE SERVICE LTD&&SSARO2055 T/A APRIL COTTAGE,Residential,9648,24/08/2020
AMS CARE SERVICE LTD&&SSARO2055 T/A APRIL COTTAGE,Residential,-1350,24/08/2020
AMS CARE SERVICE LTD&&SSARO2055 T/A APRIL COTTAGE,Payments in Advance,500,18/08/2020
AMS CARE SERVICE LTD&&SSARO2055 T/A APRIL COTTAGE,Payments in Advance,6360,07/08/2020
Amvale Ltd,Recharge of Pooled Transp Cost,585,02/09/2020
Anchor Foster Care Services Ltd,Other Agency & Cont Services,3690.07,28/08/2020
Anchor Foster Care Services Ltd,Private Contractors,3727.31,28/08/2020
Anchor Foster Care Services Ltd,Other Agency & Cont Services,3571.03,30/09/2020
Anchor Foster Care Services Ltd,Private Contractors,3607.07,30/09/2020
Andrew Bagley,Residential,4705.79,04/09/2020
Andy Kirk Contractors Ltd,Suspense,6940,02/09/2020
Andy Kirk Contractors Ltd,Suspense,3510,11/09/2020
Andy Kirk Contractors Ltd,Suspense,532,11/09/2020
Andy Kirk Contractors Ltd,Suspense,4160,17/09/2020
Andy Kirk Contractors Ltd,Suspense,5032,17/09/2020
Andy Kirk Contractors Ltd,Suspense,12220,17/09/2020
Anew Young People Services Ltd,Private Contractors,3117.22,03/08/2020
Anew Young People Services Ltd,Private Contractors,2512.08,03/08/2020
Anew Young People Services Ltd,Private Contractors,2998.08,01/09/2020
Anew Young People Services Ltd,Private Contractors,1348.18,01/09/2020
Anew Young People Services Ltd,Other Agency & Cont Services,2289.22,01/09/2020
Anew Young People Services Ltd,Private Contractors,2347.61,01/09/2020
Anew Young People Services Ltd,Private Contractors,2613.22,04/09/2020
Anew Young People Services Ltd,Private Contractors,2613.22,04/09/2020
Anew Young People Services Ltd,Private Contractors,3045.22,04/09/2020
Anew Young People Services Ltd,Private Contractors,2613.22,04/09/2020
Anew Young People Services Ltd,Private Contractors,3122.4,04/09/2020
Anna May T/A Links Psychology Ltd,Other Agency & Cont Services,1243.38,06/08/2020
Anne MCMahon,Residential,617.58,21/09/2020
Anstey Community Library,Furniture,787,07/08/2020
Anstey Martin High Academy,Payment to Ext SEN Providers,-3027,24/09/2020
Anstey Martin High Academy,Payment to Ext SEN Providers,951,25/08/2020
Anstey Martin High Academy,Payment to Ext SEN Providers,4185,24/09/2020
Anthony Collins Solicitors,Advertising,1411.2,20/08/2020
Anwar Parouty,S.E.N. Taxi Hire,1591.25,07/08/2020
Anwar Parouty,S.E.N. Taxi Hire,2321,07/08/2020
APPLE HOUSE LEICESTER LTD&&SSAROE185,Residential,7236,21/09/2020
APPLE HOUSE LEICESTER LTD&&SSAROE185,Residential,7732,24/08/2020
APPLE HOUSE LEICESTER LTD&&SSAROE185,Payments in Advance,4770,07/08/2020
Arco Ltd,Materials,592.32,20/08/2020
Arco Ltd,Materials,-592.32,20/08/2020
Argus Software (UK),Design & Supervision Fees Ext,612,18/08/2020
ARK CARE LODGE&&SSAROE699,Residential,6161.56,21/09/2020
ARK CARE LODGE&&SSAROE699,Residential,6161.56,24/08/2020
Arnold Clarke Finance Ltd T/A Arnold Clark Vehicle Management,Operational Leasing,4880.45,20/08/2020
Arnold Clarke Finance Ltd T/A Arnold Clark Vehicle Management,Operational Leasing,3261.46,04/08/2020
Arriva Midlands Ltd,Minimum Cost Contracts,170816.21,06/08/2020
Arriva Midlands Ltd,Minimum Cost Contracts,321020.05,06/08/2020
Arriva Midlands Ltd,Minimum Cost Contracts,203159.93,21/08/2020
Arriva Midlands Ltd,Minimum Cost Contracts,368582.13,21/08/2020
ASA Transport Services Ltd,Home to Sch Trans - Buses,1938.6,25/08/2020
ASA Transport Services Ltd,S.E.N. Taxi Hire,1938.6,25/08/2020
ASD Learning (Midlands) Ltd,Payment to Ext SEN Providers,17452.96,07/09/2020
ASD Learning (Midlands) Ltd,Payment to Ext SEN Providers,16371.66,07/09/2020
ASD Learning (Midlands) Ltd,Payment to Ext SEN Providers,16371.66,17/09/2020
ASD Learning (Midlands) Ltd,Payment to Ext SEN Providers,16371.66,07/09/2020
ASD Learning (Midlands) Ltd,Payment to Ext SEN Providers,16371.66,07/09/2020
ASD Learning (Midlands) Ltd,Payment to Ext SEN Providers,16371.66,07/09/2020
ASD Learning (Midlands) Ltd,Payment to Ext SEN Providers,16371.66,09/09/2020
ASD Learning (Midlands) Ltd,Payment to Ext SEN Providers,16371.66,07/09/2020
ASD Learning (Midlands) Ltd,Payment to Ext SEN Providers,16371.66,07/09/2020
ASD Learning (Midlands) Ltd,Payment to Ext SEN Providers,-1081.3,07/09/2020
ASD Learning (Midlands) Ltd,Payment to Ext SEN Providers,-16371.66,07/09/2020
Asfordby Captains Close Primary School Academy T/A Discovery Schools Academies Trust,Buildings - Operational,230000,10/09/2020
Asfordby Captains Close Primary School Academy T/A Discovery Schools Academies Trust,Children&Families Spprt Servs,5040,25/08/2020
Asfordby Captains Close Primary School Academy T/A Discovery Schools Academies Trust,Payment to Ext SEN Providers,923,25/08/2020
Asfordby Captains Close Primary School Academy T/A Discovery Schools Academies Trust,Payment to Ext SEN Providers,4061,24/09/2020
Asfordby Captains Close Primary School Academy T/A Discovery Schools Academies Trust,Payment to Ext SEN Providers,8333,24/09/2020
Asfordby Captains Close Primary School Academy T/A Discovery Schools Academies Trust,Payment to Ext SEN Providers,5040,24/09/2020
Asfordby Captains Close Primary School Academy T/A Discovery Schools Academies Trust,Payment to Ext SEN Providers,6250,25/08/2020
Asfordby Captains Close Primary School Academy T/A Discovery Schools Academies Trust,Payment to Ext SEN Providers,1326,25/08/2020
Asfordby Captains Close Primary School Academy T/A Discovery Schools Academies Trust,Payment to Ext SEN Providers,5217,25/08/2020
Asfordby Hill Primary School Academy,Payment to Ext SEN Providers,-2335,24/09/2020
Asfordby Hill Primary School Academy,Children&Families Spprt Servs,900,04/09/2020
Asfordby Hill Primary School Academy,Payment to Ext SEN Providers,775,25/08/2020
Asfordby Hill Primary School Academy,Payment to Ext SEN Providers,3412,24/09/2020
ASHBY COURT NURSING HOME&&SSAROE40195,Residential,2000,24/08/2020
ASHBY COURT NURSING HOME&&SSAROE40195,Residential,36396.2,21/09/2020
ASHBY COURT NURSING HOME&&SSAROE40195,Residential,39682.34,24/08/2020
ASHBY COURT NURSING HOME&&SSAROE40195,Residential,1485.72,24/08/2020
ASHBY COURT NURSING HOME&&SSAROE40195,Residential,1119.86,21/09/2020
ASHBY COURT NURSING HOME&&SSAROE40195,Residential,-1828.58,21/09/2020
ASHBY COURT NURSING HOME&&SSAROE40195,Residential,-1485.72,24/08/2020
ASHBY COURT NURSING HOME&&SSAROE40195,Payments in Advance,1750,18/08/2020
ASHBY COURT NURSING HOME&&SSAROE40195,Payments in Advance,1375,14/09/2020
ASHBY COURT NURSING HOME&&SSAROE40195,Payments in Advance,31800,07/08/2020
ASHBY DAY NURSERY LTD&&EYRS1376,Grants,1069.6,28/08/2020
Ashby Hill Top Primary School Academy,Payment to Ext SEN Providers,-2169,24/09/2020
Ashby Hill Top Primary School Academy,Payment to Ext SEN Providers,889,25/08/2020
Ashby Hill Top Primary School Academy,Payment to Ext SEN Providers,3912,24/09/2020
Ashby Hill Top Primary School Academy,Children&Families Spprt Servs,650,06/08/2020
Ashby School Academy,Payment to Ext SEN Providers,-7538,24/09/2020
Ashby School Academy,Payment to Ext SEN Providers,37847,24/09/2020
Ashby School Academy,Children&Families Spprt Servs,650,06/08/2020
Ashby School Academy,Payment to Ext SEN Providers,3027,25/08/2020
Ashby School Academy,Payment to Ext SEN Providers,13320,24/09/2020
Ashby School Academy,Children&Families Spprt Servs,650,06/08/2020
Ashby School Academy,Children&Families Spprt Servs,650,06/08/2020
Ashby Willesley Primary School Academy,Payment to Ext SEN Providers,-3417,24/09/2020
Ashby Willesley Primary School Academy,Payment to Ext SEN Providers,972,25/08/2020
Ashby Willesley Primary School Academy,Payment to Ext SEN Providers,4275,24/09/2020
Ashfaq Khan,S.E.N. Taxi Hire,545.6,03/08/2020
Ashfaq Khan,S.E.N. Taxi Hire,648.34,03/08/2020
Ash Field Academy,Other Local Authorities,220946.25,15/09/2020
Ash Field Academy,Other Local Authorities,-220946.25,15/09/2020
Ash Field Academy,Other Local Authorities,215592.5,14/09/2020
ASHLEIGH NURSING HOME&&SSAROE40196,Private Contractors,13436,21/09/2020
ASHLEIGH NURSING HOME&&SSAROE40196,Residential,13436,21/09/2020
ASHLEIGH NURSING HOME&&SSAROE40196,Private Contractors,6988,24/08/2020
ASHLEIGH NURSING HOME&&SSAROE40196,Residential,6988,24/08/2020
ASHLEIGH NURSING HOME&&SSAROE40196,Residential,1894.43,21/09/2020
ASHTON LODGE&&SSAROE40467,Residential,7415.56,20/08/2020
ASHTON LODGE&&SSAROE40467,Residential,-1694,20/08/2020
ASHTON LODGE&&SSAROE40467,Residential,-4114,20/08/2020
ASHTON LODGE&&SSAROE40467,Residential,-1642.14,20/08/2020
ASH TREE&&SSAROE424,Residential,20201.76,21/09/2020
ASH TREE&&SSAROE424,Residential,20201.76,24/08/2020
ASH TREE&&SSAROE424,Payments in Advance,500,18/08/2020
Askews & Holts Library Services Ltd,Books,554.85,09/09/2020
Askews & Holts Library Services Ltd,Books,670.15,04/09/2020
Askews & Holts Library Services Ltd,Books,607.54,04/08/2020
Askews & Holts Library Services Ltd,Books,562.75,28/08/2020
Askews & Holts Library Services Ltd,Books,779.18,25/09/2020
Askews & Holts Library Services Ltd,Books,693.12,25/09/2020
Askews & Holts Library Services Ltd,Books,759.06,25/09/2020
Askews & Holts Library Services Ltd,Books,715.34,23/09/2020
Askews & Holts Library Services Ltd,Books,613.24,25/09/2020
Askews & Holts Library Services Ltd,Books,684.44,23/09/2020
Askews & Holts Library Services Ltd,Books,703.68,25/09/2020
Askews & Holts Library Services Ltd,Books,774.88,23/09/2020
Askews & Holts Library Services Ltd,Books,701.08,23/09/2020
Askews & Holts Library Services Ltd,Books,712.98,25/09/2020
Askews & Holts Library Services Ltd,Books,708.73,23/09/2020
Askews & Holts Library Services Ltd,Books,701.03,25/09/2020
Askews & Holts Library Services Ltd,Books,698.49,25/09/2020
Askews & Holts Library Services Ltd,Books,5015.8,26/08/2020
Askews & Holts Library Services Ltd,Books,5302.82,02/09/2020
Askews & Holts Library Services Ltd,Books,5265.33,09/09/2020
Askews & Holts Library Services Ltd,Books,5640.87,16/09/2020
Askews & Holts Library Services Ltd,Books,3092.2,23/09/2020
Askews & Holts Library Services Ltd,Books,2864.81,30/09/2020
ASPIRE HEALTH & CARE LTD CHILLWEL HOUSE&&SSARO3332,Residential,2503.2,21/09/2020
ASPIRE HEALTH & CARE LTD CHILLWEL HOUSE&&SSARO3332,Residential,2503.2,24/08/2020
Aspire Lifeskills Ltd,Payment to Ext SEN Providers,213328,28/08/2020
Association of Directors of Childrens Services,Personal Accounts - Other,1000,18/08/2020
Association of Print & Communication Managers,Reserve Debtors,752.53,13/08/2020
ATHENA CARE LTD&&ISHCHC673,Home Care / Domiciliary,4341.12,04/09/2020
ATHENA CARE LTD&&ISHCHC673,Home Care / Domiciliary,4341.12,07/08/2020
ATHENA CARE LTD&&ISHCHC673,Payments in Advance,1000,14/08/2020
ATHENA CARE LTD&&ISHCHC673,Payments in Advance,800,09/09/2020
ATHENA CARE LTD&&ISHCHC673,Payments in Advance,4940,14/08/2020
Atif Ussenbai T/A SMH Travel,S.E.N. Taxi Hire,1734,04/08/2020
Atif Ussenbai T/A SMH Travel,S.E.N. Taxi Hire,765,12/08/2020
Ausden Clark Ltd,Home to Sch Trans - Buses,1480,14/08/2020
Ausden Clark Ltd,Home to Sch Trans - Buses,1440,14/08/2020
Ausden Clark Ltd,Home to Sch Trans - Buses,1440,14/08/2020
Ausden Clark Ltd,Home to Sch Trans - Buses,1440,14/08/2020
Ausden Clark Ltd,Home to Sch Trans - Buses,1400,14/08/2020
Ausden Clark Ltd,Home to Sch Trans - Buses,1211.52,14/08/2020
Ausden Clark Ltd,Home to Sch Trans - Buses,1213.76,14/08/2020
Ausden Clark Ltd,Home to Sch Trans - Buses,1295.76,14/08/2020
Ausden Clark Ltd,Home to Sch Trans - Buses,1440,14/08/2020
Ausden Clark Ltd,Home to Sch Trans - Buses,1451.44,14/08/2020
Ausden Clark Ltd,Home to Sch Trans - Buses,2340,14/08/2020
Ausden Clark Ltd,Home to Sch Trans - Buses,1600,14/08/2020
Ausden Clark Ltd,Home to Sch Trans - Buses,1760,14/08/2020
Ausden Clark Ltd,Home to Sch Trans - Buses,1600,14/08/2020
Ausden Clark Ltd,Home to Sch Trans - Buses,3240,25/09/2020
Ausden Clark Ltd,Home to Sch Trans - Buses,600,25/09/2020
Ausden Clark Ltd,Home to Sch Trans - Buses,660,25/09/2020
Ausden Clark Ltd,Home to Sch Trans - Buses,600,25/09/2020
Authentic Kare Company,Other Agency & Cont Services,935,09/09/2020
Authentic Kare Company,Other Agency & Cont Services,935,23/09/2020
Authentic Kare Company,Payments in Advance,2120,07/08/2020
Authentic Kare Company,Other Agency & Cont Services,3740,26/08/2020
Authentic Kare Company,Other Agency & Cont Services,2537.86,14/08/2020
AUTISM CARE (UK) LTD&&SSAROE1335,Residential,9392,21/09/2020
AUTISM CARE (UK) LTD&&SSAROE1335,Residential,9392,24/08/2020
Autism East Midlands,Residential,2885.97,10/08/2020
AVERY HOMES GRANTHAM LTD&&SSARO1825,Residential,2324,21/09/2020
AVERY HOMES GRANTHAM LTD&&SSARO1825,Residential,2324,24/08/2020
AVERY HOMES HINCKLEY LTD&&SSARO2898,Payments in Advance,1775,18/08/2020
AVERY HOMES HINCKLEY LTD&&SSARO2898,Payments in Advance,1700,14/09/2020
AVERY HOMES HINCKLEY LTD&&SSARO2898,Payments in Advance,31800,07/08/2020
AVERY HOMES HINCKLEY LTD&&SSARO2898,Residential,-724,24/08/2020
AVERY HOMES HINCKLEY LTD&&SSARO2898,Residential,46072,21/09/2020
AVERY HOMES HINCKLEY LTD&&SSARO2898,Residential,46230.57,24/08/2020
AVERY HOMES HINCKLEY LTD&&SSARO2898,Residential,1600,21/09/2020
AVERY HOMES HINCKLEY LTD&&SSARO2898,Residential,966.86,24/08/2020
AVERY HOMES HINCKLEY LTD&&SSARO2898,Residential,607.14,24/08/2020
AVERY HOMES HINCKLEY LTD&&SSARO2898,Other Support,-1092.86,24/08/2020
AVERY HOMES HINCKLEY LTD&&SSARO2898,Residential,-1600.43,24/08/2020
Avon Park School,Payment to Ext SEN Providers,25046.95,21/08/2020
AVVISIM CARE LTD T/A FERNLEIGH CARE HOME&&SSAROE40336,Payments in Advance,2025,18/08/2020
AVVISIM CARE LTD T/A FERNLEIGH CARE HOME&&SSAROE40336,Payments in Advance,1500,14/09/2020
AVVISIM CARE LTD T/A FERNLEIGH CARE HOME&&SSAROE40336,Payments in Advance,14310,07/08/2020
AVVISIM CARE LTD T/A FERNLEIGH CARE HOME&&SSAROE40336,Residential,-800,24/08/2020
AVVISIM CARE LTD T/A FERNLEIGH CARE HOME&&SSAROE40336,Residential,-642.85,24/08/2020
AVVISIM CARE LTD T/A FERNLEIGH CARE HOME&&SSAROE40336,Residential,37852,21/09/2020
AVVISIM CARE LTD T/A FERNLEIGH CARE HOME&&SSAROE40336,Residential,44452,24/08/2020
AVVISIM CARE LTD T/A FERNLEIGH CARE HOME&&SSAROE40336,Residential,5542.87,21/09/2020
AVVISIM CARE LTD T/A FERNLEIGH CARE HOME&&SSAROE40336,Residential,2307.14,24/08/2020
AVVISIM CARE LTD T/A FERNLEIGH CARE HOME&&SSAROE40336,Residential,535.71,21/09/2020
AVVISIM CARE LTD T/A FERNLEIGH CARE HOME&&SSAROE40336,Residential,-2239.71,24/08/2020
AVVISIM CARE LTD T/A FERNLEIGH CARE HOME&&SSAROE40336,Residential,571.43,24/08/2020
AVVISIM CARE LTD T/A FERNLEIGH CARE HOME&&SSAROE40336,Residential,1142.86,24/08/2020
AVVISIM CARE LTD T/A FERNLEIGH CARE HOME&&SSAROE40336,Residential,-1671.43,21/09/2020
AVVISIM CARE LTD T/A FERNLEIGH CARE HOME&&SSAROE40336,Other Support,-1028.57,24/08/2020
AVVISIM CARE LTD T/A FERNLEIGH CARE HOME&&SSAROE40336,Other Support,-1600,24/08/2020
AVVISIM CARE LTD T/A FERNLEIGH CARE HOME&&SSAROE40336,Residential,-971.43,21/09/2020
AVVISIM CARE LTD T/A FERNLEIGH CARE HOME&&SSAROE40336,Residential,-3300,21/09/2020
AYLESHAM COURT NURSING HOME&&SSAROE59696,Residential,55893.82,21/09/2020
AYLESHAM COURT NURSING HOME&&SSAROE59696,Residential,49850.96,24/08/2020
AYLESHAM COURT NURSING HOME&&SSAROE59696,Residential,2571.43,21/09/2020
AYLESHAM COURT NURSING HOME&&SSAROE59696,Residential,900,24/08/2020
AYLESHAM COURT NURSING HOME&&SSAROE59696,Residential,577.14,24/08/2020
AYLESHAM COURT NURSING HOME&&SSAROE59696,Other Support,-1154.29,24/08/2020
AYLESHAM COURT NURSING HOME&&SSAROE59696,Payments in Advance,1975,18/08/2020
AYLESHAM COURT NURSING HOME&&SSAROE59696,Payments in Advance,31800,07/08/2020
AYLESTONE GRANGE LTD&&SSARO3251,Residential,9271.13,21/09/2020
AYLESTONE GRANGE LTD&&SSARO3251,Residential,9271.13,24/08/2020
AYLESTONE GRANGE LTD&&SSARO3251,Payments in Advance,500,18/08/2020
A Zoom Taxis,S.E.N. Taxi Hire,590.7,20/08/2020
A Zoom Taxis,S.E.N. Taxi Hire,745.8,20/08/2020
A Zoom Taxis,Home to Sch Trans - Buses,544.5,20/08/2020
A Zoom Taxis,S.E.N. Taxi Hire,2946.24,20/08/2020
A Zoom Taxis,S.E.N. Taxi Hire,2663.76,20/08/2020
A Zoom Taxis,S.E.N. Taxi Hire,526.68,20/08/2020
A Zoom Taxis,S.E.N. Taxi Hire,968.64,17/09/2020
A Zoom Taxis,Personal Accounts - Govt Depts,792,20/08/2020
A Zoom Taxis,S.E.N. Taxi Hire,4656,20/08/2020
A Zoom Taxis,S.E.N. Taxi Hire,693,20/08/2020
A Zoom Taxis,S.E.N. Taxi Hire,1862.4,17/09/2020
A Zoom Taxis,Recharge of Pooled Transp Cost,4831.2,25/08/2020
A Zoom Taxis,S.E.N. Taxi Hire,4831.2,25/08/2020
A Zoom Taxis,S.E.N. Taxi Hire,1756.8,17/09/2020
A Zoom Taxis,S.E.N. Taxi Hire,1200.96,20/08/2020
A Zoom Taxis,S.E.N. Taxi Hire,2496,20/08/2020
A Zoom Taxis,S.E.N. Taxi Hire,600.48,17/09/2020
A Zoom Taxis,S.E.N. Taxi Hire,960,17/09/2020
A Zoom Taxis,S.E.N. Taxi Hire,616.44,20/08/2020
A Zoom Taxis,S.E.N. Taxi Hire,818.4,20/08/2020
A Zoom Taxis,S.E.N. Taxi Hire,2116.8,20/08/2020
A Zoom Taxis,S.E.N. Taxi Hire,595.2,17/09/2020
A Zoom Taxis,S.E.N. Taxi Hire,834,20/08/2020
A Zoom Taxis,S.E.N. Taxi Hire,823.2,17/09/2020
A Zoom Taxis,S.E.N. Taxi Hire,910.8,20/08/2020
A Zoom Taxis,S.E.N. Taxi Hire,579.6,17/09/2020
A Zoom Taxis,S.E.N. Taxi Hire,1965.6,20/08/2020
A Zoom Taxis,S.E.N. Taxi Hire,594,20/08/2020
A Zoom Taxis,S.E.N. Taxi Hire,898.56,17/09/2020
A Zoom Taxis,S.E.N. Taxi Hire,709.5,20/08/2020
A Zoom Taxis,S.E.N. Taxi Hire,1042.56,17/09/2020
A Zoom Taxis,S.E.N. Taxi Hire,2085.12,20/08/2020
A Zoom Taxis,S.E.N. Taxi Hire,567,20/08/2020
A Zoom Taxis,S.E.N. Taxi Hire,2349,25/08/2020
A Zoom Taxis,S.E.N. Taxi Hire,648,17/09/2020
A Zoom Taxis,S.E.N. Taxi Hire,567,29/09/2020
A Zoom Taxis,S.E.N. Taxi Hire,561,20/08/2020
A Zoom Taxis,Recharge of Pooled Transp Cost,528,20/08/2020
A Zoom Taxis,S.E.N. Taxi Hire,882,20/08/2020
A Zoom Taxis,S.E.N. Taxi Hire,3600.96,20/08/2020
A Zoom Taxis,S.E.N. Taxi Hire,630,17/09/2020
A Zoom Taxis,S.E.N. Taxi Hire,1309.44,17/09/2020
BABBLEBROOKE LTD&&EYRS1772,Grants,1572.75,07/09/2020
Baca Charity,Private Contractors,1960,13/08/2020
Baca Charity,Private Contractors,1800,13/08/2020
Baca Charity,Private Contractors,1960,13/08/2020
Baca Charity,Private Contractors,1960,13/08/2020
Baca Charity,Private Contractors,2450,13/08/2020
Baca Charity,Private Contractors,2250,13/08/2020
Baca Charity,Private Contractors,2750,26/08/2020
Baca Charity,Private Contractors,3050,13/08/2020
Baca Charity,Other Transfer Payments,2123.76,14/09/2020
Baca Charity,Private Contractors,1960,07/09/2020
Baca Charity,Private Contractors,1800,07/09/2020
Baca Charity,Private Contractors,2440,07/09/2020
Baca Charity,Private Contractors,780,07/09/2020
Baca Charity,Private Contractors,2440,17/09/2020
Baca Charity,Private Contractors,2440,07/09/2020
Baca Charity,Private Contractors,1960,07/09/2020
Baca Charity,Private Contractors,2200,28/09/2020
Baca Charity,Private Contractors,2200,07/09/2020
Baca Charity,Private Contractors,2200,07/09/2020
Baca Charity,Private Contractors,2200,07/09/2020
Baca Charity,Private Contractors,2440,07/09/2020
Baca Charity,Private Contractors,2440,07/09/2020
Baca Charity,Private Contractors,2440,07/09/2020
Baca Charity,Other Transfer Payments,4112.68,01/09/2020
Baca Charity,Other Transfer Payments,867.57,04/09/2020
Baca Charity,Private Contractors,2450,17/09/2020
Baca Charity,Private Contractors,2250,17/09/2020
Baca Charity,Private Contractors,3050,18/09/2020
Baca Charity,Private Contractors,3050,18/09/2020
Baca Charity,Private Contractors,3050,18/09/2020
Baca Charity,Private Contractors,2750,18/09/2020
Baca Charity,Private Contractors,2750,18/09/2020
Baca Charity,Private Contractors,2750,18/09/2020
Baca Charity,Private Contractors,3050,18/09/2020
Baca Charity,Private Contractors,3050,18/09/2020
Baca Charity,Private Contractors,3050,18/09/2020
Baca Charity,Other Transfer Payments,591.23,21/09/2020
Baca Charity,Other Transfer Payments,1773.24,21/09/2020
BADBY PARK LTD&&SSARO3105,Nursing,5358.21,21/09/2020
BADBY PARK LTD&&SSARO3105,Private Contractors,5358.21,21/09/2020
BADBY PARK LTD&&SSARO3105,Residential,5358.21,21/09/2020
BADBY PARK LTD&&SSARO3105,Nursing,5358.21,24/08/2020
BADBY PARK LTD&&SSARO3105,Private Contractors,5358.21,24/08/2020
BADBY PARK LTD&&SSARO3105,Residential,5358.21,24/08/2020
Bagnalls Coaches,Home to Sch Trans - Buses,11627,04/08/2020
Bagnalls Coaches,Home to Sch Trans - Buses,4228,28/08/2020
Baileys Buses Ltd,Home to Sch Trans - Buses,1428,04/09/2020
Bains Travel,S.E.N. Taxi Hire,516,07/08/2020
Bains Travel,S.E.N. Taxi Hire,2476.8,07/08/2020
Bains Travel,S.E.N. Taxi Hire,1032,28/08/2020
Bains Travel,S.E.N. Taxi Hire,914.4,28/08/2020
Bains Travel,S.E.N. Taxi Hire,1540.8,28/08/2020
Bains Travel,S.E.N. Taxi Hire,1699.2,28/08/2020
Bains Travel,S.E.N. Taxi Hire,2112,28/08/2020
Bains Travel,S.E.N. Taxi Hire,2371.2,28/08/2020
Bakewell & District Historical Society,Other Transfer Payments,1500,10/09/2020
Banner Group Ltd,Stationery,-727.63,14/08/2020
BARCHESTER HEALTHCARE HOME LTD T/A MARPLE DALE WINDSOR&&SSAROE350,Residential,2679.72,21/09/2020
BARCHESTER HEALTHCARE HOME LTD T/A MARPLE DALE WINDSOR&&SSAROE350,Residential,2679.72,24/08/2020
BARCHESTER HEALTHCARE HOMES LTD LANCASTER GRANGE&&SARO3353,Residential,2700,21/09/2020
BARCHESTER HEALTHCARE HOMES LTD LANCASTER GRANGE&&SARO3353,Residential,2700,24/08/2020
BARCHESTER HEALTHCARE HOMES LTD OVERSLADE HOUSE RECEIPTS ACCOUNT&&SSARO3228,Nursing,2419.2,21/09/2020
BARCHESTER HEALTHCARE HOMES LTD OVERSLADE HOUSE RECEIPTS ACCOUNT&&SSARO3228,Private Contractors,2419.2,21/09/2020
BARCHESTER HEALTHCARE HOMES LTD OVERSLADE HOUSE RECEIPTS ACCOUNT&&SSARO3228,Nursing,2419.2,24/08/2020
BARCHESTER HEALTHCARE HOMES LTD OVERSLADE HOUSE RECEIPTS ACCOUNT&&SSARO3228,Private Contractors,2419.2,24/08/2020
BARCHESTER HEALTHCARE HOMES LTD&&SAROE59408,Private Contractors,6375.12,21/09/2020
BARCHESTER HEALTHCARE HOMES LTD&&SAROE59408,Residential,6375.12,21/09/2020
BARCHESTER HEALTHCARE HOMES LTD&&SAROE59408,Private Contractors,6375.12,24/08/2020
BARCHESTER HEALTHCARE HOMES LTD&&SAROE59408,Residential,6375.12,24/08/2020
BARCHESTER HEALTHCARE HOMES LTD&&SAROE59408,Residential,1400,24/08/2020
BARCHESTER HEALTHCARE HOMES LTD&&SAROE59408,Residential,-1900,24/08/2020
Barlestone CE Primary School Academy,Payment to Ext SEN Providers,949,24/09/2020
Barnardos,Other Agency & Cont Services,3653.57,28/08/2020
Barnardos,Other Agency & Cont Services,3535.71,30/09/2020
Barwell CE Academy,Grants,3326,08/09/2020
Barwell CE Academy,Payment to Ext SEN Providers,-1667,24/09/2020
Barwell CE Academy,Payment to Ext SEN Providers,716,25/08/2020
Barwell CE Academy,Payment to Ext SEN Providers,3152,24/09/2020
Battling Brook Primary School Academy,Payment to Ext SEN Providers,-6292,24/09/2020
Battling Brook Primary School Academy,Children&Families Spprt Servs,650,06/08/2020
Battling Brook Primary School Academy,Children&Families Spprt Servs,650,06/08/2020
Battling Brook Primary School Academy,Payment to Ext SEN Providers,1886,25/08/2020
Battling Brook Primary School Academy,Payment to Ext SEN Providers,8298,24/09/2020
Beacon Academy,Payment to Ext SEN Providers,27249,14/08/2020
Beacon Academy,Children&Families Spprt Servs,-3669,24/09/2020
Beacon Academy,Payment to Ext SEN Providers,-7317,24/09/2020
Beacon Academy,Payment to Ext SEN Providers,-500,24/09/2020
Beacon Academy,Payment to Ext SEN Providers,-12906,24/09/2020
Beacon Academy,Payment to Ext SEN Providers,1157,25/08/2020
Beacon Academy,Payment to Ext SEN Providers,13124,24/09/2020
Beacon Academy,Children&Families Spprt Servs,4748,24/09/2020
Beacon Academy,Payment to Ext SEN Providers,16237,24/09/2020
Beacon Academy,Children&Families Spprt Servs,1079,25/08/2020
Beacon Academy,Payment to Ext SEN Providers,500,25/08/2020
Beacon Academy,Payment to Ext SEN Providers,3901,25/08/2020
Beauchamp Academy,Children&Families Spprt Servs,650,06/08/2020
Beauchamp Academy,Payment to Ext SEN Providers,-9909,24/09/2020
Beauchamp Academy,Payment to Ext SEN Providers,-2165,24/09/2020
Beauchamp Academy,Payment to Ext SEN Providers,2930,25/08/2020
Beauchamp Academy,Payment to Ext SEN Providers,12151,24/09/2020
Beauchamp Academy,Payment to Ext SEN Providers,3796,24/09/2020
Beauchamp Academy,Payment to Ext SEN Providers,2000,25/08/2020
Beauchamp Academy,Payment to Ext SEN Providers,863,25/08/2020
Beaver Bus,Home to Sch Trans - Buses,9262,04/09/2020
Beaver Bus,Home to Sch Trans - Buses,9262,04/09/2020
Beaver Bus,Home to Sch Trans - Buses,3368,04/09/2020
Beaver Bus,Home to Sch Trans - Buses,3368,04/09/2020
BEAVER CHILDCARE LTD T/A CHARNWOOD NURSERY  & PRE SCHOOL&&EYRS1519,Grants,1572.75,04/09/2020
BEAVER CHILDCARE LTD T/A CHARNWOOD NURSERY  & PRE SCHOOL&&EYRS1519,Grants,1572.75,07/09/2020
BEAVER CHILDCARE LTD T/A CHARNWOOD NURSERY  & PRE SCHOOL&&EYRS1519,Grants,748.4,28/08/2020
Belgrave Car & Commercial Ltd,Home to Sch Trans - Buses,1120,14/08/2020
Belgrave Car & Commercial Ltd,Home to Sch Trans - Buses,2064,14/08/2020
BELTON PLAYGROUP&&EYRS1562,Grants,1258.2,07/09/2020
BENTLEY HOUSE LTD&&SSAROE140,Private Contractors,2108.12,21/09/2020
BENTLEY HOUSE LTD&&SSAROE140,Private Contractors,2108.12,24/08/2020
Berrys,Design & Supervision Fees Ext,1935,09/09/2020
BERRYSTEAD NURSING & RESIDENTIAL  HOME LTD&&SSAROE2040,Residential,43968,21/09/2020
BERRYSTEAD NURSING & RESIDENTIAL  HOME LTD&&SSAROE2040,Residential,49980,24/08/2020
BERRYSTEAD NURSING & RESIDENTIAL  HOME LTD&&SSAROE2040,Residential,2322,21/09/2020
BERRYSTEAD NURSING & RESIDENTIAL  HOME LTD&&SSAROE2040,Other Support,3367.15,24/08/2020
BERRYSTEAD NURSING & RESIDENTIAL  HOME LTD&&SSAROE2040,Residential,3367.15,24/08/2020
BERRYSTEAD NURSING & RESIDENTIAL  HOME LTD&&SSAROE2040,Other Support,800,24/08/2020
BERRYSTEAD NURSING & RESIDENTIAL  HOME LTD&&SSAROE2040,Residential,800,24/08/2020
BERRYSTEAD NURSING & RESIDENTIAL  HOME LTD&&SSAROE2040,Residential,861.43,21/09/2020
BERRYSTEAD NURSING & RESIDENTIAL  HOME LTD&&SSAROE2040,Residential,-2571.43,21/09/2020
BERRYSTEAD NURSING & RESIDENTIAL  HOME LTD&&SSAROE2040,Residential,-1550.57,21/09/2020
BERRYSTEAD NURSING & RESIDENTIAL  HOME LTD&&SSAROE2040,Residential,-1550.57,24/08/2020
BERRYSTEAD NURSING & RESIDENTIAL  HOME LTD&&SSAROE2040,Residential,-2412,24/08/2020
BERRYSTEAD NURSING & RESIDENTIAL  HOME LTD&&SSAROE2040,Payments in Advance,2125,18/08/2020
BERRYSTEAD NURSING & RESIDENTIAL  HOME LTD&&SSAROE2040,Payments in Advance,24380,07/08/2020
Beryl Gilead,Advertising,3276,04/09/2020
Beryl Gilead,Advertising,660,04/09/2020
Beryl Massey,Residential,1769.81,03/09/2020
BESTCARE LTD&&SSAROE1281,Payments in Advance,2250,18/08/2020
BESTCARE LTD&&SSAROE1281,Payments in Advance,1800,14/09/2020
BESTCARE LTD&&SSAROE1281,Payments in Advance,15370,07/08/2020
BESTCARE LTD&&SSAROE1281,Residential,4678,21/09/2020
BESTCARE LTD&&SSAROE1281,Residential,2178,24/08/2020
BESTCARE LTD&&SSAROE1281,Residential,982.14,21/09/2020
BESTCARE LTD&&SSAROE1281,Residential,43886.4,21/09/2020
BESTCARE LTD&&SSAROE1281,Residential,43886.4,24/08/2020
BESTCARE LTD&&SSAROE1281,Residential,1378.29,21/09/2020
BESTCARE LTD&&SSAROE1281,Residential,1414.28,24/08/2020
BESTCARE LTD&&SSAROE1281,Residential,603,21/09/2020
BETHEL RESIDENTIAL HOME&&SSAROE40459,Residential,24120,21/09/2020
BETHEL RESIDENTIAL HOME&&SSAROE40459,Residential,24120,24/08/2020
BETHEL RESIDENTIAL HOME&&SSAROE40459,Residential,1119.86,21/09/2020
BETHEL RESIDENTIAL HOME&&SSAROE40459,Residential,1119.86,24/08/2020
BETHEL RESIDENTIAL HOME&&SSAROE40459,Residential,689.14,24/08/2020
BETHEL RESIDENTIAL HOME&&SSAROE40459,Residential,-1119.86,21/09/2020
BETHEL RESIDENTIAL HOME&&SSAROE40459,Residential,-1119.86,24/08/2020
BETHEL RESIDENTIAL HOME&&SSAROE40459,Payments in Advance,1250,18/08/2020
BETHEL RESIDENTIAL HOME&&SSAROE40459,Payments in Advance,18020,28/08/2020
BETHESDA CAREHOMES LTD TA PINGLENOOK&&SSAROE40346,Payments in Advance,1150,18/08/2020
BETHESDA CAREHOMES LTD TA PINGLENOOK&&SSAROE40346,Payments in Advance,900,14/09/2020
BETHESDA CAREHOMES LTD TA PINGLENOOK&&SSAROE40346,Payments in Advance,8480,07/08/2020
BETHESDA CAREHOMES LTD TA PINGLENOOK&&SSAROE40346,Residential,19296,21/09/2020
BETHESDA CAREHOMES LTD TA PINGLENOOK&&SSAROE40346,Residential,19037.57,24/08/2020
BETHESDA CAREHOMES LTD TA PINGLENOOK&&SSAROE40346,Residential,3101.15,21/09/2020
BETHESDA CAREHOMES LTD TA PINGLENOOK&&SSAROE40346,Residential,-2153.57,24/08/2020
BETHESDA CAREHOMES LTD TA PINGLENOOK&&SSAROE40346,Residential,861.43,21/09/2020
Betty Arnold     1,Managed/Traditional Services,909.82,10/09/2020
Betty Ball,Residential,2852.14,14/08/2020
Betty May Stevens,Managed/Traditional Services,673,01/09/2020
B Halpin T/A Topflight City Cars,Home to Sch Trans - Buses,716.88,13/08/2020
Bi Flexi Support Ltd,Payments in Advance,1680,08/09/2020
BIG ADVENTURES CHILDRENS NURSERY LTD T/A DAISY CHAIN CHILDRENS NURSERY&&EYRS1731,Grants,781.2,28/08/2020
BIRCHESTER MEDICARE LTD&&SSARO2290,Private Contractors,2444,21/09/2020
BIRCHESTER MEDICARE LTD&&SSARO2290,Private Contractors,2444,24/08/2020
Birchwood (Melton Area Special School),Buildings - Operational,5000,15/09/2020
BIRCHWOOD RETIREMENT HOME LTD&&SSARO3408,Residential,2292,21/09/2020
BIRCHWOOD RETIREMENT HOME LTD&&SSARO3408,Residential,2292,24/08/2020
Birkett House School Academy,Children&Families Spprt Servs,650,06/08/2020
Birkett House School Academy,Children&Families Spprt Servs,650,06/08/2020
Birkett House School Academy,Children&Families Spprt Servs,650,06/08/2020
Birkett House School Academy,Payment to Ext SEN Providers,6667,25/08/2020
Birkett House School Academy,Payment to Ext SEN Providers,168618,25/08/2020
Birkett House School Academy,Children&Families Spprt Servs,650,06/08/2020
Birstall Cabs,Recharge of Pooled Transp Cost,2362.49,04/08/2020
Birstall Cabs,S.E.N. Taxi Hire,2362.49,04/08/2020
Birstall Cabs,Recharge of Pooled Transp Cost,885.09,04/08/2020
Birstall Cabs,S.E.N. Taxi Hire,885.09,04/08/2020
BIRSTALL CARE SERVICES LTD&&SSARO3339,Residential,-1200,24/08/2020
BIRSTALL CARE SERVICES LTD&&SSARO3339,Residential,1242,21/09/2020
BIRSTALL CARE SERVICES LTD&&SSARO3339,Residential,27530.24,21/09/2020
BIRSTALL CARE SERVICES LTD&&SSARO3339,Residential,1242,24/08/2020
BIRSTALL CARE SERVICES LTD&&SSARO3339,Residential,54435,24/08/2020
BIRSTALL CARE SERVICES LTD&&SSARO3339,Residential,7357.14,24/08/2020
BIRSTALL CARE SERVICES LTD&&SSARO3339,Residential,-947.57,24/08/2020
BIRSTALL CARE SERVICES LTD&&SSARO3339,Residential,947.57,24/08/2020
BIRSTALL CARE SERVICES LTD&&SSARO3339,Payments in Advance,1500,18/08/2020
BIRSTALL CARE SERVICES LTD&&SSARO3339,Payments in Advance,1200,14/09/2020
BIRSTALL CARE SERVICES LTD&&SSARO3339,Payments in Advance,38160,07/08/2020
Birstall Cars Ltd,S.E.N. Taxi Hire,1423.05,07/08/2020
BIZZY BEES PRESCHOOL&&EYRSEY558811,Grants,629.1,07/09/2020
Blaby District Council,Personal Accounts - Other,570.29,14/09/2020
Blaby District Council,Personal Accounts - Other,629.02,14/08/2020
Blaby District Council,Other Local Authorities,8000,11/09/2020
Blaby District Council,Other Local Authorities,30404,01/09/2020
Blaby Stokes CE Primary School (Academy),Payment to Ext SEN Providers,-2270,24/09/2020
Blaby Stokes CE Primary School (Academy),Payment to Ext SEN Providers,589,25/08/2020
Blaby Stokes CE Primary School (Academy),Payment to Ext SEN Providers,3143,24/09/2020
BLACKBERRY BUSH T/A BUSH BABIES CHILDRENS NURSERIES LTD&&EYRS1534,Grants,943.65,04/09/2020
Blackwood School (Walsall Council General Account),Children&Families Spprt Servs,650,06/08/2020
Blue Mountain Homes Ltd,Private Contractors,664.23,18/09/2020
Blue Mountain Homes Ltd,Private Contractors,568.44,18/09/2020
Blue Mountain Homes Ltd,Private Contractors,687.73,18/09/2020
Blue Mountain Homes Ltd,Private Contractors,587.39,18/09/2020
Blue Mountain Homes Ltd,Private Contractors,16637.14,07/08/2020
Blue Mountain Homes Ltd,Private Contractors,16637.14,07/08/2020
Blue Mountain Homes Ltd,Private Contractors,31692.86,07/08/2020
Blue Mountain Homes Ltd,Private Contractors,665.55,18/09/2020
Blue Mountain Homes Ltd,Private Contractors,30608.57,07/09/2020
Blue Mountain Homes Ltd,Private Contractors,568.44,18/09/2020
Blue Mountain Homes Ltd,Private Contractors,19858.73,18/09/2020
Blue Mountain Homes Ltd,Private Contractors,17552.73,18/09/2020
Blue Mountain Homes Ltd,Private Contractors,17552.73,18/09/2020
Blue Mountain Homes Ltd,Private Contractors,32749.28,07/09/2020
Blue Mountain Homes Ltd,Private Contractors,31628.85,07/09/2020
Blue Mountain Homes Ltd,Private Contractors,28558.26,18/09/2020
BLUE OPAL LTD T/A THE MEADOWS&&SSARO5335,Residential,4838.96,21/09/2020
BLUE OPAL LTD T/A THE MEADOWS&&SSARO5335,Residential,4838.96,24/08/2020
BLUEWOOD RECRUITMENT LTD&&ISHC3933,Home Care / Domiciliary,7268.62,04/09/2020
BLUEWOOD RECRUITMENT LTD&&ISHC3933,Home Care / Domiciliary,9684.41,07/08/2020
BLUEWOOD RECRUITMENT LTD&&ISHC3933,Payments in Advance,840,14/08/2020
BLUEWOOD RECRUITMENT LTD&&ISHC3933,Payments in Advance,670,09/09/2020
BLUEWOOD RECRUITMENT LTD&&ISHC3933,Payments in Advance,10224,14/08/2020
BLUEWOOD RECRUITMENT LTD&&ISHC3933,Payments in Advance,650,21/08/2020
Bolinda UK,Books,1949.71,04/08/2020
Bolinda UK,Books,1613,04/08/2020
Bolinda UK,Books,2334.17,04/08/2020
Bolinda UK,Books,3763.24,04/08/2020
Bolinda UK,Books,1138.48,04/08/2020
Bolinda UK,Books,1919.86,04/08/2020
Bolinda UK,Books,847.34,04/08/2020
Bolinda UK,Books,502.54,04/08/2020
Bolinda UK,Books,2073.37,04/08/2020
Bolinda UK,Books,992.2,04/08/2020
Bolinda UK,Books,1792.43,10/09/2020
Bolinda UK,Books,1012.45,10/09/2020
Bolinda UK,Books,6174.23,04/08/2020
Bolinda UK,Books,1500.04,04/08/2020
Bolinda UK,Books,657.64,04/08/2020
Bolinda UK,Books,1026,04/09/2020
Bolinda UK,Books,1026.73,10/09/2020
Bolinda UK,Books,3587.86,10/09/2020
Book a Cab Ltd,S.E.N. Taxi Hire,500,14/08/2020
Borough of Charnwood Council,Personal Accounts - Other,611.8,14/09/2020
Borough of Charnwood Council,Personal Accounts - Other,890.51,14/08/2020
Borough of Charnwood Council,Other Local Authorities,5000,11/09/2020
Borough of Charnwood Council,Other Local Authorities,64111,01/09/2020
Borough of Charnwood (NDR),Rates,1035,25/08/2020
Bosworth Academy ( Life Multi-Academy Trust),Children&Families Spprt Servs,650,06/08/2020
Bosworth Academy ( Life Multi-Academy Trust),Payment to Ext SEN Providers,-11764,24/09/2020
Bosworth Academy ( Life Multi-Academy Trust),Children&Families Spprt Servs,650,06/08/2020
Bosworth Academy ( Life Multi-Academy Trust),Children&Families Spprt Servs,650,06/08/2020
Bosworth Academy ( Life Multi-Academy Trust),Children&Families Spprt Servs,650,06/08/2020
Bosworth Academy ( Life Multi-Academy Trust),Children&Families Spprt Servs,650,06/08/2020
Bosworth Academy ( Life Multi-Academy Trust),Payment to Ext SEN Providers,4881,25/08/2020
Bosworth Academy ( Life Multi-Academy Trust),Payment to Ext SEN Providers,15088,24/09/2020
Bosworth Academy ( Life Multi-Academy Trust),Children&Families Spprt Servs,650,06/08/2020
Bosworth in Bloom,Private Contractors,1000,01/09/2020
Bottesford CE Primary School Academy,Payment to Ext SEN Providers,-2673,24/09/2020
Bottesford CE Primary School Academy,Children&Families Spprt Servs,835.05,04/09/2020
Bottesford CE Primary School Academy,Payment to Ext SEN Providers,608,25/08/2020
Bottesford CE Primary School Academy,Payment to Ext SEN Providers,3100,24/09/2020
Boughton Engineering Ltd,R&M of Vehicles-Non Contract,1629.26,04/08/2020
Boughton Engineering Ltd,R&M of Vehicles-Non Contract,1532.03,04/08/2020
Boughton Engineering Ltd,R&M of Vehicles-Non Contract,1125.44,04/08/2020
Boughton Engineering Ltd,R&M of Vehicles-Non Contract,848.08,27/08/2020
Boughton Engineering Ltd,R&M of Vehicles-Non Contract,1349.64,17/09/2020
Bradgate Education Partnership T/A Gaddesby Primary School,Payment to Ext SEN Providers,-1536,24/09/2020
Bradgate Education Partnership T/A Gaddesby Primary School,Payment to Ext SEN Providers,1988,24/09/2020
Bradgate Education Partnership T/A Great Dalby Primary School,Payment to Ext SEN Providers,-1536,24/09/2020
Bradgate Education Partnership T/A Great Dalby Primary School,Payment to Ext SEN Providers,1598,24/09/2020
Braunstone Town Council,Other Expenditure,2778,17/09/2020
BREAKING THE CYCLE CONSULTANCY LTD&&CLCD3093-20-6038,Day / CLC Services,520,04/09/2020
BREAKING THE CYCLE CONSULTANCY LTD&&CLCD3093-20-6038,Day / CLC Services,520,07/08/2020
BRIARS & ROSE LODGE&&SSAROE1126,Payments in Advance,1000,18/08/2020
BRIARS & ROSE LODGE&&SSAROE1126,Payments in Advance,800,14/09/2020
BRIARS & ROSE LODGE&&SSAROE1126,Payments in Advance,4770,07/08/2020
BRIARS & ROSE LODGE&&SSAROE1126,Residential,24753.24,21/09/2020
BRIARS & ROSE LODGE&&SSAROE1126,Residential,24753.24,24/08/2020
BRIARS&&SSAROE425,Residential,19364,21/09/2020
BRIARS&&SSAROE425,Residential,19364,24/08/2020
BRIARS&&SSAROE425,Payments in Advance,875,18/08/2020
BRIARS&&SSAROE425,Payments in Advance,700,14/09/2020
BRIARS&&SSAROE425,Payments in Advance,3710,07/08/2020
Bridge (East Midlands),Other Govt Grants,2127,14/09/2020
BRIDGEFOOT DEVELOPMENTS LTD JASON HYLTON COURT&&SSARO3277,Nursing,1700,21/09/2020
BRIDGEFOOT DEVELOPMENTS LTD JASON HYLTON COURT&&SSARO3277,Private Contractors,1700,21/09/2020
BRIDGEFOOT DEVELOPMENTS LTD JASON HYLTON COURT&&SSARO3277,Nursing,1700,24/08/2020
BRIDGEFOOT DEVELOPMENTS LTD JASON HYLTON COURT&&SSARO3277,Private Contractors,1700,24/08/2020
BRIGHT INTERGRATED CARE LTD&&ISHC3324,Home Care / Domiciliary,27175.85,04/09/2020
BRIGHT INTERGRATED CARE LTD&&ISHC3324,Home Care / Domiciliary,29655.64,07/08/2020
BRIGHT INTERGRATED CARE LTD&&ISHC3324,Home Care / Domiciliary,624.65,07/08/2020
BRIGHT INTERGRATED CARE LTD&&ISHC3324,Payments in Advance,2700,14/08/2020
BRIGHT INTERGRATED CARE LTD&&ISHC3324,Payments in Advance,2330,09/09/2020
BRIGHT INTERGRATED CARE LTD&&ISHC3324,Payments in Advance,3676,14/08/2020
BROADLANDS RESIDENTIAL CARE HOME&&SARO8403,Residential,2140,21/09/2020
BROADLANDS RESIDENTIAL CARE HOME&&SARO8403,Residential,2140,24/08/2020
BROADOAK GRANGE RESIDENTIAL HOME&&SSAROE40338,Residential,19296,21/09/2020
BROADOAK GRANGE RESIDENTIAL HOME&&SSAROE40338,Residential,19296,24/08/2020
BROADOAK GRANGE RESIDENTIAL HOME&&SSAROE40338,Residential,-1292.14,24/08/2020
BROADOAK GRANGE RESIDENTIAL HOME&&SSAROE40338,Payments in Advance,1000,18/08/2020
BROADOAK GRANGE RESIDENTIAL HOME&&SSAROE40338,Payments in Advance,800,14/09/2020
BROADOAK GRANGE RESIDENTIAL HOME&&SSAROE40338,Payments in Advance,17490,07/08/2020
BROADOAK LODGE&&SSAROE66479,Residential,37200,21/09/2020
BROADOAK LODGE&&SSAROE66479,Residential,39612,24/08/2020
BROADOAK LODGE&&SSAROE66479,Residential,1385.86,24/08/2020
BROADOAK LODGE&&SSAROE66479,Residential,-1464.43,21/09/2020
BROADOAK LODGE&&SSAROE66479,Residential,-1385.86,24/08/2020
BROADOAK LODGE&&SSAROE66479,Payments in Advance,2000,18/08/2020
BROADOAK LODGE&&SSAROE66479,Payments in Advance,1500,14/09/2020
BROADOAK LODGE&&SSAROE66479,Payments in Advance,14310,07/08/2020
BROAD STREET PLAYGROUP&&EYRS1388,Grants,888.84,28/08/2020
Brocks Hill Primary School Academy,Payment to Ext SEN Providers,-1803,24/09/2020
Brocks Hill Primary School Academy,Payment to Ext SEN Providers,1988,24/09/2020
Brooke School,Payment to Ext SEN Providers,14400,27/08/2020
BROOK HOUSE&&SSAROE40313,Residential,8344,21/09/2020
BROOK HOUSE&&SSAROE40313,Residential,8516,24/08/2020
BROOK HOUSE&&SSAROE40313,Residential,4300,21/09/2020
BROOK HOUSE&&SSAROE40313,Residential,4300,21/09/2020
BROOK HOUSE&&SSAROE40313,Residential,1689.28,21/09/2020
BROOK HOUSE&&SSAROE40313,Payments in Advance,21730,07/08/2020
Brooksby Melton College,Payment to Ext SEN Providers,43711.54,18/08/2020
BROOKSIDE RESIDENTIAL CAR HOME (BRAYBROOKE) LTD&&SSARO6026,Residential,3540,21/09/2020
BROOKSIDE RESIDENTIAL CAR HOME (BRAYBROOKE) LTD&&SSARO6026,Residential,3540,24/08/2020
Brookvale Groby Learning Trust (Groby Community College),Payment to Ext SEN Providers,-6877,24/09/2020
Brookvale Groby Learning Trust (Groby Community College),Payment to Ext SEN Providers,-4941,24/09/2020
Brookvale Groby Learning Trust (Groby Community College),Payment to Ext SEN Providers,3484,25/08/2020
Brookvale Groby Learning Trust (Groby Community College),Payment to Ext SEN Providers,15752,24/09/2020
BROOKVALE&&SSAROE56,Residential,2523.16,21/09/2020
BROOKVALE&&SSAROE56,Residential,2523.16,24/08/2020
Broomfield Primary School (Academy),Payment to Ext SEN Providers,1691,24/09/2020
Broom Leys Academy,Payment to Ext SEN Providers,1276,25/08/2020
Broom Leys Academy,Payment to Ext SEN Providers,6165,24/09/2020
Broom Leys Academy,Children&Families Spprt Servs,650,06/08/2020
Browne Jacobson Llp,Advertising,983.4,16/09/2020
Browne Jacobson Llp,Advertising,3544.2,11/09/2020
Browne Jacobson Llp,Other Expenditure,11211.24,11/09/2020
Browne Jacobson Llp,Advertising,3600,11/09/2020
Browne Jacobson Llp,Advertising,768,25/09/2020
Brownlow School Academy,Payment to Ext SEN Providers,-4605,24/09/2020
Brownlow School Academy,Payment to Ext SEN Providers,1468,25/08/2020
Brownlow School Academy,Payment to Ext SEN Providers,7475,24/09/2020
BS&CK SIDHU T/A OLDBURY GRANGE NURSING HOME&&SSAROE76868,Payments in Advance,500,18/08/2020
BS&CK SIDHU T/A OLDBURY GRANGE NURSING HOME&&SSAROE76868,Private Contractors,10640,21/09/2020
BS&CK SIDHU T/A OLDBURY GRANGE NURSING HOME&&SSAROE76868,Residential,10640,21/09/2020
BS&CK SIDHU T/A OLDBURY GRANGE NURSING HOME&&SSAROE76868,Private Contractors,10640,24/08/2020
BS&CK SIDHU T/A OLDBURY GRANGE NURSING HOME&&SSAROE76868,Residential,10640,24/08/2020
BT Business Direct Ltd,IT Equipment,4524,11/09/2020
Bucks Net Services Ltd,Bank Charges,577.85,24/09/2020
Bucks Net Services Ltd,Bank Charges,687.79,24/09/2020
Bucks Net Services Ltd,Bank Charges,647.28,24/09/2020
Bucks Net Services Ltd,Bank Charges,582.37,24/09/2020
Bucks Net Services Ltd,Bank Charges,552.81,24/09/2020
Bucks Net Services Ltd,Bank Charges,-3660,24/09/2020
BUPA CARE HOMES T/A THE SPRNGS CARE HOME&&SARO3407,Residential,2216,21/09/2020
BUPA CARE HOMES T/A THE SPRNGS CARE HOME&&SARO3407,Residential,2216,24/08/2020
Burbage Church of England Infant School,Children&Families Spprt Servs,650,06/08/2020
Burbage Community Library,Voluntary Associations,568.5,25/09/2020
BURBAGE HOMECARE LTD&&ISHCHC455,Home Care / Domiciliary,10582.88,04/09/2020
BURBAGE HOMECARE LTD&&ISHCHC455,Home Care / Domiciliary,12888.31,07/08/2020
BURBAGE HOMECARE LTD&&ISHCHC455,Payments in Advance,1170,14/08/2020
BURBAGE HOMECARE LTD&&ISHCHC455,Payments in Advance,930,09/09/2020
BURBAGE HOMECARE LTD&&ISHCHC455,Payments in Advance,11104,14/08/2020
BURBAGE PRESCHOOL&&EYRS2529002,Grants,619.98,28/08/2020
BURTON ON THE WOLDS PRE SCHOOL&&EYRS1640,Grants,838.8,07/09/2020
Busy Bees Childrens Day Nursery,Other Transfer Payments,602.33,28/08/2020
BUSY BEES DAY NURSERY&&EYRS1617,Grants,838.8,04/09/2020
By The Bridge,Other Agency & Cont Services,3878.37,28/08/2020
By The Bridge,Other Agency & Cont Services,4424.59,28/08/2020
By The Bridge,Other Agency & Cont Services,4295.71,28/08/2020
By The Bridge,Other Agency & Cont Services,-2802.14,28/08/2020
By The Bridge,Other Agency & Cont Services,6636.88,28/08/2020
By The Bridge,Other Agency & Cont Services,4667.71,28/08/2020
By The Bridge,Other Agency & Cont Services,4424.59,28/08/2020
By The Bridge,Private Contractors,3627,28/08/2020
By The Bridge,Other Agency & Cont Services,4433,28/08/2020
By The Bridge,Other Agency & Cont Services,3702.85,28/08/2020
By The Bridge,Other Agency & Cont Services,4082.48,28/08/2020
By The Bridge,Other Agency & Cont Services,1220.14,28/08/2020
By The Bridge,Other Agency & Cont Services,4082.48,28/08/2020
By The Bridge,Other Agency & Cont Services,3449.86,28/08/2020
By The Bridge,Private Contractors,3156.91,28/08/2020
By The Bridge,Other Agency & Cont Services,4309,28/08/2020
By The Bridge,Other Agency & Cont Services,4424.59,28/08/2020
By The Bridge,Other Agency & Cont Services,3990.9,28/08/2020
By The Bridge,Other Agency & Cont Services,2397.92,30/09/2020
By The Bridge,Other Agency & Cont Services,4281.86,30/09/2020
By The Bridge,Other Agency & Cont Services,4157.14,30/09/2020
By The Bridge,Other Agency & Cont Services,8860.62,30/09/2020
By The Bridge,Other Agency & Cont Services,3318.46,30/09/2020
By The Bridge,Other Agency & Cont Services,-15271.95,30/09/2020
By The Bridge,Other Agency & Cont Services,4517.14,30/09/2020
By The Bridge,Other Agency & Cont Services,3515.49,30/09/2020
By The Bridge,Private Contractors,3510,30/09/2020
By The Bridge,Other Agency & Cont Services,4290,30/09/2020
By The Bridge,Other Agency & Cont Services,-6085.2,30/09/2020
By The Bridge,Other Agency & Cont Services,7936.5,30/09/2020
By The Bridge,Other Agency & Cont Services,7829.71,30/09/2020
By The Bridge,Other Agency & Cont Services,3950.79,30/09/2020
By The Bridge,Other Agency & Cont Services,3338.57,30/09/2020
By The Bridge,Private Contractors,3055.07,30/09/2020
By The Bridge,Other Agency & Cont Services,4170,30/09/2020
By The Bridge,Other Agency & Cont Services,-1552.87,30/09/2020
By The Bridge,Other Agency & Cont Services,3386.47,30/09/2020
Cadent Gas Misc Billing,Infrastructure,60060,04/09/2020
Cairbairz Ltd,Payments in Advance,3360,28/08/2020
Caldecote Community Primary School,Children&Families Spprt Servs,650,06/08/2020
CAMANCHI LODGE LTD T/A CHEVINGTON LODGE&&SARO9265,Residential,3040,21/09/2020
CAMANCHI LODGE LTD T/A CHEVINGTON LODGE&&SARO9265,Residential,3040,24/08/2020
CAMANCHI LODGE LTD T/A CHEVINGTON LODGE&&SARO9265,Residential,3040,07/08/2020
Cambian Childcare Ltd,Private Contractors,-10628.64,25/09/2020
Cambian Childcare Ltd,Private Contractors,-16364.41,17/09/2020
Cambian Childcare Ltd,Private Contractors,-6900,25/09/2020
Cambian Childcare Ltd,Private Contractors,5060,25/08/2020
Cambian Childcare Ltd,Private Contractors,8635.77,25/08/2020
Cambian Childcare Ltd,Private Contractors,14171.34,25/08/2020
Cambian Childcare Ltd,Private Contractors,14171.34,25/08/2020
Cambian Childcare Ltd,Private Contractors,24135.67,25/08/2020
Cambian Childcare Ltd,Private Contractors,24135.67,25/08/2020
Cambian Childcare Ltd,Private Contractors,17492.99,25/08/2020
Cambian Childcare Ltd,Private Contractors,20592.99,25/08/2020
Cambian Childcare Ltd,Private Contractors,20592.99,18/09/2020
Cambian Childcare Ltd,Private Contractors,3220,25/08/2020
Cambian Childcare Ltd,Private Contractors,3220,27/08/2020
Cambian Childcare Ltd,Private Contractors,14171.34,18/09/2020
Cambian Childcare Ltd,Private Contractors,14171.34,18/09/2020
Cambian Childcare Ltd,Private Contractors,24135.67,18/09/2020
Cambian Childcare Ltd,Private Contractors,24135.67,18/09/2020
Cambian Childcare Ltd,Private Contractors,17492.99,17/09/2020
Cambian Childcare Ltd,Private Contractors,20592.99,18/09/2020
Cambian Childcare Ltd,Private Contractors,6900,25/09/2020
Cambian Childcare Ltd,Payment to Ext SEN Providers,14675.67,25/09/2020
Cambian Childcare Ltd,Payment to Ext SEN Providers,6633.33,25/09/2020
CAMDEN SOCIETY&&CLCD3181173310,Day / CLC Services,4157.73,04/09/2020
CAMDEN SOCIETY&&CLCD3181173310,Day / CLC Services,4157.73,07/08/2020
Capstone Foster Care (Midlands) Ltd,Other Agency & Cont Services,3595.65,28/08/2020
Capstone Foster Care (Midlands) Ltd,Other Agency & Cont Services,3293,28/08/2020
Capstone Foster Care (Midlands) Ltd,Other Agency & Cont Services,3559.73,28/08/2020
Capstone Foster Care (Midlands) Ltd,Other Agency & Cont Services,3428.6,28/08/2020
Capstone Foster Care (Midlands) Ltd,Other Agency & Cont Services,3428.51,28/08/2020
Capstone Foster Care (Midlands) Ltd,Other Agency & Cont Services,3396.45,28/08/2020
Capstone Foster Care (Midlands) Ltd,Other Agency & Cont Services,3595.65,28/08/2020
Capstone Foster Care (Midlands) Ltd,Other Agency & Cont Services,3595.65,28/08/2020
Capstone Foster Care (Midlands) Ltd,Other Agency & Cont Services,3428.6,28/08/2020
Capstone Foster Care (Midlands) Ltd,Other Agency & Cont Services,3378.87,28/08/2020
Capstone Foster Care (Midlands) Ltd,Other Agency & Cont Services,-1507.85,30/09/2020
Capstone Foster Care (Midlands) Ltd,Other Agency & Cont Services,3186.77,30/09/2020
Capstone Foster Care (Midlands) Ltd,Other Agency & Cont Services,3444.9,30/09/2020
Capstone Foster Care (Midlands) Ltd,Other Agency & Cont Services,3318,30/09/2020
Capstone Foster Care (Midlands) Ltd,Other Agency & Cont Services,3317.91,30/09/2020
Capstone Foster Care (Midlands) Ltd,Other Agency & Cont Services,3286.89,30/09/2020
Capstone Foster Care (Midlands) Ltd,Other Agency & Cont Services,3479.66,30/09/2020
Capstone Foster Care (Midlands) Ltd,Other Agency & Cont Services,3479.66,30/09/2020
Capstone Foster Care (Midlands) Ltd,Other Agency & Cont Services,3318,30/09/2020
Capstone Foster Care (Midlands) Ltd,Other Agency & Cont Services,3269.87,30/09/2020
CARE 24 7 (BODNANT HOUSE)&&SSARO3231,Residential,17047.6,21/09/2020
CARE 24 7 (BODNANT HOUSE)&&SSARO3231,Residential,20821.6,24/08/2020
CARE 24 7 (BODNANT HOUSE)&&SSARO3231,Residential,1398.86,21/09/2020
CARE 24 7 (BODNANT HOUSE)&&SSARO3231,Residential,502.28,24/08/2020
CARE 24 7 (BODNANT HOUSE)&&SSARO3231,Payments in Advance,500,18/08/2020
CARE 24 7 LEICESTER LTD&&SSARO3330,Residential,4780.56,21/09/2020
CARE 24 7 LEICESTER LTD&&SSARO3330,Residential,4780.56,24/08/2020
CARE 4 U (LEICESTERSHIRE) LTD&&ISHC2529,Home Care / Domiciliary,687.67,04/09/2020
CARE 4 U (LEICESTERSHIRE) LTD&&ISHC2529,Home Care / Domiciliary,2218.05,07/08/2020
CARE 4 U (LEICESTERSHIRE) LTD&&ISHC2529,Home Care / Domiciliary,35317.2,04/09/2020
CARE 4 U (LEICESTERSHIRE) LTD&&ISHC2529,Home Care / Domiciliary,660.3,04/09/2020
CARE 4 U (LEICESTERSHIRE) LTD&&ISHC2529,Home Care / Domiciliary,1125.33,04/09/2020
CARE 4 U (LEICESTERSHIRE) LTD&&ISHC2529,Home Care / Domiciliary,30716.57,07/08/2020
CARE 4 U (LEICESTERSHIRE) LTD&&ISHC2529,Home Care / Domiciliary,4722.63,04/09/2020
CARE 4 U (LEICESTERSHIRE) LTD&&ISHC2529,Home Care / Domiciliary,829.74,04/09/2020
CARE 4 U (LEICESTERSHIRE) LTD&&ISHC2529,Home Care / Domiciliary,2962.24,07/08/2020
CARE 4 U (LEICESTERSHIRE) LTD&&ISHC2529,Home Care / Domiciliary,-1287.9,04/09/2020
CARE 4 U (LEICESTERSHIRE) LTD&&ISHC2529,Home Care / Domiciliary,1321.6,07/08/2020
CARE 4 U (LEICESTERSHIRE) LTD&&ISHC2529,Home Care / Domiciliary,1223.94,04/09/2020
CARE 4 U (LEICESTERSHIRE) LTD&&ISHC2529,Home Care / Domiciliary,667.41,07/08/2020
CARE 4 U (LEICESTERSHIRE) LTD&&ISHC2529,Home Care / Domiciliary,1739.86,07/08/2020
CARE 4 U (LEICESTERSHIRE) LTD&&ISHC2529,Home Care / Domiciliary,1243.06,07/08/2020
CARE 4 U (LEICESTERSHIRE) LTD&&ISHC2529,Home Care / Domiciliary,504.61,07/08/2020
CARE 4 U (LEICESTERSHIRE) LTD&&ISHC2529,Home Care / Domiciliary,525.56,07/08/2020
CARE 4 U (LEICESTERSHIRE) LTD&&ISHC2529,Home Care / Domiciliary,722.64,07/08/2020
CARE 4 U (LEICESTERSHIRE) LTD&&ISHC2529,Home Care / Domiciliary,538.94,07/08/2020
CARE 4 U (LEICESTERSHIRE) LTD&&ISHC2529,Payments in Advance,3960,14/08/2020
CARE 4 U (LEICESTERSHIRE) LTD&&ISHC2529,Payments in Advance,2900,09/09/2020
CARE 4 U (LEICESTERSHIRE) LTD&&ISHC2529,Payments in Advance,2688,23/09/2020
CARE 4 U (LEICESTERSHIRE) LTD&&ISHC2529,Payments in Advance,15252,14/08/2020
CARE AT HOME (MIDLANDS) LTD&&ISHC2753,Home Care / Domiciliary,700.12,04/09/2020
CARE AT HOME (MIDLANDS) LTD&&ISHC2753,Home Care / Domiciliary,547.54,07/08/2020
CARE AT HOME (MIDLANDS) LTD&&ISHC2753,Home Care / Domiciliary,78915.07,04/09/2020
CARE AT HOME (MIDLANDS) LTD&&ISHC2753,Home Care / Domiciliary,75586.57,07/08/2020
CARE AT HOME (MIDLANDS) LTD&&ISHC2753,Home Care / Domiciliary,1972.44,04/09/2020
CARE AT HOME (MIDLANDS) LTD&&ISHC2753,Home Care / Domiciliary,7242.79,07/08/2020
CARE AT HOME (MIDLANDS) LTD&&ISHC2753,Home Care / Domiciliary,534.02,04/09/2020
CARE AT HOME (MIDLANDS) LTD&&ISHC2753,Payments in Advance,8630,14/08/2020
CARE AT HOME (MIDLANDS) LTD&&ISHC2753,Payments in Advance,7560,09/09/2020
CARE AT HOME (MIDLANDS) LTD&&ISHC2753,Payments in Advance,46872,14/08/2020
CARE HOME CONSULTANCY SERVICE LTD T/A RUSHEY MEAD MANOR&&SARO1913,Nursing,7554.4,21/09/2020
CARE HOME CONSULTANCY SERVICE LTD T/A RUSHEY MEAD MANOR&&SARO1913,Private Contractors,7554.4,21/09/2020
CARE HOME CONSULTANCY SERVICE LTD T/A RUSHEY MEAD MANOR&&SARO1913,Residential,7554.4,21/09/2020
CARE HOME CONSULTANCY SERVICE LTD T/A RUSHEY MEAD MANOR&&SARO1913,Nursing,7554.4,24/08/2020
CARE HOME CONSULTANCY SERVICE LTD T/A RUSHEY MEAD MANOR&&SARO1913,Private Contractors,7554.4,24/08/2020
CARE HOME CONSULTANCY SERVICE LTD T/A RUSHEY MEAD MANOR&&SARO1913,Residential,7554.4,24/08/2020
CARELINK HEALTHCARE PROFESSIONALS LTD&&ISHC3871,Home Care / Domiciliary,40868.87,04/09/2020
CARELINK HEALTHCARE PROFESSIONALS LTD&&ISHC3871,Home Care / Domiciliary,769.36,07/08/2020
CARELINK HEALTHCARE PROFESSIONALS LTD&&ISHC3871,Home Care / Domiciliary,38755.52,07/08/2020
CARELINK HEALTHCARE PROFESSIONALS LTD&&ISHC3871,Home Care / Domiciliary,1110.48,04/09/2020
CARELINK HEALTHCARE PROFESSIONALS LTD&&ISHC3871,Home Care / Domiciliary,1057.28,04/09/2020
CARELINK HEALTHCARE PROFESSIONALS LTD&&ISHC3871,Payments in Advance,4800,14/08/2020
CARELINK HEALTHCARE PROFESSIONALS LTD&&ISHC3871,Payments in Advance,4400,09/09/2020
CARELINK HEALTHCARE PROFESSIONALS LTD&&ISHC3871,Payments in Advance,23960,14/08/2020
Caremark Hinckley Bosworth & Blaby,Private Contractors,1707,09/09/2020
CAREMARK HINCKLEY BOSWORTH & BLABY&&ISHC3015,Home Care / Domiciliary,-731.44,04/09/2020
CAREMARK HINCKLEY BOSWORTH & BLABY&&ISHC3015,Home Care / Domiciliary,643.05,04/09/2020
CAREMARK HINCKLEY BOSWORTH & BLABY&&ISHC3015,Home Care / Domiciliary,899.76,07/08/2020
CAREMARK HINCKLEY BOSWORTH & BLABY&&ISHC3015,Home Care / Domiciliary,41191.94,04/09/2020
CAREMARK HINCKLEY BOSWORTH & BLABY&&ISHC3015,Home Care / Domiciliary,30484.21,07/08/2020
CAREMARK HINCKLEY BOSWORTH & BLABY&&ISHC3015,Home Care / Domiciliary,8902.54,04/09/2020
CAREMARK HINCKLEY BOSWORTH & BLABY&&ISHC3015,Home Care / Domiciliary,7514.21,07/08/2020
CAREMARK HINCKLEY BOSWORTH & BLABY&&ISHC3015,Home Care / Domiciliary,904.05,04/09/2020
CAREMARK HINCKLEY BOSWORTH & BLABY&&ISHC3015,Home Care / Domiciliary,761.74,04/09/2020
CAREMARK HINCKLEY BOSWORTH & BLABY&&ISHC3015,Home Care / Domiciliary,-548.66,07/08/2020
CAREMARK HINCKLEY BOSWORTH & BLABY&&ISHC3015,Home Care / Domiciliary,790.91,04/09/2020
CAREMARK HINCKLEY BOSWORTH & BLABY&&ISHC3015,Home Care / Domiciliary,1435.92,04/09/2020
CAREMARK HINCKLEY BOSWORTH & BLABY&&ISHC3015,Home Care / Domiciliary,1019.52,04/09/2020
CAREMARK HINCKLEY BOSWORTH & BLABY&&ISHC3015,Home Care / Domiciliary,1898.41,04/09/2020
CAREMARK HINCKLEY BOSWORTH & BLABY&&ISHC3015,Home Care / Domiciliary,531.79,04/09/2020
CAREMARK HINCKLEY BOSWORTH & BLABY&&ISHC3015,Payments in Advance,5450,14/08/2020
CAREMARK HINCKLEY BOSWORTH & BLABY&&ISHC3015,Payments in Advance,5120,09/09/2020
CAREMARK HINCKLEY BOSWORTH & BLABY&&ISHC3015,Payments in Advance,17004,14/08/2020
Carers Direct Homecare Ltd,Private Contractors,4347,25/08/2020
Carers Direct Homecare Ltd,Private Contractors,1134,01/09/2020
Carers Trust East Midlands,Private Contractors,2380.65,09/09/2020
Carers Trust East Midlands,Private Contractors,1960.1,09/09/2020
Carers Trust East Midlands,Private Contractors,1923.6,09/09/2020
Carers Trust East Midlands,Private Contractors,1894.4,09/09/2020
CARERS TRUST EAST MIDLANDS&&ISHC5076,Payments in Advance,1344,28/08/2020
CARERS TRUST EAST MIDLANDS&&ISHC5076,Voluntary Associations,26000,28/08/2020
CARERS TRUST EAST MIDLANDS&&ISHC5076,Voluntary Associations,26000,28/09/2020
CARING HANDS DOMICILIARY CARE LTD&&ISHC3229,Home Care / Domiciliary,2542.85,07/08/2020
CARING HANDS DOMICILIARY CARE LTD&&ISHC3229,Home Care / Domiciliary,1274.85,04/09/2020
CARING HANDS DOMICILIARY CARE LTD&&ISHC3229,Home Care / Domiciliary,664.07,07/08/2020
CARING HANDS DOMICILIARY CARE LTD&&ISHC3229,Home Care / Domiciliary,98444.33,04/09/2020
CARING HANDS DOMICILIARY CARE LTD&&ISHC3229,Home Care / Domiciliary,102439.44,07/08/2020
CARING HANDS DOMICILIARY CARE LTD&&ISHC3229,Home Care / Domiciliary,978.43,04/09/2020
CARING HANDS DOMICILIARY CARE LTD&&ISHC3229,Home Care / Domiciliary,777.81,07/08/2020
CARING HANDS DOMICILIARY CARE LTD&&ISHC3229,Home Care / Domiciliary,-609.62,07/08/2020
CARING HANDS DOMICILIARY CARE LTD&&ISHC3229,Payments in Advance,10820,14/08/2020
CARING HANDS DOMICILIARY CARE LTD&&ISHC3229,Payments in Advance,8470,09/09/2020
CARING HANDS DOMICILIARY CARE LTD&&ISHC3229,Payments in Advance,41592,14/08/2020
CARING HANDS DOMICILIARY CARE LTD&&ISHC3229,Other Agency & Cont Services,1000,25/08/2020
CARING HANDS LEICESTER LTD&&ISHC3209,Home Care / Domiciliary,3552.26,04/09/2020
CARING HANDS LEICESTER LTD&&ISHC3209,Home Care / Domiciliary,660.8,07/08/2020
CARING HANDS LEICESTER LTD&&ISHC3209,Home Care / Domiciliary,31904.04,04/09/2020
CARING HANDS LEICESTER LTD&&ISHC3209,Home Care / Domiciliary,36299.82,07/08/2020
CARING HANDS LEICESTER LTD&&ISHC3209,Home Care / Domiciliary,3793.94,04/09/2020
CARING HANDS LEICESTER LTD&&ISHC3209,Home Care / Domiciliary,6679.97,07/08/2020
CARING HANDS LEICESTER LTD&&ISHC3209,Home Care / Domiciliary,594.72,07/08/2020
CARING HANDS LEICESTER LTD&&ISHC3209,Home Care / Domiciliary,594.72,04/09/2020
CARING HANDS LEICESTER LTD&&ISHC3209,Home Care / Domiciliary,1394.2,07/08/2020
CARING HANDS LEICESTER LTD&&ISHC3209,Home Care / Domiciliary,1541.82,07/08/2020
CARING HANDS LEICESTER LTD&&ISHC3209,Home Care / Domiciliary,832.86,04/09/2020
CARING HANDS LEICESTER LTD&&ISHC3209,Home Care / Domiciliary,565.16,07/08/2020
CARING HANDS LEICESTER LTD&&ISHC3209,Home Care / Domiciliary,693.84,07/08/2020
CARING HANDS LEICESTER LTD&&ISHC3209,Payments in Advance,4300,14/08/2020
CARING HANDS LEICESTER LTD&&ISHC3209,Payments in Advance,2900,09/09/2020
CARING HANDS LEICESTER LTD&&ISHC3209,Payments in Advance,8240,14/08/2020
Carlton Construction Services,Suspense,5498.7,14/08/2020
Carlton Construction Services,Suspense,6501.9,04/09/2020
Carlton Construction Services,Suspense,9460.2,28/08/2020
Carlton Construction Services,Suspense,8321.4,04/09/2020
Carlton Construction Services,Suspense,7716,18/09/2020
Carlton Construction Services,Suspense,3111.3,18/09/2020
Carlton Construction Services,Suspense,6473.7,25/09/2020
CARMEN DASAOLU&&EYRSCMA00014,Grants,922.5,28/08/2020
Carter Brown The Expert Service Ltd,Other Transfer Payments,1175.16,23/09/2020
Casaegis Ltd,Private Contractors,3200,21/08/2020
Casaegis Ltd,Private Contractors,4600,25/09/2020
Castle Donington College Academy,Payment to Ext SEN Providers,-3932,24/09/2020
Castle Donington College Academy,Payment to Ext SEN Providers,1589,25/08/2020
Castle Donington College Academy,Payment to Ext SEN Providers,6993,24/09/2020
Castle Donington Museum Trust,Other Transfer Payments,1500,11/09/2020
CASTLE PLAYGROUP&&EYRS1394,Grants,524.55,07/09/2020
Castle Rock High Academy,Payment to Ext SEN Providers,-9523,24/09/2020
Castle Rock High Academy,Children&Families Spprt Servs,650,06/08/2020
Castle Rock High Academy,Children&Families Spprt Servs,650,06/08/2020
Castle Rock High Academy,Children&Families Spprt Servs,650,06/08/2020
Castle Rock High Academy,Payment to Ext SEN Providers,2938,25/08/2020
Castle Rock High Academy,Payment to Ext SEN Providers,14281,24/09/2020
CASTLE VIEW DAY NURSERY&&EYRS1758,Grants,688.86,28/08/2020
CEDAR HOUSE CARE HOME LTD&&SSAROE40413,Residential,17988,21/09/2020
CEDAR HOUSE CARE HOME LTD&&SSAROE40413,Residential,24773,24/08/2020
CEDAR HOUSE CARE HOME LTD&&SSAROE40413,Residential,3324.3,21/09/2020
CEDAR HOUSE CARE HOME LTD&&SSAROE40413,Residential,732.14,24/08/2020
CEDAR HOUSE CARE HOME LTD&&SSAROE40413,Residential,-895,21/09/2020
CEDAR HOUSE CARE HOME LTD&&SSAROE40413,Payments in Advance,625,18/08/2020
CEDAR HOUSE CARE HOME LTD&&SSAROE40413,Payments in Advance,800,14/09/2020
CEDAR HOUSE CARE HOME LTD&&SSAROE40413,Payments in Advance,23850,07/08/2020
Cedars Academy Lionheart Academies Trust,Children&Families Spprt Servs,650,06/08/2020
Cedars Academy Lionheart Academies Trust,Payment to Ext SEN Providers,-4340,24/09/2020
Cedars Academy Lionheart Academies Trust,Payment to Ext SEN Providers,-4018,24/09/2020
Cedars Academy Lionheart Academies Trust,Payment to Ext SEN Providers,1678,25/08/2020
Cedars Academy Lionheart Academies Trust,Payment to Ext SEN Providers,7382,24/09/2020
Cedars Academy Lionheart Academies Trust,Payment to Ext SEN Providers,3763,24/09/2020
Cedars Academy Lionheart Academies Trust,Payment to Ext SEN Providers,855,25/08/2020
Cedars Academy Lionheart Academies Trust,Payment to Ext SEN Providers,8333,30/09/2020
Central Coaches Ltd,Home to Sch Trans - Buses,2396.62,16/09/2020
Centrebus Holdings Ltd T/A Hinckley Bus,Minimum Cost Contracts,31765.97,14/08/2020
Centrebus Holdings Ltd T/A Hinckley Bus,Minimum Cost Contracts,3632,11/08/2020
Centrebus Holdings Ltd T/A Hinckley Bus,Minimum Cost Contracts,39057.21,21/08/2020
Centrebus Holdings Ltd T/A Hinckley Bus,Minimum Cost Contracts,3979.15,21/08/2020
Centrebus Ltd,Minimum Cost Contracts,43171.08,20/08/2020
Centrebus Ltd,Minimum Cost Contracts,86750.13,20/08/2020
Charitable Giving,Personal Accounts - Other,677.25,13/08/2020
Charitable Giving,Personal Accounts - Other,675.25,04/09/2020
Chariteens Residential Family Centre,Private Contractors,21700,14/09/2020
Charles Vig,Other Transfer Payments,715,03/09/2020
Charlotte Higgins,Fees & Charges (833),521,18/09/2020
Charnwood Nursery & Pre School,Private Contractors,894,21/09/2020
CHARNWOOD PARK&&SAROE40270,Residential,18132,21/09/2020
CHARNWOOD PARK&&SAROE40270,Residential,12132,24/08/2020
CHARNWOOD PARK&&SAROE40270,Residential,3642.86,21/09/2020
CHARNWOOD PARK&&SAROE40270,Residential,3000,21/09/2020
CHARNWOOD PARK&&SAROE40270,Residential,2035.71,21/09/2020
CHARNWOOD PARK&&SAROE40270,Payments in Advance,500,18/08/2020
CHARNWOOD PARK&&SAROE40270,Payments in Advance,500,14/09/2020
CHARNWOOD PARK&&SAROE40270,Payments in Advance,5830,07/08/2020
Chartwell Trust Care,Private Contractors,19134.44,07/08/2020
Chartwell Trust Care,Private Contractors,19134.44,25/09/2020
CHARTWELL TRUST CARE PLC&&SSARO2345,Residential,17597.28,21/09/2020
CHARTWELL TRUST CARE PLC&&SSARO2345,Residential,17597.28,24/08/2020
CHARTWELL TRUST CARE PLC&&SSARO2345,Residential,13786.76,21/09/2020
CHARTWELL TRUST CARE PLC&&SSARO2345,Residential,13786.76,24/08/2020
CHARTWELL TRUST CARE PLC&&SSARO2345,Payments in Advance,3710,07/08/2020
CHATSWORTH LODGE (INDIGO CARE SERVICES)&&SSARO6013,Residential,2254.56,21/09/2020
CHATSWORTH LODGE (INDIGO CARE SERVICES)&&SSARO6013,Residential,-1076.18,24/08/2020
CHATSWORTH LODGE (INDIGO CARE SERVICES)&&SSARO6013,Residential,2254.56,24/08/2020
CHATSWORTH LODGE (INDIGO CARE SERVICES)&&SSARO6013,Residential,1127.28,24/08/2020
CHERRE RESIDENTIAL CARE LTD T/A AYEESHA RAJ&&SSAROE40381,Residential,17690.24,21/09/2020
CHERRE RESIDENTIAL CARE LTD T/A AYEESHA RAJ&&SSAROE40381,Residential,17690.24,24/08/2020
CHERRE RESIDENTIAL CARE LTD T/A AYEESHA RAJ&&SSAROE40381,Payments in Advance,875,18/08/2020
CHERRE RESIDENTIAL CARE LTD T/A AYEESHA RAJ&&SSAROE40381,Payments in Advance,10600,07/08/2020
CHERRYTREE CARE LTD&&SSAROE40314,Residential,19720,21/09/2020
CHERRYTREE CARE LTD&&SSAROE40314,Residential,20720,24/08/2020
CHERRYTREE CARE LTD&&SSAROE40314,Residential,2800,21/09/2020
CHERRYTREE CARE LTD&&SSAROE40314,Residential,3000,24/08/2020
CHERRYTREE CARE LTD&&SSAROE40314,Residential,1400,21/09/2020
CHERRYTREE CARE LTD&&SSAROE40314,Residential,3000,24/08/2020
CHERRYTREE CARE LTD&&SSAROE40314,Residential,3000,24/08/2020
CHERRYTREE CARE LTD&&SSAROE40314,Residential,1285.71,24/08/2020
CHERRYTREE CARE LTD&&SSAROE40314,Other Support,-1015.01,24/08/2020
CHERRYTREE CARE LTD&&SSAROE40314,Payments in Advance,875,18/08/2020
CHERRYTREE CARE LTD&&SSAROE40314,Payments in Advance,700,14/09/2020
CHERRYTREE CARE LTD&&SSAROE40314,Payments in Advance,21200,07/08/2020
CHESTNUTS ARNESBY LTD&&SSAROE40279,Payments in Advance,1225,18/08/2020
CHESTNUTS ARNESBY LTD&&SSAROE40279,Payments in Advance,900,14/09/2020
CHESTNUTS ARNESBY LTD&&SSAROE40279,Residential,2891.52,21/09/2020
CHESTNUTS ARNESBY LTD&&SSAROE40279,Residential,2891.52,24/08/2020
CHESTNUTS ARNESBY LTD&&SSAROE40279,Residential,3686.57,21/09/2020
CHESTNUTS ARNESBY LTD&&SSAROE40279,Residential,41571.01,21/09/2020
CHESTNUTS ARNESBY LTD&&SSAROE40279,Residential,41571.01,24/08/2020
CHESTNUTS ARNESBY LTD&&SSAROE40279,Residential,1677.44,24/08/2020
CHESTNUTS ARNESBY LTD&&SSAROE40279,Residential,4167.43,21/09/2020
CHESTNUTS ARNESBY LTD&&SSAROE40279,Residential,-2306.48,24/08/2020
CHESTNUTS ARNESBY LTD&&SSAROE40279,Residential,1858.34,24/08/2020
Child Care Bureau Ltd,Other Agency & Cont Services,3432.14,28/08/2020
Child Care Bureau Ltd,Other Agency & Cont Services,3387.86,28/08/2020
Child Care Bureau Ltd,Other Agency & Cont Services,3321.43,30/09/2020
Child Care Bureau Ltd,Other Agency & Cont Services,3278.57,30/09/2020
Child Psychology Service,Other Agency & Cont Services,1788,28/08/2020
Child Psychology Service,Other Agency & Cont Services,630,10/09/2020
Childrens Therapy Solutions Ltd,Other Agency & Cont Services,748,11/09/2020
Chloe Cunningham,Other Transfer Payments,1000,29/09/2020
CHOICES FOR LIFE (UK)LTD&&CLCD3323,Day / CLC Services,52749.83,04/09/2020
CHOICES FOR LIFE (UK)LTD&&CLCD3323,Managed/Traditional Services,52749.83,04/09/2020
CHOICES FOR LIFE (UK)LTD&&CLCD3323,Day / CLC Services,2842.56,07/08/2020
CHOICES FOR LIFE (UK)LTD&&CLCD3323,Day / CLC Services,61767.91,07/08/2020
CHOICES FOR LIFE (UK)LTD&&CLCD3323,Managed/Traditional Services,61767.91,07/08/2020
CHOICES FOR LIFE (UK)LTD&&CLCD3323,Day / CLC Services,691.2,07/08/2020
CHOICES FOR LIFE (UK)LTD&&CLCD3323,Day / CLC Services,820.8,07/08/2020
Christ Church & St Peters CE Primary School Academy,Payment to Ext SEN Providers,746,25/08/2020
Christ Church & St Peters CE Primary School Academy,Payment to Ext SEN Providers,3282,24/09/2020
Christ Church & St Peters CE Primary School Academy,Payment to Ext SEN Providers,7333,24/09/2020
Christ Church & St Peters CE Primary School Academy,Payment to Ext SEN Providers,11672,24/09/2020
Christ Church & St Peters CE Primary School Academy,Payment to Ext SEN Providers,7083,25/08/2020
Christ Church & St Peters CE Primary School Academy,Payment to Ext SEN Providers,2653,25/08/2020
Chroma Therapies Ltd,Other Agency & Cont Services,4992,28/08/2020
Chubb Fire & Security Ltd,R & M of Buildings,694.49,06/08/2020
CHURCH FARM NURSING HOME LTD&&SSARO6033,Residential,5080,21/09/2020
CHURCH FARM NURSING HOME LTD&&SSARO6033,Residential,5080,24/08/2020
CHURCH FARM NURSING HOME LTD&&SSARO6033,Residential,4836,21/09/2020
CHURCH FARM NURSING HOME LTD&&SSARO6033,Residential,-4368,21/09/2020
CHURCH FARM NURSING HOME LTD&&SSAROE61089,Residential,3200,21/09/2020
CHURCH FARM NURSING HOME LTD&&SSAROE61089,Residential,3200,24/08/2020
Church Hill CE Junior Academy,Payment to Ext SEN Providers,1775,24/09/2020
Church Hill Infant School Academy,Payment to Ext SEN Providers,2478,24/09/2020
Church Langton Primary School (Academy),Payment to Ext SEN Providers,-3075,24/09/2020
Church Langton Primary School (Academy),Payment to Ext SEN Providers,919,25/08/2020
Church Langton Primary School (Academy),Payment to Ext SEN Providers,4042,24/09/2020
CITY & COUNTY CARE SERVICES LTD&&ISHCHC486,Home Care / Domiciliary,737.41,04/09/2020
CITY & COUNTY CARE SERVICES LTD&&ISHCHC486,Home Care / Domiciliary,7041.38,04/09/2020
CITY & COUNTY CARE SERVICES LTD&&ISHCHC486,Home Care / Domiciliary,7113.38,07/08/2020
CITY & COUNTY CARE SERVICES LTD&&ISHCHC486,Home Care / Domiciliary,599.82,04/09/2020
CITY & COUNTY CARE SERVICES LTD&&ISHCHC486,Payments in Advance,870,14/08/2020
CITY & COUNTY CARE SERVICES LTD&&ISHCHC486,Payments in Advance,780,09/09/2020
CITY & COUNTY CARE SERVICES LTD&&ISHCHC486,Payments in Advance,7936,14/08/2020
Civica UK Ltd,IT Equipment,684,21/08/2020
Claire Hemming,Other Transfer Payments,500,01/09/2020
Claire Howell,Advertising,1800,05/08/2020
Claire Howell,Advertising,1320,05/08/2020
Claire Howell,Advertising,960,06/08/2020
CLARE CARTWRIGHT&&EYRSEY396435,Grants,759.72,03/09/2020
Clare Coles,Advertising,570,28/08/2020
CLAREGRANGE LTD&&SSAROE47217,Residential,-885.71,24/08/2020
CLAREGRANGE LTD&&SSAROE47217,Private Contractors,8209.76,21/09/2020
CLAREGRANGE LTD&&SSAROE47217,Residential,8209.76,21/09/2020
CLAREGRANGE LTD&&SSAROE47217,Private Contractors,8209.76,24/08/2020
CLAREGRANGE LTD&&SSAROE47217,Residential,8209.76,24/08/2020
CLAREGRANGE LTD&&SSAROE47217,Payments in Advance,500,18/08/2020
CLAREGRANGE TRADING LTD T/A WALTHAM HALL&&SARO5107,Payments in Advance,2550,18/08/2020
CLAREGRANGE TRADING LTD T/A WALTHAM HALL&&SARO5107,Payments in Advance,2325,14/09/2020
CLAREGRANGE TRADING LTD T/A WALTHAM HALL&&SARO5107,Payments in Advance,42930,07/08/2020
CLAREGRANGE TRADING LTD T/A WALTHAM HALL&&SARO5107,Residential,1700,24/08/2020
CLAREGRANGE TRADING LTD T/A WALTHAM HALL&&SARO5107,Residential,-607.14,21/09/2020
CLAREGRANGE TRADING LTD T/A WALTHAM HALL&&SARO5107,Residential,50194.04,21/09/2020
CLAREGRANGE TRADING LTD T/A WALTHAM HALL&&SARO5107,Residential,52606.04,24/08/2020
CLAREGRANGE TRADING LTD T/A WALTHAM HALL&&SARO5107,Residential,5159.13,21/09/2020
CLAREGRANGE TRADING LTD T/A WALTHAM HALL&&SARO5107,Residential,8119.14,24/08/2020
CLAREGRANGE TRADING LTD T/A WALTHAM HALL&&SARO5107,Residential,988,21/09/2020
CLAREGRANGE TRADING LTD T/A WALTHAM HALL&&SARO5107,Residential,1809,24/08/2020
CLAREGRANGE TRADING LTD T/A WALTHAM HALL&&SARO5107,Residential,741,21/09/2020
CLAREGRANGE TRADING LTD T/A WALTHAM HALL&&SARO5107,Residential,1335.71,24/08/2020
CLAREGRANGE TRADING LTD T/A WALTHAM HALL&&SARO5107,Residential,-2307.14,24/08/2020
CLAREGRANGE TRADING LTD T/A WALTHAM HALL&&SARO5107,Residential,-947.57,21/09/2020
CLARENDON MEWS CARE LTD&&SSARO3356,Residential,26856.04,21/09/2020
CLARENDON MEWS CARE LTD&&SSARO3356,Residential,26368.82,24/08/2020
CLARENDON MEWS CARE LTD&&SSARO3356,Residential,2503.64,21/09/2020
CLARENDON MEWS CARE LTD&&SSARO3356,Residential,-580,21/09/2020
CLARENDON MEWS CARE LTD&&SSARO3356,Residential,888,21/09/2020
CLARENDON MEWS CARE LTD&&SSARO3356,Residential,738.57,21/09/2020
CLARENDON MEWS CARE LTD&&SSARO3356,Residential,-1864.5,21/09/2020
CLARENDON MEWS CARE LTD&&SSARO3356,Payments in Advance,1000,18/08/2020
CLARENDON MEWS CARE LTD&&SSARO3356,Payments in Advance,1000,14/09/2020
CLEARVISION (GB) T/A CHATAWAY RESIDENTIAL HOME LTD&&SSAROE40294,Residential,16968,21/09/2020
CLEARVISION (GB) T/A CHATAWAY RESIDENTIAL HOME LTD&&SSAROE40294,Residential,19380,24/08/2020
CLEARVISION (GB) T/A CHATAWAY RESIDENTIAL HOME LTD&&SSAROE40294,Payments in Advance,1000,18/08/2020
CLEARVISION (GB) T/A CHATAWAY RESIDENTIAL HOME LTD&&SSAROE40294,Payments in Advance,800,14/09/2020
CLEARVISION (GB) T/A CHATAWAY RESIDENTIAL HOME LTD&&SSAROE40294,Payments in Advance,7420,07/08/2020
Clockwise Credit Union  1,Personal Accounts - Other,4626,03/08/2020
Clockwise Credit Union  1,Personal Accounts - Other,4561,01/09/2020
Clockwise Credit Union  1,Personal Accounts - Other,545,01/09/2020
Coalville Cabs Ltd,Home to Sch Trans - Buses,1108.8,04/08/2020
Coalville Cabs Ltd,S.E.N. Taxi Hire,1507.2,07/08/2020
Coalville Cabs Ltd,S.E.N. Taxi Hire,561,04/08/2020
Coalville Cabs Ltd,Recharge of Pooled Transp Cost,877.2,03/08/2020
Coalville Cabs Ltd,S.E.N. Taxi Hire,2022.24,04/08/2020
Coalville Cabs Ltd,S.E.N. Taxi Hire,2616.96,04/08/2020
Coalville Cabs Ltd,S.E.N. Taxi Hire,3368.64,04/08/2020
Coalville Cabs Ltd,Home to Sch Trans - Buses,1210.32,04/08/2020
Coalville Cabs Ltd,S.E.N. Taxi Hire,1819.44,04/08/2020
Coalville Cabs Ltd,S.E.N. Taxi Hire,1197.84,04/08/2020
Coalville Cabs Ltd,S.E.N. Taxi Hire,1075.2,07/08/2020
Coalville Cabs Ltd,Recharge of Pooled Transp Cost,2629.44,04/08/2020
Coalville Cabs Ltd,S.E.N. Taxi Hire,2629.44,04/08/2020
Coalville Cabs Ltd,S.E.N. Taxi Hire,2514.3,04/08/2020
Coalville Cabs Ltd,S.E.N. Taxi Hire,2603.04,04/08/2020
Coalville Cabs Ltd,S.E.N. Taxi Hire,2072.4,04/08/2020
Coalville Cabs Ltd,S.E.N. Taxi Hire,2228.16,04/08/2020
Coalville Cabs Ltd,S.E.N. Taxi Hire,2239.92,10/09/2020
Coalville Cabs Ltd,S.E.N. Taxi Hire,2787.84,10/09/2020
Coalville Cabs Ltd,S.E.N. Taxi Hire,1230,10/09/2020
Coalville Cabs Ltd,S.E.N. Taxi Hire,3118.08,07/08/2020
Coalville Cabs Ltd,S.E.N. Taxi Hire,2571.36,04/08/2020
Coalville Cabs Ltd,Recharge of Pooled Transp Cost,1795.2,04/08/2020
Coalville Cabs Ltd,Recharge of Pooled Transp Cost,648,10/09/2020
Coalville Cabs Ltd,Personal Accounts - Govt Depts,1226.4,04/08/2020
Coalville Cabs Ltd,Recharge of Pooled Transp Cost,1226.4,04/08/2020
Coalville Cabs Ltd,Recharge of Pooled Transp Cost,1492.8,04/08/2020
Coalville Cabs Ltd,Recharge of Pooled Transp Cost,1999.2,04/08/2020
Coalville Cabs Ltd,S.E.N. Taxi Hire,2802.24,04/08/2020
Coalville Cabs Ltd,S.E.N. Taxi Hire,1425.6,04/08/2020
Coalville Cabs Ltd,S.E.N. Taxi Hire,2020.32,04/08/2020
Coalville Cabs Ltd,S.E.N. Taxi Hire,2558.34,10/09/2020
Coalville Cabs Ltd,S.E.N. Taxi Hire,1589.76,04/08/2020
Coalville Cabs Ltd,S.E.N. Taxi Hire,991.2,04/08/2020
Coalville Cabs Ltd,S.E.N. Taxi Hire,576.24,18/08/2020
Coalville Cabs Ltd,S.E.N. Taxi Hire,583.03,07/08/2020
Coalville Cabs Ltd,S.E.N. Taxi Hire,862.92,25/08/2020
Coalville Cabs Ltd,S.E.N. Taxi Hire,3088.8,04/08/2020
Coalville Cabs Ltd,Home to Sch Trans - Buses,1219.68,25/08/2020
Coalville Cabs Ltd,S.E.N. Taxi Hire,735.36,04/09/2020
Coalville Cabs Ltd,S.E.N. Taxi Hire,1804.8,10/09/2020
Coalville Cabs Ltd,S.E.N. Taxi Hire,1224.96,04/09/2020
Coalville Cabs Ltd,S.E.N. Taxi Hire,766.08,08/09/2020
Coalville Cabs Ltd,S.E.N. Taxi Hire,982.8,08/09/2020
Coalville Cabs Ltd,S.E.N. Taxi Hire,812.16,08/09/2020
Coalville Cabs Ltd,S.E.N. Taxi Hire,575.7,10/09/2020
Coalville Cabs Ltd,S.E.N. Taxi Hire,1067.52,08/09/2020
Coalville Cabs Ltd,S.E.N. Taxi Hire,760.32,08/09/2020
Coalville Cabs Ltd,S.E.N. Taxi Hire,702,08/09/2020
Coalville Cabs Ltd,S.E.N. Taxi Hire,691.2,08/09/2020
Coalville Cabs Ltd,S.E.N. Taxi Hire,761.76,08/09/2020
Coalville Cabs Ltd,Recharge of Pooled Transp Cost,956.16,08/09/2020
Coalville Cabs Ltd,S.E.N. Taxi Hire,956.16,08/09/2020
Coalville Cabs Ltd,S.E.N. Taxi Hire,2013.12,08/09/2020
Coalville Cabs Ltd,S.E.N. Taxi Hire,946.56,08/09/2020
Coalville Cabs Ltd,S.E.N. Taxi Hire,507,08/09/2020
Coalville Cabs Ltd,S.E.N. Taxi Hire,883.2,10/09/2020
Coalville Cabs Ltd,S.E.N. Taxi Hire,887.4,08/09/2020
Coalville Cabs Ltd,S.E.N. Taxi Hire,753.6,08/09/2020
Coalville Cabs Ltd,S.E.N. Taxi Hire,810.24,08/09/2020
Coalville Cabs Ltd,S.E.N. Taxi Hire,1013.76,08/09/2020
Coalville Cabs Ltd,S.E.N. Taxi Hire,615,04/09/2020
Coalville Cabs Ltd,S.E.N. Taxi Hire,967.68,08/09/2020
Coalville Cabs Ltd,S.E.N. Taxi Hire,1168.8,04/09/2020
Coalville Cabs Ltd,S.E.N. Taxi Hire,617.4,04/09/2020
Coalville Cabs Ltd,Recharge of Pooled Transp Cost,1056,04/09/2020
Coalville Cabs Ltd,Personal Accounts - Govt Depts,1324.8,04/09/2020
Coalville Cabs Ltd,Recharge of Pooled Transp Cost,1324.8,04/09/2020
Coalville Cabs Ltd,Recharge of Pooled Transp Cost,2520,08/09/2020
Coalville Cabs Ltd,Recharge of Pooled Transp Cost,940.8,04/09/2020
COBDEN PRESCHOOL&&EYRS1784,Grants,1572.75,07/09/2020
Cobden Primary School Academy,Payment to Ext SEN Providers,1453,25/08/2020
Cobden Primary School Academy,Payment to Ext SEN Providers,6394,24/09/2020
College Garth Ltf T/A College Garth Kennels,Other Support,640.68,03/08/2020
College Garth Ltf T/A College Garth Kennels,Other Support,984,04/08/2020
College Garth Ltf T/A College Garth Kennels,Other Support,930,28/08/2020
College Garth Ltf T/A College Garth Kennels,Other Support,962.09,01/09/2020
College Garth Ltf T/A College Garth Kennels,Other Support,521.15,28/08/2020
College Garth Ltf T/A College Garth Kennels,Other Support,1026,01/09/2020
College Garth Ltf T/A College Garth Kennels,Other Support,1005.61,01/09/2020
College Garth Ltf T/A College Garth Kennels,Other Support,659.51,01/09/2020
College Garth Ltf T/A College Garth Kennels,Other Support,1512.86,01/09/2020
College Garth Ltf T/A College Garth Kennels,Other Support,632.4,28/08/2020
College Garth Ltf T/A College Garth Kennels,Other Support,930,30/09/2020
College Garth Ltf T/A College Garth Kennels,Other Support,930,30/09/2020
College Garth Ltf T/A College Garth Kennels,Other Support,930,30/09/2020
College Garth Ltf T/A College Garth Kennels,Other Support,930,30/09/2020
College Garth Ltf T/A College Garth Kennels,Other Support,654.59,30/09/2020
College Garth Ltf T/A College Garth Kennels,Other Support,632.4,30/09/2020
COMMUNITY CARELINE NORTHWEST LEICESTERSHIRE LTD&&ISHCHC1514,Home Care / Domiciliary,-995.96,07/08/2020
COMMUNITY CARELINE NORTHWEST LEICESTERSHIRE LTD&&ISHCHC1514,Home Care / Domiciliary,12925.12,04/09/2020
COMMUNITY CARELINE NORTHWEST LEICESTERSHIRE LTD&&ISHCHC1514,Home Care / Domiciliary,10961.28,07/08/2020
COMMUNITY CARELINE NORTHWEST LEICESTERSHIRE LTD&&ISHCHC1514,Home Care / Domiciliary,2726.14,04/09/2020
COMMUNITY CARELINE NORTHWEST LEICESTERSHIRE LTD&&ISHCHC1514,Home Care / Domiciliary,2223.46,07/08/2020
COMMUNITY CARELINE NORTHWEST LEICESTERSHIRE LTD&&ISHCHC1514,Payments in Advance,1270,14/08/2020
COMMUNITY CARELINE NORTHWEST LEICESTERSHIRE LTD&&ISHCHC1514,Payments in Advance,1030,09/09/2020
COMMUNITY CARELINE NORTHWEST LEICESTERSHIRE LTD&&ISHCHC1514,Payments in Advance,21448,14/08/2020
COMMUNITY LIVING PROJECT&&SSAROE56011,Residential,25806.08,21/09/2020
COMMUNITY LIVING PROJECT&&SSAROE56011,Residential,25806.08,24/08/2020
COMMUNITY LIVING PROJECT&&SSAROE56011,Payments in Advance,750,18/08/2020
COMMUNITY LIVING PROJECT&&SSAROE56011,Payments in Advance,600,14/09/2020
COMMUNITY LIVING PROJECT&&SSAROE56011,Payments in Advance,4240,07/08/2020
Compass Fostering Central Ltd,Other Agency & Cont Services,3609.23,28/08/2020
Compass Fostering Central Ltd,Other Agency & Cont Services,3609.23,28/08/2020
Compass Fostering Central Ltd,Other Agency & Cont Services,3609.23,28/08/2020
Compass Fostering Central Ltd,Other Agency & Cont Services,3458.79,28/08/2020
Compass Fostering Central Ltd,Other Agency & Cont Services,3607.92,28/08/2020
Compass Fostering Central Ltd,Other Agency & Cont Services,3012.98,28/08/2020
Compass Fostering Central Ltd,Other Agency & Cont Services,-12372.72,28/08/2020
Compass Fostering Central Ltd,Other Agency & Cont Services,3162,28/08/2020
Compass Fostering Central Ltd,Other Agency & Cont Services,5380.67,28/08/2020
Compass Fostering Central Ltd,Other Agency & Cont Services,15980.64,28/08/2020
Compass Fostering Central Ltd,Other Agency & Cont Services,-12372.72,28/08/2020
Compass Fostering Central Ltd,Other Agency & Cont Services,3740.2,28/08/2020
Compass Fostering Central Ltd,Other Agency & Cont Services,-12444,28/08/2020
Compass Fostering Central Ltd,Other Agency & Cont Services,3760.15,28/08/2020
Compass Fostering Central Ltd,Other Agency & Cont Services,-11946.24,28/08/2020
Compass Fostering Central Ltd,Other Agency & Cont Services,3012.93,28/08/2020
Compass Fostering Central Ltd,Other Agency & Cont Services,16646.62,28/08/2020
Compass Fostering Central Ltd,Other Agency & Cont Services,15981.95,28/08/2020
Compass Fostering Central Ltd,Other Agency & Cont Services,15431.36,28/08/2020
Compass Fostering Central Ltd,Other Agency & Cont Services,-12372.72,28/08/2020
Compass Fostering Central Ltd,Other Agency & Cont Services,3256.86,28/08/2020
Compass Fostering Central Ltd,Other Agency & Cont Services,16074.18,28/08/2020
Compass Fostering Central Ltd,Other Agency & Cont Services,3885.67,28/08/2020
Compass Fostering Central Ltd,Other Agency & Cont Services,3162,28/08/2020
Compass Fostering Central Ltd,Other Agency & Cont Services,3012.98,28/08/2020
Compass Fostering Central Ltd,Other Agency & Cont Services,15981.95,28/08/2020
Compass Fostering Central Ltd,Other Agency & Cont Services,1821.43,28/08/2020
Compass Fostering Central Ltd,Other Agency & Cont Services,3458.79,28/08/2020
Compass Fostering Central Ltd,Other Agency & Cont Services,-12888.26,28/08/2020
Compass Fostering Central Ltd,Other Agency & Cont Services,3133.71,30/09/2020
Compass Fostering Central Ltd,Other Agency & Cont Services,3133.71,30/09/2020
Compass Fostering Central Ltd,Other Agency & Cont Services,3133.71,30/09/2020
Compass Fostering Central Ltd,Other Agency & Cont Services,3003.12,30/09/2020
Compass Fostering Central Ltd,Other Agency & Cont Services,3133.45,30/09/2020
Compass Fostering Central Ltd,Other Agency & Cont Services,2915.78,30/09/2020
Compass Fostering Central Ltd,Other Agency & Cont Services,3060,30/09/2020
Compass Fostering Central Ltd,Other Agency & Cont Services,5207.1,30/09/2020
Compass Fostering Central Ltd,Other Agency & Cont Services,3133.45,30/09/2020
Compass Fostering Central Ltd,Other Agency & Cont Services,3619.54,30/09/2020
Compass Fostering Central Ltd,Other Agency & Cont Services,3133.5,30/09/2020
Compass Fostering Central Ltd,Other Agency & Cont Services,2915.74,30/09/2020
Compass Fostering Central Ltd,Other Agency & Cont Services,3264.04,30/09/2020
Compass Fostering Central Ltd,Other Agency & Cont Services,3133.71,30/09/2020
Compass Fostering Central Ltd,Other Agency & Cont Services,3025.76,30/09/2020
Compass Fostering Central Ltd,Other Agency & Cont Services,3151.8,30/09/2020
Compass Fostering Central Ltd,Other Agency & Cont Services,3642.81,30/09/2020
Compass Fostering Central Ltd,Other Agency & Cont Services,8742.75,30/09/2020
Compass Fostering Central Ltd,Other Agency & Cont Services,2591.82,30/09/2020
Compass Fostering Central Ltd,Other Agency & Cont Services,3060,30/09/2020
Compass Fostering Central Ltd,Other Agency & Cont Services,2915.78,30/09/2020
Compass Fostering Central Ltd,Other Agency & Cont Services,3133.71,30/09/2020
Compass Fostering Central Ltd,Other Agency & Cont Services,3003.12,30/09/2020
COMPASSION & CARE LTD(&&ISHC9109),Home Care / Domiciliary,888.86,04/09/2020
COMPASSION & CARE LTD(&&ISHC9109),Home Care / Domiciliary,2184.91,07/08/2020
COMPASSION & CARE LTD(&&ISHC9109),Payments in Advance,8436,14/08/2020
COMPASSION & CARE LTD(&&ISHC9109),Payments in Advance,1020,21/08/2020
Conatus Child Psychology,Other Agency & Cont Services,1250,18/09/2020
Conatus Child Psychology,Other Agency & Cont Services,2499.37,18/09/2020
Conatus Child Psychology,Other Agency & Cont Services,2500,18/09/2020
Conatus Child Psychology,Other Agency & Cont Services,2170,18/09/2020
Concerto Support Services Ltd,IT Equipment,14400,30/09/2020
Concord Cars Ltd,R&M of Vehicles-Non Contract,731.6,27/08/2020
Concord Cars Ltd,R&M of Vehicles-Non Contract,1179.13,04/09/2020
CONDOVER COLLEGE LTD&&SSAROE1331,Payments in Advance,500,18/08/2020
CONDOVER COLLEGE LTD&&SSAROE1331,Residential,20814.12,21/09/2020
CONDOVER COLLEGE LTD&&SSAROE1331,Residential,20814.12,24/08/2020
CONIFER LODGE&&SSAROE40296,Residential,1714.29,24/08/2020
CONIFER LODGE&&SSAROE40296,Residential,13420,21/09/2020
CONIFER LODGE&&SSAROE40296,Other Support,-2142.86,24/08/2020
CONIFER LODGE&&SSAROE40296,Residential,13620,24/08/2020
CONIFER LODGE&&SSAROE40296,Residential,4063.56,21/09/2020
CONIFER LODGE&&SSAROE40296,Residential,1500,24/08/2020
CONIFER LODGE&&SSAROE40296,Residential,1822.11,24/08/2020
CONIFER LODGE&&SSAROE40296,Other Support,-2429.49,24/08/2020
CONIFER LODGE&&SSAROE40296,Residential,600,24/08/2020
CONIFER LODGE&&SSAROE40296,Residential,-2250,21/09/2020
CONIFER LODGE&&SSAROE40296,Residential,642.86,21/09/2020
CONIFER LODGE&&SSAROE40296,Payments in Advance,700,18/08/2020
CONIFER LODGE&&SSAROE40296,Payments in Advance,800,14/09/2020
CONIFER LODGE&&SSAROE40296,Payments in Advance,10600,07/08/2020
Cornerstones Group Ltd,Private Contractors,4714.29,06/08/2020
Cornerstones Group Ltd,Private Contractors,4871.43,04/09/2020
Cosby Community Library,Voluntary Associations,660,25/09/2020
Cosby Primary School Academy,Payment to Ext SEN Providers,1105,24/09/2020
Countesthorpe Leysland Community College (Life Multi Academy Trust),Payment to Ext SEN Providers,-3206,24/09/2020
Countesthorpe Leysland Community College (Life Multi Academy Trust),Children&Families Spprt Servs,232404.34,10/09/2020
Countesthorpe Leysland Community College (Life Multi Academy Trust),Payment to Ext SEN Providers,789,25/08/2020
Countesthorpe Leysland Community College (Life Multi Academy Trust),Payment to Ext SEN Providers,4326,24/09/2020
Countesthorpe Leysland Community College (Life Multi Academy Trust),Children&Families Spprt Servs,650,06/08/2020
Countesthorpe Parish Council,Furniture,542.51,04/09/2020
Countesthorpe Parish Council,Transfer from Reserves,1691,17/09/2020
Cove Care Residential Ltd,Private Contractors,21000,18/08/2020
Cove Care Residential Ltd,Private Contractors,21700,07/09/2020
Coventry College,Payment to Ext SEN Providers,3116.66,09/09/2020
CRAEGMOOR FACILITIES CO LTD RE CHARNWOOD LODGE&&SSAROE346,Residential,15738.92,24/08/2020
CRAEGMOOR FACILITIES CO LTD RE CHARNWOOD LODGE&&SSAROE346,Payments in Advance,9010,07/08/2020
CRAEGMOOR FACILITIES CO LTD RE HALIFAX DRIVE&&SSAROE29669A,Residential,20933,21/09/2020
CRAEGMOOR FACILITIES CO LTD RE HALIFAX DRIVE&&SSAROE29669A,Residential,7639.88,24/08/2020
CRAEGMOOR FACILITIES CO LTD RE HALIFAX DRIVE&&SSAROE29669A,Residential,11209.71,21/09/2020
CRAEGMOOR FACILITIES CO LTD RE HALIFAX DRIVE&&SSAROE29669A,Residential,-2453.91,21/09/2020
CRAEGMOOR FACILITIES CO LTD RE MAR LODGE&&SSAROE66405,Payments in Advance,750,18/08/2020
CRAEGMOOR FACILITIES CO LTD RE MAR LODGE&&SSAROE66405,Payments in Advance,600,14/09/2020
CRAEGMOOR FACILITIES CO LTD RE MAR LODGE&&SSAROE66405,Payments in Advance,3710,07/08/2020
CRAEGMOOR FACILITIES CO LTD RE MAR LODGE&&SSAROE66405,Residential,17980.68,21/09/2020
CRAEGMOOR FACILITIES CO LTD RE MAR LODGE&&SSAROE66405,Residential,17980.68,24/08/2020
CRAEGMOOR FACILITIES CO LTD RE MEADOWS&&SSAROE40227,Payments in Advance,2125,18/08/2020
CRAEGMOOR FACILITIES CO LTD RE MEADOWS&&SSAROE40227,Payments in Advance,1800,14/09/2020
CRAEGMOOR FACILITIES CO LTD RE MEADOWS&&SSAROE40227,Payments in Advance,18020,07/08/2020
CRAEGMOOR FACILITIES CO LTD RE MEADOWS&&SSAROE40227,Residential,40190.04,21/09/2020
CRAEGMOOR FACILITIES CO LTD RE MEADOWS&&SSAROE40227,Residential,46832.04,24/08/2020
CRAEGMOOR FACILITIES CO LTD RE MEADOWS&&SSAROE40227,Residential,1897.15,21/09/2020
CRAEGMOOR FACILITIES CO LTD RE MEADOWS&&SSAROE40227,Residential,3320,24/08/2020
CRAEGMOOR FACILITIES CO LTD RE MEADOWS&&SSAROE40227,Residential,-2892.86,24/08/2020
CRAEGMOOR FACILITIES CO LTD RE MEADOWS&&SSAROE40227,Residential,746.28,21/09/2020
CRAEGMOOR FACILITIES COMPANY LTD&&SSAROE8,Residential,6567.6,21/09/2020
CRAEGMOOR FACILITIES COMPANY LTD&&SSAROE8,Residential,6567.6,24/08/2020
Crawford & Company Adjusters (Uk) Ltd,Miscellaneous Insurance,600,06/08/2020
Crawford & Company Adjusters (Uk) Ltd,Miscellaneous Insurance,1218,06/08/2020
Crawford & Company Adjusters (Uk) Ltd,Miscellaneous Insurance,852,21/08/2020
Credo Care Ltd,Other Agency & Cont Services,6961.71,28/08/2020
Credo Care Ltd,Other Agency & Cont Services,6737.14,30/09/2020
Creswell HeritageTrust,Other Transfer Payments,1365,29/09/2020
Croxton Kerrial CE Primary School Academy,Payment to Ext SEN Providers,-2097,24/09/2020
Croxton Kerrial CE Primary School Academy,Payment to Ext SEN Providers,520,25/08/2020
Croxton Kerrial CE Primary School Academy,Payment to Ext SEN Providers,2288,24/09/2020
CSN Care Group Ltd,Payments in Advance,6384,23/09/2020
CSS LTD T/A GRETTON HOMES&&SARO3372,Residential,7183.48,21/09/2020
CSS LTD T/A GRETTON HOMES&&SARO3372,Residential,7183.48,24/08/2020
CYGNET (DH) LTD T/A TOLLER ROAD&&SARO5736,Residential,17800.8,21/09/2020
CYGNET (DH) LTD T/A TOLLER ROAD&&SARO5736,Residential,17800.8,24/08/2020
CYGNET HEALTH T/A 15 THE SYCAMORES&&SARO8633,Residential,15306.48,21/09/2020
CYGNET HEALTH T/A 15 THE SYCAMORES&&SARO8633,Residential,15306.48,24/08/2020
Daisybrook Ltd,Private Contractors,6857.14,17/09/2020
Daisybrook Ltd,Private Contractors,20571.43,17/09/2020
Dandelion Group Ltd,Payments in Advance,1008,28/08/2020
DAVID LEWIS CENTRE&&SSAROE72,Residential,2282.44,21/09/2020
DAVID LEWIS CENTRE&&SSAROE72,Residential,2282.44,24/08/2020
David Ross Education Trust Re Charnwood College,Payment to Ext SEN Providers,-2802,24/09/2020
David Ross Education Trust Re Charnwood College,Children&Families Spprt Servs,650,06/08/2020
David Ross Education Trust Re Charnwood College,Payment to Ext SEN Providers,682,25/08/2020
David Ross Education Trust Re Charnwood College,Payment to Ext SEN Providers,3003,24/09/2020
David Whyman Map Sales,Materials,-867.27,27/08/2020
David Whyman Map Sales,Personal Accounts - Other,867.27,27/08/2020
Dawn Gartshore,Residential,810.86,10/08/2020
DEAFINITELY INDEPENDENT&&SSAROE700,Residential,3852,24/08/2020
DEAFINITELY INDEPENDENT&&SSAROE700,Residential,4197.04,24/08/2020
De Ferrers Trust - The Pingle Academy,Other Local Authorities,2174.36,07/08/2020
De Lisle College (St Thomas Aquinas Catholic Multi Academy Trust),Payment to Ext SEN Providers,-4325,24/09/2020
De Lisle College (St Thomas Aquinas Catholic Multi Academy Trust),Payment to Ext SEN Providers,1694,25/08/2020
De Lisle College (St Thomas Aquinas Catholic Multi Academy Trust),Payment to Ext SEN Providers,7455,24/09/2020
Department For Work & Pensions,Provisions Expenditure,665,27/08/2020
Department For Work & Pensions,Provisions Expenditure,4165,24/08/2020
Department of Work and Pensions CMS Employers,Personal Accounts - Other,1763.72,14/09/2020
Department of Work and Pensions CMS Employers,Personal Accounts - Other,1745.42,14/08/2020
DERWEN COLLEGE&&SSAROE205,Residential,3950.24,21/09/2020
DERWEN COLLEGE&&SSAROE205,Residential,3950.24,24/08/2020
Desford Library Community Hub (DLCH),Voluntary Associations,1206,28/09/2020
D Greenwood,Recharge of Pooled Transp Cost,725,20/08/2020
D&H COMMUNITY SUPPORT LTD&&CLCD3309,Day / CLC Services,627.9,07/08/2020
D&H COMMUNITY SUPPORT LTD&&CLCD3309,Day / CLC Services,543.55,07/08/2020
D&H COMMUNITY SUPPORT LTD&&CLCD3309,Day / CLC Services,80272.05,04/09/2020
D&H COMMUNITY SUPPORT LTD&&CLCD3309,Managed/Traditional Services,80272.05,04/09/2020
D&H COMMUNITY SUPPORT LTD&&CLCD3309,Day / CLC Services,76876.08,07/08/2020
D&H COMMUNITY SUPPORT LTD&&CLCD3309,Managed/Traditional Services,76876.08,07/08/2020
D&H COMMUNITY SUPPORT LTD&&CLCD3309,Day / CLC Services,1960.32,04/09/2020
D&H COMMUNITY SUPPORT LTD&&CLCD3309,Day / CLC Services,1817.02,04/09/2020
D&H COMMUNITY SUPPORT LTD&&CLCD3309,Day / CLC Services,1313.9,07/08/2020
D&H COMMUNITY SUPPORT LTD&&CLCD3309,Day / CLC Services,1937.38,04/09/2020
D&H COMMUNITY SUPPORT LTD&&CLCD3309,Day / CLC Services,640.27,07/08/2020
DIGINEW LTD&&SSARO3320,Residential,2238.76,21/09/2020
DIGINEW LTD&&SSARO3320,Residential,2238.76,24/08/2020
Diocese of Leicester Academies Trust,Buildings - Operational,117790.09,17/09/2020
Direct Cabs,S.E.N. Taxi Hire,550,02/09/2020
DIRECT CARE WORKS LTD&&CLCD3327,Payments in Advance,3360,28/08/2020
DIRECT CARE WORKS LTD&&CLCD3327,Day / CLC Services,10075.68,04/09/2020
DIRECT CARE WORKS LTD&&CLCD3327,Day / CLC Services,10019.93,07/08/2020
Direct Taxis,S.E.N. Taxi Hire,1680,04/08/2020
Direct Taxis,S.E.N. Taxi Hire,3120,04/08/2020
Direct Taxis,S.E.N. Taxi Hire,1560,08/09/2020
Diverse Academies Trust T/A East Leake Academy,Children&Families Spprt Servs,650,06/08/2020
Diversity Social Care Ltd,Private Contractors,1932,20/08/2020
Diversity Social Care Ltd,Private Contractors,2415,02/09/2020
Diversity Social Care Ltd,Private Contractors,1932,30/09/2020
Diversity Social Care Ltd,Private Contractors,3888,11/09/2020
Diversity Social Care Ltd,Private Contractors,3240,30/09/2020
DIWALI LTD&&SSAROE40425,Residential,4840,21/09/2020
DIWALI LTD&&SSAROE40425,Residential,4840,24/08/2020
DNA Legal,Advertising,939.6,11/09/2020
DNA Legal,Advertising,1058.4,04/08/2020
DNA Legal,Advertising,1105.2,18/09/2020
DNA Legal,Advertising,956.4,07/09/2020
DN&KJ LOCK T/A MOAT HOUSE RETIREMENT LTD&&SSAROE276,Payments in Advance,1750,18/08/2020
DN&KJ LOCK T/A MOAT HOUSE RETIREMENT LTD&&SSAROE276,Payments in Advance,1400,14/09/2020
DN&KJ LOCK T/A MOAT HOUSE RETIREMENT LTD&&SSAROE276,Payments in Advance,31270,07/08/2020
DN&KJ LOCK T/A MOAT HOUSE RETIREMENT LTD&&SSAROE276,Residential,50371.08,21/09/2020
DN&KJ LOCK T/A MOAT HOUSE RETIREMENT LTD&&SSAROE276,Residential,-1282.02,21/09/2020
DN&KJ LOCK T/A MOAT HOUSE RETIREMENT LTD&&SSAROE276,Residential,50251.6,24/08/2020
DN&KJ LOCK T/A MOAT HOUSE RETIREMENT LTD&&SSAROE276,Residential,4076.08,21/09/2020
DN&KJ LOCK T/A MOAT HOUSE RETIREMENT LTD&&SSAROE276,Residential,1521.94,21/09/2020
DN&KJ LOCK T/A MOAT HOUSE RETIREMENT LTD&&SSAROE276,Residential,1438.06,21/09/2020
Dodds Solicitors LLP,Advertising,2107.76,13/08/2020
Dodds Solicitors LLP,Advertising,1291.2,11/09/2020
Dodds Solicitors LLP,Advertising,840,11/09/2020
Dorothy Goodman School Academy,Payment to Ext SEN Providers,-39236,24/09/2020
Dorothy Goodman School Academy,Payment to Ext SEN Providers,-3333,24/09/2020
Dorothy Goodman School Academy,Payment to Ext SEN Providers,-167756,24/09/2020
Dorothy Goodman School Academy,Children&Families Spprt Servs,650,06/08/2020
Dorothy Goodman School Academy,Payment to Ext SEN Providers,20000,24/09/2020
Dorothy Goodman School Academy,Payment to Ext SEN Providers,171862,24/09/2020
Dorothy Goodman School Academy,Payment to Ext SEN Providers,59077,24/09/2020
Dorothy Goodman School Academy,Payment to Ext SEN Providers,191454,25/08/2020
Dorothy Goodman School Academy,Payment to Ext SEN Providers,61587,24/09/2020
Dorothy Goodman School Academy,Payment to Ext SEN Providers,5333,25/08/2020
Dorothy Goodman School Academy,Payment to Ext SEN Providers,16399,25/08/2020
Doughty Street Chambers,Advertising,3780,28/08/2020
Dragonfly Children's Services Ltd,Private Contractors,32243.72,03/09/2020
Driven By Riide Ltd T/A  ADT Taxis,S.E.N. Taxi Hire,627,11/08/2020
Driven By Riide Ltd T/A  ADT Taxis,S.E.N. Taxi Hire,818.4,11/08/2020
Driven By Riide Ltd T/A  ADT Taxis,S.E.N. Taxi Hire,921.18,11/08/2020
Driven By Riide Ltd T/A  ADT Taxis,S.E.N. Taxi Hire,712.54,04/08/2020
Driven By Riide Ltd T/A  ADT Taxis,S.E.N. Taxi Hire,640.2,04/08/2020
Driven By Riide Ltd T/A  ADT Taxis,S.E.N. Taxi Hire,528,04/08/2020
Driven By Riide Ltd T/A  ADT Taxis,S.E.N. Taxi Hire,650.23,04/08/2020
Driven By Riide Ltd T/A  ADT Taxis,S.E.N. Taxi Hire,604.03,04/08/2020
Driven By Riide Ltd T/A  ADT Taxis,S.E.N. Taxi Hire,712.8,04/08/2020
Driven By Riide Ltd T/A  ADT Taxis,Recharge of Pooled Transp Cost,594,07/08/2020
Driven By Riide Ltd T/A  ADT Taxis,S.E.N. Taxi Hire,792,04/08/2020
Driven By Riide Ltd T/A  ADT Taxis,S.E.N. Taxi Hire,1330,11/08/2020
Driven By Riide Ltd T/A  ADT Taxis,Recharge of Pooled Transp Cost,968,18/08/2020
Driven By Riide Ltd T/A  ADT Taxis,S.E.N. Taxi Hire,2332.37,11/08/2020
Driven By Riide Ltd T/A  ADT Taxis,Home to Sch Trans - Buses,1848,11/08/2020
Driven By Riide Ltd T/A  ADT Taxis,S.E.N. Taxi Hire,1101.24,11/08/2020
Driven By Riide Ltd T/A  ADT Taxis,S.E.N. Taxi Hire,1768.8,11/08/2020
Driven By Riide Ltd T/A  ADT Taxis,S.E.N. Taxi Hire,1209.49,11/08/2020
Driven By Riide Ltd T/A  ADT Taxis,S.E.N. Taxi Hire,1002.24,11/08/2020
Driven By Riide Ltd T/A  ADT Taxis,S.E.N. Taxi Hire,1555.68,11/08/2020
Driven By Riide Ltd T/A  ADT Taxis,S.E.N. Taxi Hire,756,11/08/2020
Driven By Riide Ltd T/A  ADT Taxis,S.E.N. Taxi Hire,2064.48,11/08/2020
Driven By Riide Ltd T/A  ADT Taxis,Recharge of Pooled Transp Cost,1728,11/08/2020
Driven By Riide Ltd T/A  ADT Taxis,Home to Sch Trans - Buses,672,10/09/2020
Driven By Riide Ltd T/A  ADT Taxis,S.E.N. Taxi Hire,819,15/09/2020
Driven By Riide Ltd T/A  ADT Taxis,S.E.N. Taxi Hire,1036.61,15/09/2020
Driven By Riide Ltd T/A  ADT Taxis,S.E.N. Taxi Hire,562.8,10/09/2020
Driven By Riide Ltd T/A  ADT Taxis,S.E.N. Taxi Hire,656.88,10/09/2020
Driven By Riide Ltd T/A  ADT Taxis,Recharge of Pooled Transp Cost,1632,10/09/2020
Driven By Riide Ltd T/A  ADT Taxis,Recharge of Pooled Transp Cost,587.66,10/09/2020
Dudley Lodge Safeguarding Children Services,Private Contractors,9839.29,24/09/2020
DUNELM (NORTH EAST AUTISM SOCIETY)&&SSAROE66277,Residential,7885.32,21/09/2020
DUNELM (NORTH EAST AUTISM SOCIETY)&&SSAROE66277,Residential,7885.32,24/08/2020
DUNSFORD (LINKAGE COMMUNITY TRUST)&&SSARO5724,Residential,3019.68,21/09/2020
DUNSFORD (LINKAGE COMMUNITY TRUST)&&SSARO5724,Residential,3019.68,24/08/2020
DWELL LTD T/A LONG LEA &&SSARO3392,Residential,2013,21/09/2020
DWELL LTD T/A LONG LEA &&SSARO3392,Residential,2013,24/08/2020
DWELL LTD T/A LONG LEA &&SSARO3392,Residential,893.58,21/09/2020
DWELL LTD T/A LONG LEA &&SSARO3392,Residential,595.72,21/09/2020
Dynamic Care Services Ltd,Payments in Advance,672,08/09/2020
EARLY YEARS NURSERY&&EYRS1697,Grants,1363.05,04/09/2020
EARLY YEARS NURSERY&&EYRS1697,Grants,2726.1,07/09/2020
Eastfield Primary School Academy,Grants,3000,08/09/2020
Eastfield Primary School Academy,Payment to Ext SEN Providers,-5373,24/09/2020
Eastfield Primary School Academy,Payment to Ext SEN Providers,1904,25/08/2020
Eastfield Primary School Academy,Payment to Ext SEN Providers,9118,24/09/2020
EGERTON LODGE&&SSAROE40415,Payments in Advance,1125,18/08/2020
EGERTON LODGE&&SSAROE40415,Payments in Advance,900,14/09/2020
EGERTON LODGE&&SSAROE40415,Payments in Advance,24380,07/08/2020
EGERTON LODGE&&SSAROE40415,Residential,26775.24,21/09/2020
EGERTON LODGE&&SSAROE40415,Residential,23809.52,24/08/2020
EGERTON LODGE&&SSAROE40415,Residential,-2780.42,21/09/2020
EGERTON LODGE&&SSAROE40415,Residential,-2067.43,21/09/2020
EILEEN WILSON&&EYRS2079,Grants,1353,28/08/2020
Elaines Taxis Ltd,Home to Sch Trans - Buses,556.8,11/08/2020
Elaines Taxis Ltd,S.E.N. Taxi Hire,558,11/08/2020
Elaine Stewart,Residential,1629.02,10/08/2020
ELIZABETH FITZROY HOMES (HUWS)&&SSARO3075,Residential,3269.4,21/09/2020
ELIZABETH FITZROY HOMES (HUWS)&&SSARO3075,Residential,3269.4,24/08/2020
Ellesmere College,Children&Families Spprt Servs,650,04/08/2020
Elliott Hall For Youth & Community CIC,Grants,960,06/08/2020
ELLIOTT RESIDENTIAL CARE HOME&&SSAROE40471,Residential,4840,21/09/2020
ELLIOTT RESIDENTIAL CARE HOME&&SSAROE40471,Residential,2420,24/08/2020
ELLIOTT RESIDENTIAL CARE HOME&&SSAROE40471,Residential,1210,21/09/2020
ELLIOTT RESIDENTIAL CARE HOME&&SSAROE40471,Residential,1210,24/08/2020
Elliotts Coaches Ltd,Home to Sch Trans - Buses,3025.88,03/08/2020
Elliotts Coaches Ltd,Home to Sch Trans - Buses,1100.32,14/08/2020
ELMS RESIDENTIAL HOME LTD T/A THE ELMS&&SSAROE40414,Payments in Advance,1550,18/08/2020
ELMS RESIDENTIAL HOME LTD T/A THE ELMS&&SSAROE40414,Payments in Advance,1175,14/09/2020
ELMS RESIDENTIAL HOME LTD T/A THE ELMS&&SSAROE40414,Payments in Advance,9540,07/08/2020
ELMS RESIDENTIAL HOME LTD T/A THE ELMS&&SSAROE40414,Residential,2239.71,21/09/2020
ELMS RESIDENTIAL HOME LTD T/A THE ELMS&&SSAROE40414,Residential,26532,21/09/2020
ELMS RESIDENTIAL HOME LTD T/A THE ELMS&&SSAROE40414,Residential,28944,24/08/2020
ELMS RESIDENTIAL HOME LTD T/A THE ELMS&&SSAROE40414,Residential,1119.86,21/09/2020
Embrace Multi Academy Trust T/A Arnesby Church of England Primary School (ARN),Payment to Ext SEN Providers,-1536,24/09/2020
Embrace Multi Academy Trust T/A Arnesby Church of England Primary School (ARN),Payment to Ext SEN Providers,678,25/08/2020
Embrace Multi Academy Trust T/A Arnesby Church of England Primary School (ARN),Payment to Ext SEN Providers,2982,24/09/2020
Embrace Multi Academy Trust T/A Brockington College Academy (BRO),Children&Families Spprt Servs,650,06/08/2020
Embrace Multi Academy Trust T/A Brockington College Academy (BRO),Children&Families Spprt Servs,650,06/08/2020
Embrace Multi Academy Trust T/A Brockington College Academy (BRO),Children&Families Spprt Servs,650,06/08/2020
Embrace Multi Academy Trust T/A Brockington College Academy (BRO),Children&Families Spprt Servs,650,06/08/2020
Embrace Multi Academy Trust T/A Brockington College Academy (BRO),Children&Families Spprt Servs,650,06/08/2020
Embrace Multi Academy Trust T/A Brockington College Academy (BRO),Children&Families Spprt Servs,650,06/08/2020
Embrace Multi Academy Trust T/A Brockington College Academy (BRO),Payment to Ext SEN Providers,-10714,24/09/2020
Embrace Multi Academy Trust T/A Brockington College Academy (BRO),Payment to Ext SEN Providers,3475,25/08/2020
Embrace Multi Academy Trust T/A Brockington College Academy (BRO),Payment to Ext SEN Providers,14548,24/09/2020
Embrace Multi Academy Trust T/A Croft C of E Primary School (CRO),Payment to Ext SEN Providers,-6010,24/09/2020
Embrace Multi Academy Trust T/A Croft C of E Primary School (CRO),Payment to Ext SEN Providers,1610,25/08/2020
Embrace Multi Academy Trust T/A Croft C of E Primary School (CRO),Payment to Ext SEN Providers,7346,24/09/2020
Embrace Multi Academy Trust T/A Manorfield Church of England Primary School (MAN),Payment to Ext SEN Providers,-4210,24/09/2020
Embrace Multi Academy Trust T/A Manorfield Church of England Primary School (MAN),Payment to Ext SEN Providers,1227,25/08/2020
Embrace Multi Academy Trust T/A Manorfield Church of England Primary School (MAN),Payment to Ext SEN Providers,5878,24/09/2020
Embrace Multi Academy Trust T/A Sherrier Church of England Primary School (SHE),Children&Families Spprt Servs,-1134,24/09/2020
Embrace Multi Academy Trust T/A Sherrier Church of England Primary School (SHE),Other Services,-1672,24/09/2020
Embrace Multi Academy Trust T/A Sherrier Church of England Primary School (SHE),Children&Families Spprt Servs,6738,24/09/2020
Embrace Multi Academy Trust T/A Whetstone St Peters CE Primary School (STP),Payment to Ext SEN Providers,-1235,24/09/2020
Embrace Multi Academy Trust T/A Whetstone St Peters CE Primary School (STP),Payment to Ext SEN Providers,697,25/08/2020
Embrace Multi Academy Trust T/A Whetstone St Peters CE Primary School (STP),Payment to Ext SEN Providers,2748,24/09/2020
Emmanuel Christian School,Payment to Ext SEN Providers,9825.92,18/09/2020
EMSA HOMEHELP LTD T/A BLUEBIRD CARE LEICS&&ISHC3983,Payments in Advance,1440,14/08/2020
EMSA HOMEHELP LTD T/A BLUEBIRD CARE LEICS&&ISHC3983,Payments in Advance,1210,09/09/2020
EMSA HOMEHELP LTD T/A BLUEBIRD CARE LEICS&&ISHC3983,Payments in Advance,2868,14/08/2020
EMSA HOMEHELP LTD T/A BLUEBIRD CARE LEICS&&ISHC3983,Home Care / Domiciliary,15600.77,04/09/2020
EMSA HOMEHELP LTD T/A BLUEBIRD CARE LEICS&&ISHC3983,Home Care / Domiciliary,16144.97,07/08/2020
Enable Inclusive Support Ltd,Payments in Advance,672,23/09/2020
ENDERBY DANEMILL PRE SCHOOL&&EYRS140316,Grants,1258.2,07/09/2020
Enderby Danemill Primary School T/A Discovery Schools Academies Trust Ltd,Payment to Ext SEN Providers,-5905,24/09/2020
Enderby Danemill Primary School T/A Discovery Schools Academies Trust Ltd,Payment to Ext SEN Providers,2936,25/08/2020
Enderby Danemill Primary School T/A Discovery Schools Academies Trust Ltd,Payment to Ext SEN Providers,13505,24/09/2020
Enderby Parish Council,Voluntary Associations,790,25/09/2020
ENRYCH&&CLCD3315,Payments in Advance,750,07/09/2020
ENRYCH&&CLCD3315,Day / CLC Services,23444.06,04/09/2020
ENRYCH&&CLCD3315,Day / CLC Services,25592.65,07/08/2020
Environment Agency,Other Expenditure,3161,17/08/2020
Environment Agency,Infrastructure,501.25,11/08/2020
Environment Agency,Water Authority Precepts,75783.75,09/09/2020
EON,Electricity,1071.59,27/08/2020
EON,Electricity,857.36,14/09/2020
Erics Fuels Ltd,S.E.N. Taxi Hire,900,17/08/2020
Erics Fuels Ltd,S.E.N. Taxi Hire,862.5,17/08/2020
Erics Fuels Ltd,S.E.N. Taxi Hire,623.64,17/08/2020
Esland North Ltd,Private Contractors,19707.14,24/09/2020
Esland North Ltd,Private Contractors,-1521.43,11/08/2020
Esland North Ltd,Private Contractors,19707.14,07/08/2020
Esland North Ltd,Private Contractors,31442.86,11/08/2020
Esland North Ltd,Private Contractors,19707.14,07/08/2020
Esland North Ltd,Private Contractors,31442.86,07/08/2020
Esland North Ltd,Payment to Ext SEN Providers,3565,25/08/2020
Esland North Ltd,Private Contractors,19707.14,17/09/2020
Esland North Ltd,Private Contractors,31442.86,18/09/2020
Esland North Ltd,Private Contractors,19707.14,17/09/2020
Esland North Ltd,Payment to Ext SEN Providers,3255,25/08/2020
Esland North Ltd,Private Contractors,19707.14,18/09/2020
Esland South Ltd,Private Contractors,19707.14,12/08/2020
ESPA LTD&&SSAROE247,Residential,16523.92,21/09/2020
ESPA LTD&&SSAROE247,Residential,16523.92,24/08/2020
Ester Cilento,Payment to Ext SEN Providers,4291.6,25/09/2020
Ethel Summerland,Managed/Traditional Services,584.25,16/09/2020
Event Engineering Ltd,Grants,4853.89,25/09/2020
Everest Taxis,Recharge of Pooled Transp Cost,542.5,18/08/2020
Evington Executive Cars,Recharge of Pooled Transp Cost,720,08/09/2020
EVINGTON GRANGE LTD&&SARO3365,Residential,6433.82,21/09/2020
EVINGTON GRANGE LTD&&SARO3365,Residential,6433.82,24/08/2020
EVOLVING CARE&&ISHC2825,Payments in Advance,750,21/08/2020
EVOLVING CARE&&ISHC2825,Home Care / Domiciliary,3351.2,04/09/2020
EVOLVING CARE&&ISHC2825,Home Care / Domiciliary,2817.84,07/08/2020
Express Cars,S.E.N. Taxi Hire,826.8,14/08/2020
Eyam Museum Ltd,Other Transfer Payments,9800,10/09/2020
Fairfield Community Primary School Academy,Payment to Ext SEN Providers,727,25/08/2020
Fairfield Community Primary School Academy,Payment to Ext SEN Providers,3197,24/09/2020
Farndon Fields Academy Ltd T/A Discovery Schools Academy Trust,Payment to Ext SEN Providers,-3038,24/09/2020
Farndon Fields Academy Ltd T/A Discovery Schools Academy Trust,Payment to Ext SEN Providers,834,25/08/2020
Farndon Fields Academy Ltd T/A Discovery Schools Academy Trust,Payment to Ext SEN Providers,3671,24/09/2020
Farol Ltd,Materials,566.81,25/09/2020
Favour Recruitment Ltd T/A Favour Health Ltd,Other Agency & Cont Services,6448,07/08/2020
Favour Recruitment Ltd T/A Favour Health Ltd,Other Agency & Cont Services,5205.7,13/08/2020
Favour Recruitment Ltd T/A Favour Health Ltd,Other Agency & Cont Services,6448,20/08/2020
Favour Recruitment Ltd T/A Favour Health Ltd,Other Agency & Cont Services,7228,20/08/2020
Favour Recruitment Ltd T/A Favour Health Ltd,Other Agency & Cont Services,6448,27/08/2020
Favour Recruitment Ltd T/A Favour Health Ltd,Other Agency & Cont Services,7228,27/08/2020
Favour Recruitment Ltd T/A Favour Health Ltd,Other Agency & Cont Services,6448,10/09/2020
Favour Recruitment Ltd T/A Favour Health Ltd,Other Agency & Cont Services,7228,03/09/2020
Favour Recruitment Ltd T/A Favour Health Ltd,Other Agency & Cont Services,6448,10/09/2020
Favour Recruitment Ltd T/A Favour Health Ltd,Other Agency & Cont Services,7228,10/09/2020
Favour Recruitment Ltd T/A Favour Health Ltd,Other Agency & Cont Services,6448,17/09/2020
Favour Recruitment Ltd T/A Favour Health Ltd,Other Agency & Cont Services,7228,17/09/2020
Favour Recruitment Ltd T/A Favour Health Ltd,Other Agency & Cont Services,7228,24/09/2020
F AZAM T/A MARSTON COURT LTD&&SSAROE1054,Residential,15233.8,21/09/2020
F AZAM T/A MARSTON COURT LTD&&SSAROE1054,Residential,15233.8,24/08/2020
FAZILA LATIF&&EYRSEY542166,Grants,555.9,28/08/2020
FC Poplar,Grants,700,13/08/2020
FIELD HOUSE NURSING HOME LTD&&SSARO2972,Residential,3567.36,21/09/2020
FIELD HOUSE NURSING HOME LTD&&SSARO2972,Residential,3567.36,24/08/2020
Finite Element Analysis Ltd T/A LUSAS,IT Equipment,8040,25/09/2020
FIRST CHOICE CARE AGENCY LTD&&ISHC3934,Payments in Advance,1440,14/08/2020
FIRST CHOICE CARE AGENCY LTD&&ISHC3934,Payments in Advance,1070,09/09/2020
FIRST CHOICE CARE AGENCY LTD&&ISHC3934,Payments in Advance,5448,14/08/2020
FIRST CHOICE CARE AGENCY LTD&&ISHC3934,Home Care / Domiciliary,14057.19,04/09/2020
FIRST CHOICE CARE AGENCY LTD&&ISHC3934,Home Care / Domiciliary,15107.19,07/08/2020
First Class Tailored Solutions Ltd,Payment to Ext SEN Providers,5544,07/08/2020
First Class Tailored Solutions Ltd,Payment to Ext SEN Providers,10320,07/08/2020
First Class Tailored Solutions Ltd,Payment to Ext SEN Providers,15540,07/08/2020
First Class Tailored Solutions Ltd,Payment to Ext SEN Providers,7536,24/09/2020
First Leicester City Bus Ltd,Minimum Cost Contracts,5461.99,06/08/2020
First Leicester City Bus Ltd,Minimum Cost Contracts,304583.28,06/08/2020
First Leicester City Bus Ltd,Minimum Cost Contracts,7076.35,01/09/2020
First Leicester City Bus Ltd,Minimum Cost Contracts,334201.69,01/09/2020
FIRSTMILE LTD&&SSAROE642,Payments in Advance,2100,18/08/2020
FIRSTMILE LTD&&SSAROE642,Payments in Advance,2075,14/09/2020
FIRSTMILE LTD&&SSAROE642,Payments in Advance,16430,07/08/2020
FIRSTMILE LTD&&SSAROE642,Residential,50263.43,21/09/2020
FIRSTMILE LTD&&SSAROE642,Residential,41820,24/08/2020
FIRSTMILE LTD&&SSAROE642,Residential,5494,21/09/2020
FIRSTMILE LTD&&SSAROE642,Residential,2706,24/08/2020
FIRSTMILE LTD&&SSAROE642,Residential,1206,21/09/2020
FIRSTMILE LTD&&SSAROE642,Residential,1206,24/08/2020
FIRSTMILE LTD&&SSAROE642,Residential,-947.57,24/08/2020
FIRSTMILE LTD&&SSAROE642,Residential,-775.29,21/09/2020
FIRSTSMILE LTD&&SSAROE6,Payments in Advance,1225,18/08/2020
FIRSTSMILE LTD&&SSAROE6,Payments in Advance,1000,14/09/2020
FIRSTSMILE LTD&&SSAROE6,Payments in Advance,23850,07/08/2020
FIRSTSMILE LTD&&SSAROE6,Residential,25884,21/09/2020
FIRSTSMILE LTD&&SSAROE6,Residential,24708,24/08/2020
FIRSTSMILE LTD&&SSAROE6,Residential,1392.86,21/09/2020
FIRSTSMILE LTD&&SSAROE6,Residential,1178.57,24/08/2020
FIRSTSMILE LTD&&SSAROE6,Residential,750,21/09/2020
FIVE RIVERS LIVING LTD&&SSARO5939,Residential,2833.14,17/09/2020
FIVE RIVERS LIVING LTD&&SSARO5939,Residential,2144,24/08/2020
FIVE RIVERS LIVING LTD&&SSARO5939,Residential,-2144,17/09/2020
FIVE RIVERS LIVING LTD&&SSARO5939,Residential,-689.14,17/09/2020
Florian Buzbugan,S.E.N. Taxi Hire,1164.8,07/08/2020
Ford & Slater of Leicester,R&M of Vehicles-Non Contract,3055.84,11/09/2020
Ford & Slater of Leicester,R&M of Vehicles-Non Contract,856.69,25/09/2020
Ford & Slater of Leicester,R&M of Vehicles-Non Contract,1607.4,03/09/2020
Ford & Slater of Leicester,R&M of Vehicles-Non Contract,678,16/09/2020
Ford & Slater of Leicester,R&M of Vehicles-Non Contract,941.22,02/09/2020
Ford & Slater of Leicester,R&M of Vehicles-Non Contract,936,10/09/2020
Ford & Slater of Leicester,R&M of Vehicles-Non Contract,593.44,11/09/2020
Ford & Slater of Leicester,R&M of Vehicles-Non Contract,-780,28/08/2020
Forest Driveways,Suspense,5032.13,07/09/2020
Forest Driveways,Suspense,3818.25,16/09/2020
Forest Way School Academy Trust,Payment to Ext SEN Providers,-119989,24/09/2020
Forest Way School Academy Trust,Buildings - Operational,222017,18/08/2020
Forest Way School Academy Trust,Buildings - Operational,27983,26/08/2020
Forest Way School Academy Trust,Payment to Ext SEN Providers,119148,24/09/2020
Forest Way School Academy Trust,Payment to Ext SEN Providers,7339,24/09/2020
Forest Way School Academy Trust,Payment to Ext SEN Providers,128791,25/08/2020
Forest Way School Academy Trust,Payment to Ext SEN Providers,6667,30/09/2020
Forest Way School Academy Trust,Payment to Ext SEN Providers,884,25/08/2020
Fossebrook Primary School T/A Discovery Schools Academies Trust,Payment to Ext SEN Providers,-4327,24/09/2020
Fossebrook Primary School T/A Discovery Schools Academies Trust,Payment to Ext SEN Providers,1155,25/08/2020
Fossebrook Primary School T/A Discovery Schools Academies Trust,Payment to Ext SEN Providers,4339,24/09/2020
FOSSE HEALTHCARE LTD&&&&ISHC3231,Payments in Advance,9890,14/08/2020
FOSSE HEALTHCARE LTD&&&&ISHC3231,Payments in Advance,7760,09/09/2020
FOSSE HEALTHCARE LTD&&&&ISHC3231,Payments in Advance,24120,14/08/2020
FOSSE HEALTHCARE LTD&&&&ISHC3231,Payments in Advance,840,21/08/2020
FOSSE HEALTHCARE LTD&&&&ISHC3231,Home Care / Domiciliary,507.33,07/08/2020
FOSSE HEALTHCARE LTD&&&&ISHC3231,Home Care / Domiciliary,1851.83,04/09/2020
FOSSE HEALTHCARE LTD&&&&ISHC3231,Home Care / Domiciliary,82771.13,04/09/2020
FOSSE HEALTHCARE LTD&&&&ISHC3231,Home Care / Domiciliary,884.69,07/08/2020
FOSSE HEALTHCARE LTD&&&&ISHC3231,Home Care / Domiciliary,81355.42,07/08/2020
FOSSE HEALTHCARE LTD&&&&ISHC3231,Home Care / Domiciliary,1102.79,04/09/2020
FOSSE HEALTHCARE LTD&&&&ISHC3231,Home Care / Domiciliary,922.07,07/08/2020
FOSSE HEALTHCARE LTD&&&&ISHC3231,Home Care / Domiciliary,624.78,04/09/2020
FOSSE HEALTHCARE LTD&&&&ISHC3231,Home Care / Domiciliary,1868.77,07/08/2020
FOSSE HEALTHCARE LTD&&&&ISHC3231,Home Care / Domiciliary,635.53,04/09/2020
FOSSE HEALTHCARE LTD&&&&ISHC3231,Home Care / Domiciliary,505.69,04/09/2020
FOSSE HEALTHCARE LTD&&&&ISHC3231,Home Care / Domiciliary,771.91,07/08/2020
FOSSE HEALTHCARE LTD&&&&ISHC3231,Other Agency & Cont Services,1000,24/08/2020
Foster Care Associates Ltd,Other Agency & Cont Services,3568.1,28/08/2020
Foster Care Associates Ltd,Other Agency & Cont Services,3193.44,28/08/2020
Foster Care Associates Ltd,Other Agency & Cont Services,3398.04,28/08/2020
Foster Care Associates Ltd,Other Agency & Cont Services,3397.6,28/08/2020
Foster Care Associates Ltd,Other Agency & Cont Services,7351.03,28/08/2020
Foster Care Associates Ltd,Other Agency & Cont Services,3193.44,28/08/2020
Foster Care Associates Ltd,Other Agency & Cont Services,3568.1,28/08/2020
Foster Care Associates Ltd,Other Agency & Cont Services,3568.1,28/08/2020
Foster Care Associates Ltd,Other Agency & Cont Services,3397.6,28/08/2020
Foster Care Associates Ltd,Other Agency & Cont Services,3568.1,28/08/2020
Foster Care Associates Ltd,Other Agency & Cont Services,1496.3,30/09/2020
Foster Care Associates Ltd,Other Agency & Cont Services,3090.43,30/09/2020
Foster Care Associates Ltd,Other Agency & Cont Services,3288.43,30/09/2020
Foster Care Associates Ltd,Other Agency & Cont Services,3288,30/09/2020
Foster Care Associates Ltd,Other Agency & Cont Services,7113.9,30/09/2020
Foster Care Associates Ltd,Other Agency & Cont Services,3090.43,30/09/2020
Foster Care Associates Ltd,Other Agency & Cont Services,3453,30/09/2020
Foster Care Associates Ltd,Other Agency & Cont Services,3453,30/09/2020
Foster Care Associates Ltd,Other Agency & Cont Services,3288,30/09/2020
Foster Care Associates Ltd,Other Agency & Cont Services,3453,30/09/2020
Fostering People Ltd,Other Agency & Cont Services,3496.8,28/08/2020
Fostering People Ltd,Other Agency & Cont Services,3321.96,28/08/2020
Fostering People Ltd,Other Agency & Cont Services,3375.24,28/08/2020
Fostering People Ltd,Other Agency & Cont Services,3035.92,28/08/2020
Fostering People Ltd,Other Agency & Cont Services,3444.1,28/08/2020
Fostering People Ltd,Other Agency & Cont Services,3034.99,28/08/2020
Fostering People Ltd,Other Agency & Cont Services,3496.8,28/08/2020
Fostering People Ltd,Other Agency & Cont Services,3444.1,28/08/2020
Fostering People Ltd,Other Agency & Cont Services,3205.09,28/08/2020
Fostering People Ltd,Other Agency & Cont Services,3034.99,28/08/2020
Fostering People Ltd,Other Agency & Cont Services,3270.5,28/08/2020
Fostering People Ltd,Other Agency & Cont Services,3444.1,28/08/2020
Fostering People Ltd,Other Agency & Cont Services,3384,30/09/2020
Fostering People Ltd,Other Agency & Cont Services,3214.8,30/09/2020
Fostering People Ltd,Other Agency & Cont Services,3266.36,30/09/2020
Fostering People Ltd,Other Agency & Cont Services,2937.99,30/09/2020
Fostering People Ltd,Other Agency & Cont Services,3333,30/09/2020
Fostering People Ltd,Other Agency & Cont Services,2937.09,30/09/2020
Fostering People Ltd,Other Agency & Cont Services,3384,30/09/2020
Fostering People Ltd,Other Agency & Cont Services,3333,30/09/2020
Fostering People Ltd,Other Agency & Cont Services,3101.7,30/09/2020
Fostering People Ltd,Other Agency & Cont Services,2937.09,30/09/2020
Fostering People Ltd,Other Agency & Cont Services,3165,30/09/2020
Fostering People Ltd,Other Agency & Cont Services,3333,30/09/2020
FOUNDATION CARE LTD T/A MANTON HALL&&SSAROE40333,Residential,1880,21/09/2020
FOUNDATION CARE LTD T/A MANTON HALL&&SSAROE40333,Residential,1880,24/08/2020
FOUR SEASONS (EVEDALE LTD) RE THE WILLOWS&&SSAROE40243,Payments in Advance,1400,18/08/2020
FOUR SEASONS (EVEDALE LTD) RE THE WILLOWS&&SSAROE40243,Payments in Advance,1100,14/09/2020
FOUR SEASONS (EVEDALE LTD) RE THE WILLOWS&&SSAROE40243,Payments in Advance,31800,07/08/2020
FOUR SEASONS (EVEDALE LTD) RE THE WILLOWS&&SSAROE40243,Residential,43767.92,21/09/2020
FOUR SEASONS (EVEDALE LTD) RE THE WILLOWS&&SSAROE40243,Residential,39467.92,24/08/2020
FOUR SEASONS (EVEDALE LTD) RE THE WILLOWS&&SSAROE40243,Residential,1689.28,21/09/2020
FOUR SEASONS (EVEDALE LTD) RE THE WILLOWS&&SSAROE40243,Residential,-1998,21/09/2020
FOUR SEASONS (EVEDALE LTD) RE THE WILLOWS&&SSAROE40243,Residential,-1569.86,24/08/2020
FOUR SEASONS (EVEDALE) LTD&&SSARO3292,Private Contractors,2423.68,21/09/2020
FOUR SEASONS (EVEDALE) LTD&&SSARO3292,Private Contractors,-1155.98,24/08/2020
FOUR SEASONS (EVEDALE) LTD&&SSARO3292,Private Contractors,2423.68,24/08/2020
FOUR SEASONS (EVEDALE) LTD&&SSARO3292,Private Contractors,1211.84,24/08/2020
FOUR SEASONS LTD T/A THE OAKS AND LITTLE OAKS&&SSARO5384,Residential,2140,21/09/2020
FOUR SEASONS LTD T/A THE OAKS AND LITTLE OAKS&&SSARO5384,Residential,2140,24/08/2020
Fox Bennett,Other Expenditure,1602.7,09/09/2020
FREEDOM ACTIVE LTD&&CLCD3320,Day / CLC Services,5007.6,04/09/2020
FREEDOM ACTIVE LTD&&CLCD3320,Day / CLC Services,5007.6,07/08/2020
FREEDOM CARE LTD T/A PRIVATE ROAD   HUGGLESCOTE&&SARO3385,Payments in Advance,3180,07/08/2020
FREEDOM CARE LTD T/A PRIVATE ROAD   HUGGLESCOTE&&SARO3385,Residential,24760,21/09/2020
FREEDOM CARE LTD T/A PRIVATE ROAD   HUGGLESCOTE&&SARO3385,Residential,24760,24/08/2020
FREEDOM SUPPORT SOLUTIONS LTD&&CLCD4598,Day / CLC Services,2767.8,04/09/2020
FREEDOM SUPPORT SOLUTIONS LTD&&CLCD4598,Day / CLC Services,3256.8,07/08/2020
Friends of Fleckney Library,Furniture,1176.82,21/08/2020
Friends of Fleckney Library,Other Expenditure,3846,17/09/2020
Frisby CE Primary School Academy,Payment to Ext SEN Providers,-1361,24/09/2020
Frisby CE Primary School Academy,Payment to Ext SEN Providers,548,25/08/2020
Frisby CE Primary School Academy,Payment to Ext SEN Providers,2411,24/09/2020
FSCC Ltd T/A Footsteps Nursery,Other Transfer Payments,650.25,29/09/2020
FSCC Ltd T/A Footsteps Nursery,Other Transfer Payments,854.25,07/09/2020
FSHC NEWCO LTD T/A THE LAWNS CARE HOME&&SSAROE76864,Payments in Advance,1000,18/08/2020
FSHC NEWCO LTD T/A THE LAWNS CARE HOME&&SSAROE76864,Payments in Advance,900,14/09/2020
FSHC NEWCO LTD T/A THE LAWNS CARE HOME&&SSAROE76864,Payments in Advance,21730,07/08/2020
FSHC NEWCO LTD T/A THE LAWNS CARE HOME&&SSAROE76864,Residential,21920,21/09/2020
FSHC NEWCO LTD T/A THE LAWNS CARE HOME&&SSAROE76864,Residential,30552,24/08/2020
FSHC NEWCO LTD T/A THE LAWNS CARE HOME&&SSAROE76864,Residential,5182.86,24/08/2020
FTM Dance CIC (Forward Thinking Movement),Personal Accounts - Govt Depts,500,10/09/2020
FTM Dance CIC (Forward Thinking Movement),Personal Accounts - Govt Depts,550,10/09/2020
FTM Dance CIC (Forward Thinking Movement),Private Contractors,11899.8,07/08/2020
FTM Dance CIC (Forward Thinking Movement),Private Contractors,14536,25/09/2020
FTM Dance CIC (Forward Thinking Movement),Private Contractors,820,04/09/2020
FTM DANCE&&CLCD3324,Day / CLC Services,2981.37,04/09/2020
FTM DANCE&&CLCD3324,Day / CLC Services,3818.22,07/08/2020
Fullhurst Community College,Children&Families Spprt Servs,650,06/08/2020
Furzedown Primary School,Children&Families Spprt Servs,650,06/08/2020
Fusion Fostering,Other Agency & Cont Services,3850.64,28/08/2020
Fusion Fostering,Other Agency & Cont Services,3895.6,28/08/2020
Fusion Fostering,Other Agency & Cont Services,3609.29,28/08/2020
Fusion Fostering,Other Agency & Cont Services,3609.29,28/08/2020
Fusion Fostering,Other Agency & Cont Services,3726.43,30/09/2020
Fusion Fostering,Other Agency & Cont Services,3769.93,30/09/2020
Fusion Fostering,Other Agency & Cont Services,3492.86,30/09/2020
Fusion Fostering,Other Agency & Cont Services,3492.86,30/09/2020
FUTURE DIRECTIONS CIC&&SSARO3273,Residential,3227.52,21/09/2020
FUTURE DIRECTIONS CIC&&SSARO3273,Residential,3227.52,24/08/2020
GARENDON RESIDENTIAL HOME&&SSAROE46112,Payments in Advance,1125,18/08/2020
GARENDON RESIDENTIAL HOME&&SSAROE46112,Payments in Advance,900,14/09/2020
GARENDON RESIDENTIAL HOME&&SSAROE46112,Payments in Advance,7420,07/08/2020
GARENDON RESIDENTIAL HOME&&SSAROE46112,Residential,24808,21/09/2020
GARENDON RESIDENTIAL HOME&&SSAROE46112,Residential,24808,24/08/2020
Gartree High School Academy,Payment to Ext SEN Providers,-11680,24/09/2020
Gartree High School Academy,Payment to Ext SEN Providers,3465,25/08/2020
Gartree High School Academy,Payment to Ext SEN Providers,14025,24/09/2020
Gateway College,Payment to Ext SEN Providers,13035,11/08/2020
GB CARE LTD&&SSAROE928,Nursing,4347.6,21/09/2020
GB CARE LTD&&SSAROE928,Private Contractors,4347.6,21/09/2020
GB CARE LTD&&SSAROE928,Nursing,4347.6,24/08/2020
GB CARE LTD&&SSAROE928,Private Contractors,4347.6,24/08/2020
G D Bailey & Son,Grants,3312.5,24/09/2020
GD Bethell,Home to Sch Trans - Buses,6504.74,04/08/2020
GD Bethell,Home to Sch Trans - Buses,2365.36,21/08/2020
Geemarc Telecom SA,Aids & Adaptations,1004.76,17/09/2020
Gems Cabs Ltd,S.E.N. Taxi Hire,1075.2,07/08/2020
Gems Cabs Ltd,S.E.N. Taxi Hire,1056,07/08/2020
Gems Cabs Ltd,S.E.N. Taxi Hire,816,07/08/2020
Gems Cabs Ltd,S.E.N. Taxi Hire,816,07/08/2020
Gems Cabs Ltd,Recharge of Pooled Transp Cost,1020,07/08/2020
Gems Cabs Ltd,S.E.N. Taxi Hire,1020,07/08/2020
Generation Youth,Payment to Ext SEN Providers,2415,07/09/2020
Generation Youth,Payment to Ext SEN Providers,2760,28/08/2020
GENESIS HOMES (ESSEX) LTD&&SSARO1089,Payments in Advance,1875,18/08/2020
GENESIS HOMES (ESSEX) LTD&&SSARO1089,Payments in Advance,1400,14/09/2020
GENESIS HOMES (ESSEX) LTD&&SSARO1089,Payments in Advance,9540,07/08/2020
GENESIS HOMES (ESSEX) LTD&&SSARO1089,Residential,1542.86,24/08/2020
GENESIS HOMES (ESSEX) LTD&&SSARO1089,Residential,42164.72,21/09/2020
GENESIS HOMES (ESSEX) LTD&&SSARO1089,Residential,42164.72,24/08/2020
GENESIS HOMES (ESSEX) LTD&&SSARO1089,Other Support,-1885.71,24/08/2020
GENESIS HOMES (ESSEX) LTD&&SSARO1089,Residential,-2412,24/08/2020
GENESIS HOMES (ESSEX) LTD&&SSARO1089,Residential,-1892.58,21/09/2020
Geoff Raine T/A Geoffs Taxi Cabs,S.E.N. Taxi Hire,585,19/08/2020
Georgia Draper,Other Transfer Payments,1000,29/09/2020
GERAINT HOUSE LTD T/A GERAINT HOUSE&&SSARO8965,Residential,897.04,21/09/2020
GERAINT HOUSE LTD T/A GERAINT HOUSE&&SSARO8965,Residential,897.04,24/08/2020
Gilmorton Chandler CE Aided Primary School Academy,Payment to Ext SEN Providers,-3652,24/09/2020
Gilmorton Chandler CE Aided Primary School Academy,Receipts in Advance,42228.64,18/08/2020
Gilmorton Chandler CE Aided Primary School Academy,Receipts in Advance,61997.28,24/09/2020
Gilmorton Chandler CE Aided Primary School Academy,Payment to Ext SEN Providers,877,25/08/2020
Gilmorton Chandler CE Aided Primary School Academy,Payment to Ext SEN Providers,3860,24/09/2020
Glebe House (Charnwood) Ltd     1,Private Contractors,2524.5,11/09/2020
Glebe House (Charnwood) Ltd     1,Private Contractors,5130,01/09/2020
Glebe House (Charnwood) Ltd     1,Private Contractors,5130,21/09/2020
GLEBE HOUSE (CHARNWOOD) LTD&&CLCD3308,Day / CLC Services,40946.55,04/09/2020
GLEBE HOUSE (CHARNWOOD) LTD&&CLCD3308,Day / CLC Services,41427.65,07/08/2020
GLEBE HOUSE (CHARNWOOD) LTD&&CLCD3308,Day / CLC Services,716.4,07/08/2020
GLEBE HOUSE (CHARNWOOD) LTD&&CLCD3308,Day / CLC Services,834.84,07/08/2020
GLEE CARE LTD&&ISCH5871,Payments in Advance,2630,14/08/2020
GLEE CARE LTD&&ISCH5871,Payments in Advance,1560,09/09/2020
GLEE CARE LTD&&ISCH5871,Payments in Advance,3340,14/08/2020
Glenfield Parish Council,Other Local Authorities,4589,28/09/2020
Glenfield Primary School Academy,Payment to Ext SEN Providers,-2828,24/09/2020
Glenfield Primary School Academy,Payment to Ext SEN Providers,-7638,24/09/2020
Glenfield Primary School Academy,Payment to Ext SEN Providers,1158,25/08/2020
Glenfield Primary School Academy,Payment to Ext SEN Providers,5095,24/09/2020
Glenfield Primary School Academy,Payment to Ext SEN Providers,11159,24/09/2020
Glenfield Primary School Academy,Payment to Ext SEN Providers,2536,25/08/2020
Glen Hills Primary School Academy,Payment to Ext SEN Providers,-3586,24/09/2020
Glen Hills Primary School Academy,Payment to Ext SEN Providers,839,25/08/2020
Glen Hills Primary School Academy,Payment to Ext SEN Providers,3691,24/09/2020
Glenmere Primary School Academy,Payment to Ext SEN Providers,1371,24/09/2020
Glen Parva Parish Council,Voluntary Associations,621,25/09/2020
GMBATU,Fees & Charges (833),3809.15,13/08/2020
GMBATU,Suspense,3809.15,13/08/2020
GMBATU,Fees & Charges (833),3809.15,17/09/2020
GMBATU,Suspense,3809.15,17/09/2020
GOOSEBERRY BUSH T/A BUSH BABIES CHILDRENS NURSERIES LTD&&EYRS1343,Grants,838.8,04/09/2020
GP HOMECARE LTD T/A RADIS COMMUNITY CARE&&ISHC5054,Private Contractors,13695.45,28/08/2020
GP HOMECARE LTD T/A RADIS COMMUNITY CARE&&ISHC5054,Private Contractors,13695.45,28/09/2020
GP HOMECARE LTD T/A RADIS COMMUNITY CARE&&ISHC5054,Payments in Advance,1180,14/08/2020
GP HOMECARE LTD T/A RADIS COMMUNITY CARE&&ISHC5054,Payments in Advance,830,09/09/2020
GP HOMECARE LTD T/A RADIS COMMUNITY CARE&&ISHC5054,Payments in Advance,3912,14/08/2020
GP HOMECARE LTD T/A RADIS COMMUNITY CARE&&ISHC5054,Payments in Advance,2490,21/08/2020
GP HOMECARE LTD T/A RADIS COMMUNITY CARE&&ISHC5054,Home Care / Domiciliary,615.23,07/08/2020
GP HOMECARE LTD T/A RADIS COMMUNITY CARE&&ISHC5054,Home Care / Domiciliary,10624.47,04/09/2020
GP HOMECARE LTD T/A RADIS COMMUNITY CARE&&ISHC5054,Home Care / Domiciliary,10823.24,07/08/2020
GP HOMECARE LTD T/A RADIS COMMUNITY CARE&&ISHC5054,Home Care / Domiciliary,-525.31,04/09/2020
GRACE DIEU MANOR PREPARATORY SCHOOL&&EYRSEXMT0025,Grants,5303.34,03/09/2020
GRANGEWOOD LODGE&&SSAROE44233,Residential,2421.44,21/09/2020
GRANGEWOOD LODGE&&SSAROE44233,Residential,2421.44,24/08/2020
GRATIA&&SSAROE40405,Payments in Advance,625,18/08/2020
GRATIA&&SSAROE40405,Payments in Advance,500,14/09/2020
GRATIA&&SSAROE40405,Residential,15649.08,21/09/2020
GRATIA&&SSAROE40405,Residential,15649.08,24/08/2020
Great Bowden Academy,Payment to Ext SEN Providers,604,24/09/2020
Great Glen Community Library,Voluntary Associations,552,25/09/2020
GREEN LEAF HEALTHCARE LTD T/A LIVESEY LODGE CARE HOME&&SSAROE40457,Payments in Advance,1125,18/08/2020
GREEN LEAF HEALTHCARE LTD T/A LIVESEY LODGE CARE HOME&&SSAROE40457,Payments in Advance,800,14/09/2020
GREEN LEAF HEALTHCARE LTD T/A LIVESEY LODGE CARE HOME&&SSAROE40457,Payments in Advance,12720,07/08/2020
GREEN LEAF HEALTHCARE LTD T/A LIVESEY LODGE CARE HOME&&SSAROE40457,Residential,19340,21/09/2020
GREEN LEAF HEALTHCARE LTD T/A LIVESEY LODGE CARE HOME&&SSAROE40457,Residential,21752,24/08/2020
GREEN LEAF HEALTHCARE LTD T/A LIVESEY LODGE CARE HOME&&SSAROE40457,Residential,-2239.71,24/08/2020
Greystoke Primary School T/A Discovery Schools Academies Trust,Payment to Ext SEN Providers,-1438,24/09/2020
Greystoke Primary School T/A Discovery Schools Academies Trust,Payment to Ext SEN Providers,598,25/08/2020
Greystoke Primary School T/A Discovery Schools Academies Trust,Payment to Ext SEN Providers,2632,24/09/2020
Groby Community Library Group,Voluntary Associations,561.5,28/09/2020
Grosvenor Snooker Club,Grants,4931.56,11/09/2020
GROVE CARE LTD T/A OLIVE TREE HOUSE&&SSARO3373,Residential,2913.94,21/09/2020
GROVE CARE LTD T/A OLIVE TREE HOUSE&&SSARO3373,Residential,2913.94,24/08/2020
GR Stribblehill,S.E.N. Taxi Hire,897,04/08/2020
GR Stribblehill,S.E.N. Taxi Hire,900,04/08/2020
GR Stribblehill,S.E.N. Taxi Hire,1320,21/08/2020
GR Stribblehill,S.E.N. Taxi Hire,1315.6,21/08/2020
Gulam Sarver T/A Knighton Cars,S.E.N. Taxi Hire,1158.1,13/08/2020
Gulam Sarver T/A Knighton Cars,S.E.N. Taxi Hire,685.12,28/08/2020
HABILIS OPERATIONS LTD T/A WYNGATE&&SARO9294,Residential,2084,21/09/2020
HABILIS OPERATIONS LTD T/A WYNGATE&&SARO9294,Residential,2084,24/08/2020
Hafiz Muhammad Atif,S.E.N. Taxi Hire,1587.75,03/08/2020
Hafiz Muhammad Atif,S.E.N. Taxi Hire,876,14/08/2020
Hafiz Muhammad Atif,S.E.N. Taxi Hire,525,14/08/2020
HALES GROUP LTD&&ISHC3228,Payments in Advance,6350,14/08/2020
HALES GROUP LTD&&ISHC3228,Payments in Advance,5460,09/09/2020
HALES GROUP LTD&&ISHC3228,Payments in Advance,4560,14/08/2020
HALES GROUP LTD&&ISHC3228,Payments in Advance,5540,21/08/2020
HALES GROUP LTD&&ISHC3228,Home Care / Domiciliary,595.92,07/08/2020
HALES GROUP LTD&&ISHC3228,Home Care / Domiciliary,55502.72,04/09/2020
HALES GROUP LTD&&ISHC3228,Home Care / Domiciliary,54305.52,07/08/2020
HALES GROUP LTD&&ISHC3228,Home Care / Domiciliary,-723.21,04/09/2020
HALES GROUP LTD&&ISHC3228,Home Care / Domiciliary,-594.72,07/08/2020
HALES GROUP LTD&&ISHC3228,Home Care / Domiciliary,844.88,07/08/2020
HALES GROUP LTD&&ISHC3228,Home Care / Domiciliary,507.1,04/09/2020
HALES GROUP LTD&&ISHC3228,Home Care / Domiciliary,3665.05,07/08/2020
HALES GROUP LTD&&ISHC3228,Home Care / Domiciliary,838.27,07/08/2020
HALES GROUP LTD&&ISHC3228,Home Care / Domiciliary,966.75,07/08/2020
Hallam Fields Primary School,Payment to Ext SEN Providers,-6070,24/09/2020
Hallam Fields Primary School,Payment to Ext SEN Providers,1493,25/08/2020
Hallam Fields Primary School,Payment to Ext SEN Providers,6569,24/09/2020
Hallbrook Primary School,Payment to Ext SEN Providers,-2689,24/09/2020
Hallbrook Primary School,Payment to Ext SEN Providers,663,25/08/2020
Hallbrook Primary School,Payment to Ext SEN Providers,2918,24/09/2020
Hall Orchard CE Primary School Academy,Payment to Ext SEN Providers,801,25/08/2020
Hall Orchard CE Primary School Academy,Payment to Ext SEN Providers,3522,24/09/2020
HANDPRINTS@THEBAPTISTCHURCH&&EYRS1794,Grants,2621.25,21/09/2020
HANDPRINTS@THEBAPTISTCHURCH&&EYRS1794,Grants,752.4,28/08/2020
Happy Hedgehogs Pre School,Other Transfer Payments,731.4,07/09/2020
Harborough District Council,Other Local Authorities,22770,01/09/2020
Harborough District Council (NDR),Rates,5149.81,14/08/2020
Harborough District Council (NDR),Rates,22284.62,01/09/2020
Harborough District Council (NDR),Rates,22284.62,01/09/2020
Harborough District Council (NDR),Rates,12453.17,24/09/2020
Harborough District Council (NDR),Rates,9550.55,24/09/2020
HARBOROUGH MONTESSORI PRE SCHOOL&&EYRS1538,Grants,629.1,04/09/2020
Hardwick House School,Payment to Ext SEN Providers,504546.01,21/08/2020
Hardwick House School,Payment to Ext SEN Providers,19723.85,07/09/2020
Harinder Singh,S.E.N. Taxi Hire,1485,19/08/2020
Harinder Singh,S.E.N. Taxi Hire,820,19/08/2020
Harinder Singh,S.E.N. Taxi Hire,1027.26,19/08/2020
Harinder Singh,S.E.N. Taxi Hire,1085,19/08/2020
Harinder Singh,S.E.N. Taxi Hire,1100,19/08/2020
HARLEY HOUSE CARE HOME LIMITED&&SSAROE40260,Residential,4100,21/09/2020
HARLEY HOUSE CARE HOME LIMITED&&SSAROE40260,Residential,4348,24/08/2020
HARLEY HOUSE CARE HOME LIMITED&&SSAROE40260,Residential,2928.57,21/09/2020
HARMONY CARE & SUPPORT LTD&&ISHC2872,Payments in Advance,660,14/08/2020
HARMONY CARE & SUPPORT LTD&&ISHC2872,Payments in Advance,600,09/09/2020
HARMONY CARE & SUPPORT LTD&&ISHC2872,Payments in Advance,3668,14/08/2020
HARMONY CARE & SUPPORT LTD&&ISHC2872,Payments in Advance,640,21/08/2020
HARMONY CARE & SUPPORT LTD&&ISHC2872,Home Care / Domiciliary,6810.83,04/09/2020
HARMONY CARE & SUPPORT LTD&&ISHC2872,Home Care / Domiciliary,6923.52,07/08/2020
Hastings High School Academy,Payment to Ext SEN Providers,-2860,24/09/2020
Hastings High School Academy,Children&Families Spprt Servs,560,06/08/2020
Hastings High School Academy,Payment to Ext SEN Providers,1845,25/08/2020
Hastings High School Academy,Payment to Ext SEN Providers,8117,24/09/2020
HAVEN NURSING HOME&&SARO2319,Nursing,2105.85,21/09/2020
HAVEN NURSING HOME&&SARO2319,Private Contractors,2105.85,21/09/2020
HAVEN NURSING HOME&&SARO2319,Residential,2105.85,21/09/2020
HAVEN NURSING HOME&&SARO2319,Nursing,2267.84,24/08/2020
HAVEN NURSING HOME&&SARO2319,Private Contractors,2267.84,24/08/2020
HAWTHORNE CARE LTD&&SSAROE1360,Payments in Advance,875,18/08/2020
HAWTHORNE CARE LTD&&SSAROE1360,Payments in Advance,700,14/09/2020
HAWTHORNE CARE LTD&&SSAROE1360,Payments in Advance,14310,07/08/2020
HAWTHORNE CARE LTD&&SSAROE1360,Residential,24616,21/09/2020
HAWTHORNE CARE LTD&&SSAROE1360,Other Support,-2708.64,21/09/2020
HAWTHORNE CARE LTD&&SSAROE1360,Residential,15636,24/08/2020
HAWTHORNE CARE LTD&&SSAROE1360,Residential,3342.86,21/09/2020
HAWTHORNE CARE LTD&&SSAROE1360,Residential,3866.85,21/09/2020
HAWTHORNE CARE LTD&&SSAROE1360,Residential,3370.72,21/09/2020
HAWTHORNE CARE LTD&&SSAROE1360,Other Support,-510.71,24/08/2020
HAWTHORNE CARE LTD&&SSAROE1360,Other Support,-4665.76,21/09/2020
HAWTHORNE CARE LTD&&SSAROE1360,Residential,-1940.71,24/08/2020
HAYES COURT&&SARO9268,Residential,3137.76,21/09/2020
HAYES COURT&&SARO9268,Residential,3137.76,24/08/2020
Haynes,Private Contractors,1240,14/09/2020
HC1 LTD RE BANKWOOD&&SARO9230,Residential,2310.28,21/09/2020
HC1 LTD RE BANKWOOD&&SARO9230,Residential,2310.28,24/08/2020
HC ONE C/O ACACIA CARE HOME&&SSARO3299,Residential,2266.48,21/09/2020
HC ONE C/O ACACIA CARE HOME&&SSARO3299,Residential,2266.48,24/08/2020
HC One Ltd Re Cedar Court,Residential,19630,28/08/2020
HC One Ltd Re Cedar Court,Residential,19630,28/09/2020
HC ONE LTD RE CEDAR COURT&&SSAROE43896,Residential,71530.48,21/09/2020
HC ONE LTD RE CEDAR COURT&&SSAROE43896,Residential,76962.48,24/08/2020
HC ONE LTD RE CEDAR COURT&&SSAROE43896,Residential,3386.43,21/09/2020
HC ONE LTD RE CEDAR COURT&&SSAROE43896,Other Support,-862.86,21/09/2020
HC ONE LTD RE CEDAR COURT&&SSAROE43896,Other Support,8565.79,24/08/2020
HC ONE LTD RE CEDAR COURT&&SSAROE43896,Residential,8565.79,24/08/2020
HC ONE LTD RE CEDAR COURT&&SSAROE43896,Residential,1510,24/08/2020
HC ONE LTD RE CEDAR COURT&&SSAROE43896,Other Support,2412,24/08/2020
HC ONE LTD RE CEDAR COURT&&SSAROE43896,Residential,2412,24/08/2020
HC ONE LTD RE CEDAR COURT&&SSAROE43896,Residential,-2153.57,21/09/2020
HC ONE LTD RE CEDAR COURT&&SSAROE43896,Other Support,-1941.43,24/08/2020
HC ONE LTD RE CEDAR COURT&&SSAROE43896,Residential,1510,21/09/2020
HC ONE LTD RE CEDAR COURT&&SSAROE43896,Other Support,-647.14,24/08/2020
HC ONE LTD RE CEDAR COURT&&SSAROE43896,Residential,755,21/09/2020
HC ONE LTD RE CEDAR COURT&&SSAROE43896,Residential,-1294.28,21/09/2020
HC ONE LTD RE CEDAR COURT&&SSAROE43896,Other Support,-1186.43,21/09/2020
HC ONE LTD RE CEDAR COURT&&SSAROE43896,Payments in Advance,3400,18/08/2020
HC ONE LTD RE CEDAR COURT&&SSAROE43896,Payments in Advance,2875,14/09/2020
HC ONE LTD RE CEDAR COURT&&SSAROE43896,Payments in Advance,27560,07/08/2020
HC ONE LTD RE HARLEY GRANGE&&SSAROE40253,Payments in Advance,625,18/08/2020
HC ONE LTD RE HARLEY GRANGE&&SSAROE40253,Payments in Advance,500,14/09/2020
HC ONE LTD RE HARLEY GRANGE&&SSAROE40253,Private Contractors,13263.72,21/09/2020
HC ONE LTD RE HARLEY GRANGE&&SSAROE40253,Residential,13263.72,21/09/2020
HC ONE LTD RE HARLEY GRANGE&&SSAROE40253,Private Contractors,13263.72,24/08/2020
HC ONE LTD RE HARLEY GRANGE&&SSAROE40253,Residential,13263.72,24/08/2020
HC ONE LTD RE HINCKLEY PARK&&SSAROE24,Payments in Advance,1125,18/08/2020
HC ONE LTD RE HINCKLEY PARK&&SSAROE24,Payments in Advance,1100,14/09/2020
HC ONE LTD RE HINCKLEY PARK&&SSAROE24,Payments in Advance,21200,07/08/2020
HC ONE LTD RE HINCKLEY PARK&&SSAROE24,Residential,34523.48,21/09/2020
HC ONE LTD RE HINCKLEY PARK&&SSAROE24,Residential,34009.2,24/08/2020
HC ONE LTD RE MAGNA&&SSAROE68590,Payments in Advance,1000,18/08/2020
HC ONE LTD RE MAGNA&&SSAROE68590,Payments in Advance,1100,14/09/2020
HC ONE LTD RE MAGNA&&SSAROE68590,Payments in Advance,19080,07/08/2020
HC ONE LTD RE MAGNA&&SSAROE68590,Residential,2285.72,21/09/2020
HC ONE LTD RE MAGNA&&SSAROE68590,Residential,33610.64,21/09/2020
HC ONE LTD RE MAGNA&&SSAROE68590,Residential,33610.64,24/08/2020
HC ONE LTD RE MAGNA&&SSAROE68590,Residential,1781.14,21/09/2020
HC ONE LTD RE MAGNA&&SSAROE68590,Residential,9047.56,24/08/2020
HC ONE LTD RE MAGNA&&SSAROE68590,Residential,-2802,21/09/2020
HC ONE LTD RE THE WILLOWS&&SSAROE40262,Payments in Advance,1250,18/08/2020
HC ONE LTD RE THE WILLOWS&&SSAROE40262,Payments in Advance,1000,14/09/2020
HC ONE LTD RE THE WILLOWS&&SSAROE40262,Payments in Advance,21200,07/08/2020
HC ONE LTD RE THE WILLOWS&&SSAROE40262,Residential,28087.17,21/09/2020
HC ONE LTD RE THE WILLOWS&&SSAROE40262,Residential,23521.6,24/08/2020
HC ONE LTD RE THE WILLOWS&&SSAROE40262,Residential,947.57,21/09/2020
HC ONE LTD RE THE WILLOWS&&SSAROE40262,Residential,-1527.57,24/08/2020
HC ONE OVAL LTD T/AS GREY FERRER&&SSAROE61119,Payments in Advance,2625,18/08/2020
HC ONE OVAL LTD T/AS GREY FERRER&&SSAROE61119,Payments in Advance,2100,14/09/2020
HC ONE OVAL LTD T/AS GREY FERRER&&SSAROE61119,Private Contractors,49868,21/09/2020
HC ONE OVAL LTD T/AS GREY FERRER&&SSAROE61119,Residential,49868,21/09/2020
HC ONE OVAL LTD T/AS GREY FERRER&&SSAROE61119,Private Contractors,47388,24/08/2020
HC ONE OVAL LTD T/AS GREY FERRER&&SSAROE61119,Residential,47388,24/08/2020
HC ONE OVAL LTD T/AS GREY FERRER&&SSAROE61119,Private Contractors,3006.43,21/09/2020
HC ONE OVAL LTD T/AS GREY FERRER&&SSAROE61119,Residential,3006.43,21/09/2020
HC ONE OVAL LTD T/AS GREY FERRER&&SSAROE61119,Residential,2074.29,24/08/2020
HC ONE OVAL LTD T/AS GREY FERRER&&SSAROE61119,Private Contractors,2284,21/09/2020
HC ONE OVAL LTD T/AS GREY FERRER&&SSAROE61119,Private Contractors,2284,21/09/2020
HC ONE OVAL LTD T/AS GREY FERRER&&SSAROE61119,Private Contractors,2284,21/09/2020
HC ONE OVAL LTD T/AS GREY FERRER&&SSAROE61119,Private Contractors,-1957.71,24/08/2020
HC ONE OVAL LTD T/AS GREY FERRER&&SSAROE61119,Residential,864.29,21/09/2020
HC ONE OVAL LTD T/AS GREY FERRER&&SSAROE61119,Private Contractors,2284,21/09/2020
HC ONE OVAL LTD T/AS GREY FERRER&&SSAROE61119,Private Contractors,1142,21/09/2020
HC ONE OVAL LTD T/AS GREY FERRER&&SSAROE61119,Private Contractors,2160,21/09/2020
HC ONE OVAL LTD T/AS GREY FERRER&&SSAROE61119,Private Contractors,1002.86,21/09/2020
HC ONE OVAL LTD T/AS GREY FERRER&&SSAROE61119,Private Contractors,-1298.57,21/09/2020
HC ONE OVAL LTD T/AS GREY FERRER&&SSAROE61119,Private Contractors,694.29,21/09/2020
HC ONE RE THE ROWANS&&SSAROE53508,Payments in Advance,2950,18/08/2020
HC ONE RE THE ROWANS&&SSAROE53508,Payments in Advance,2400,14/09/2020
HC ONE RE THE ROWANS&&SSAROE53508,Payments in Advance,28620,07/08/2020
HC ONE RE THE ROWANS&&SSAROE53508,Residential,947.57,24/08/2020
HC ONE RE THE ROWANS&&SSAROE53508,Residential,60549.04,21/09/2020
HC ONE RE THE ROWANS&&SSAROE53508,Residential,53474.9,24/08/2020
HC ONE RE THE ROWANS&&SSAROE53508,Residential,6288.42,21/09/2020
HC ONE RE THE ROWANS&&SSAROE53508,Residential,5723.29,24/08/2020
HC ONE RE THE ROWANS&&SSAROE53508,Residential,603,21/09/2020
HC ONE RE THE ROWANS&&SSAROE53508,Residential,603,24/08/2020
HC ONE RE THE ROWANS&&SSAROE53508,Residential,-1636.71,24/08/2020
HC ONE RE THE ROWANS&&SSAROE53508,Residential,-1464.43,24/08/2020
HC ONE RE THE ROWANS&&SSAROE53508,Residential,1206,21/09/2020
HC ONE RE THE ROWANS&&SSAROE53508,Residential,-1033.71,21/09/2020
HC ONE RE THE ROWANS&&SSAROE53508,Residential,1206,24/08/2020
HC ONE RE THE ROWANS&&SSAROE53508,Residential,-603,21/09/2020
Health Care Services Ltd T/A Health Care Services UK,Operational Equipment,509.4,19/08/2020
Health Care Services Ltd T/A Health Care Services UK,Operational Equipment,700.8,28/08/2020
HEATHCOTES CARE LTD&&SSAROE1336,Payments in Advance,750,18/08/2020
HEATHCOTES CARE LTD&&SSAROE1336,Payments in Advance,750,18/08/2020
HEATHCOTES CARE LTD&&SSAROE1336,Payments in Advance,600,14/09/2020
HEATHCOTES CARE LTD&&SSAROE1336,Payments in Advance,500,14/09/2020
HEATHCOTES CARE LTD&&SSAROE1336,Residential,48468.04,21/09/2020
HEATHCOTES CARE LTD&&SSAROE1336,Residential,48468.04,24/08/2020
HEATHCOTES CARE LTD&&SSAROE1336,Residential,39268,21/09/2020
HEATHCOTES CARE LTD&&SSAROE1336,Residential,48255.88,24/08/2020
HEATHCOTES CARE LTD&&SSAROE1336,Residential,-8987.88,21/09/2020
HEATHCOTES CARE LTD&&SSAROE1336,Residential,4493.94,24/08/2020
HEATHCOTES CARE LTD&&SSAROE1336,Residential,-4493.94,21/09/2020
HEATHCOTES CARE LTD&&SSAROE1336,Residential,9688.32,21/09/2020
HEATHCOTES CARE LTD&&SSAROE1336,Residential,9688.32,24/08/2020
HEATHCOTES M LTD&&SSARO2756,Payments in Advance,625,18/08/2020
HEATHCOTES M LTD&&SSARO2756,Payments in Advance,500,18/08/2020
HEATHCOTES M LTD&&SSARO2756,Payments in Advance,500,14/09/2020
HEATHCOTES M LTD&&SSARO2756,Residential,30981.92,21/09/2020
HEATHCOTES M LTD&&SSARO2756,Residential,30981.92,24/08/2020
HEATHCOTES M LTD&&SSARO2756,Residential,36718.88,21/09/2020
HEATHCOTES M LTD&&SSARO2756,Residential,946.99,21/09/2020
HEATHCOTES M LTD&&SSARO2756,Residential,35134.84,24/08/2020
HEATHCOTES M LTD&&SSARO2756,Residential,2736.15,21/09/2020
HEATHCOTES M LTD&&SSARO2756,Residential,4181.43,24/08/2020
HEATHCOTES M LTD&&SSARO2756,Residential,-3705.86,21/09/2020
HEATHCOTES M LTD&&SSARO2756,Residential,-2775.49,21/09/2020
HEATHCOTES M LTD&&SSARO2756,Residential,1479.22,24/08/2020
HEATHCOTES M LTD&&SSARO2756,Residential,-926.29,21/09/2020
HEATHCOTES M LTD&&SSARO3394,Residential,6543.8,21/09/2020
HEATHCOTES M LTD&&SSARO3394,Residential,6543.8,24/08/2020
HEATHCOTES M LTD T/A HEATHCOTES DERBY&&SSARO3402,Residential,4887.32,21/09/2020
HEATHCOTES M LTD T/A HEATHCOTES DERBY&&SSARO3402,Residential,4887.32,24/08/2020
HEATHCOTES MOULTON&&SSARO3290,Residential,3892.42,21/09/2020
HEATHCOTES MOULTON&&SSARO3290,Residential,3892.42,24/08/2020
HEATHCOTES&&SSARO2014,Payments in Advance,625,18/08/2020
HEATHCOTES&&SSARO2014,Payments in Advance,500,14/09/2020
HEATHCOTES&&SSARO2014,Residential,42510.74,21/09/2020
HEATHCOTES&&SSARO2014,Residential,42510.74,24/08/2020
Heathfield Academy,Payment to Ext SEN Providers,-3802,24/09/2020
Heathfield Academy,Payment to Ext SEN Providers,1416,25/08/2020
Heathfield Academy,Payment to Ext SEN Providers,5387,24/09/2020
Helena Fanfarillo,Consultants & Specialists,4510,10/09/2020
Help At Home,Private Contractors,708.6,11/09/2020
HELP AT HOME EGERTON LODGE LTD&&ISHCHC440,Private Contractors,11509.12,28/08/2020
HELP AT HOME EGERTON LODGE LTD&&ISHCHC440,Private Contractors,11509.12,28/09/2020
HELP AT HOME EGERTON LODGE LTD&&ISHCHC440,Private Contractors,11509.12,28/08/2020
HELP AT HOME EGERTON LODGE LTD&&ISHCHC440,Private Contractors,11509.12,28/09/2020
HELP AT HOME EGERTON LODGE LTD&&ISHCHC440,Private Contractors,11509.12,28/08/2020
HELP AT HOME EGERTON LODGE LTD&&ISHCHC440,Private Contractors,11509.12,28/09/2020
HELP AT HOME LTD&&ISHC3234,Payments in Advance,17450,14/08/2020
HELP AT HOME LTD&&ISHC3234,Payments in Advance,3810,14/08/2020
HELP AT HOME LTD&&ISHC3234,Payments in Advance,13310,09/09/2020
HELP AT HOME LTD&&ISHC3234,Payments in Advance,3470,09/09/2020
HELP AT HOME LTD&&ISHC3234,Payments in Advance,23520,28/08/2020
HELP AT HOME LTD&&ISHC3234,Payments in Advance,10048,14/08/2020
HELP AT HOME LTD&&ISHC3234,Payments in Advance,54920,14/08/2020
HELP AT HOME LTD&&ISHC3234,Payments in Advance,1960,21/08/2020
HELP AT HOME LTD&&ISHC3234,Payments in Advance,710,21/08/2020
HELP AT HOME LTD&&ISHC3234,Home Care / Domiciliary,1967.37,07/08/2020
HELP AT HOME LTD&&ISHC3234,Home Care / Domiciliary,994.9,04/09/2020
HELP AT HOME LTD&&ISHC3234,Home Care / Domiciliary,5299.94,07/08/2020
HELP AT HOME LTD&&ISHC3234,Home Care / Domiciliary,1541.12,07/08/2020
HELP AT HOME LTD&&ISHC3234,Home Care / Domiciliary,1402.24,04/09/2020
HELP AT HOME LTD&&ISHC3234,Home Care / Domiciliary,668,07/08/2020
HELP AT HOME LTD&&ISHC3234,Home Care / Domiciliary,168532.14,04/09/2020
HELP AT HOME LTD&&ISHC3234,Home Care / Domiciliary,165405.02,07/08/2020
HELP AT HOME LTD&&ISHC3234,Home Care / Domiciliary,7536.91,04/09/2020
HELP AT HOME LTD&&ISHC3234,Home Care / Domiciliary,1775.05,07/08/2020
HELP AT HOME LTD&&ISHC3234,Home Care / Domiciliary,765.51,04/09/2020
HELP AT HOME LTD&&ISHC3234,Home Care / Domiciliary,1257.49,07/08/2020
HELP AT HOME LTD&&ISHC3234,Home Care / Domiciliary,572.21,07/08/2020
HELP AT HOME LTD&&ISHC3234,Home Care / Domiciliary,1241.66,04/09/2020
HELP AT HOME LTD&&ISHC3234,Home Care / Domiciliary,611.21,04/09/2020
HELP AT HOME LTD&&ISHC3234,Home Care / Domiciliary,3389.29,07/08/2020
HELP AT HOME LTD&&ISHC3234,Home Care / Domiciliary,504.36,07/08/2020
HELP AT HOME LTD&&ISHC3234,Home Care / Domiciliary,1164.14,04/09/2020
HELP AT HOME LTD&&ISHC3234,Home Care / Domiciliary,1297.07,07/08/2020
HELP AT HOME LTD&&ISHC3234,Home Care / Domiciliary,502.36,04/09/2020
HELP AT HOME LTD&&ISHC3234,Home Care / Domiciliary,1248.28,07/08/2020
HELP AT HOME LTD&&ISHC3234,Home Care / Domiciliary,3386.02,04/09/2020
HELP AT HOME LTD&&ISHC3234,Home Care / Domiciliary,31810.59,04/09/2020
HELP AT HOME LTD&&ISHC3234,Home Care / Domiciliary,31992.55,07/08/2020
HELP AT HOME LTD&&ISHC3234,Other Agency & Cont Services,6600,25/08/2020
HELP AT HOME LTD&&ISHC3234,Other Agency & Cont Services,1000,25/08/2020
Helpful Home Care Ltd,Payments in Advance,6384,28/08/2020
HELPING HANDS CARE HOME LTD T/A GOODWOOD ORCHARDS&&SSAROE40251,Residential,6708,21/09/2020
HELPING HANDS CARE HOME LTD T/A GOODWOOD ORCHARDS&&SSAROE40251,Residential,6708,24/08/2020
Helping Hands Community Trust,Grants,1500,03/08/2020
HERITAGE CARE&&SSAROE929,Nursing,9843.48,21/09/2020
HERITAGE CARE&&SSAROE929,Private Contractors,9843.48,21/09/2020
HERITAGE CARE&&SSAROE929,Nursing,9843.48,24/08/2020
HERITAGE CARE&&SSAROE929,Private Contractors,9843.48,24/08/2020
Her Majestys Courts & Tribunals Service,Personal Accounts - Other,795,14/09/2020
Her Majestys Courts & Tribunals Service,Personal Accounts - Other,795,14/08/2020
HEROIC CARE LTD T/A JUBILEE VILLA&&SSAROE749,Payments in Advance,500,18/08/2020
HEROIC CARE LTD T/A JUBILEE VILLA&&SSAROE749,Payments in Advance,2650,07/08/2020
HEROIC CARE LTD T/A JUBILEE VILLA&&SSAROE749,Residential,30397.67,21/09/2020
HEROIC CARE LTD T/A JUBILEE VILLA&&SSAROE749,Residential,27473.96,24/08/2020
HERONS LODGE&&SSAROE433,Payments in Advance,5300,07/08/2020
HERONS LODGE&&SSAROE433,Residential,5121.6,21/09/2020
HERONS LODGE&&SSAROE433,Residential,-983.8,21/09/2020
HERONS LODGE&&SSAROE433,Residential,4999.6,24/08/2020
HERONS LODGE&&SSAROE433,Residential,1044.8,21/09/2020
Hexagon Care Services Ltd,Private Contractors,17100,14/08/2020
Hexagon Care Services Ltd,Private Contractors,1334.25,14/08/2020
Hexagon Care Services Ltd,Private Contractors,17670,14/08/2020
Hexagon Care Services Ltd,Private Contractors,17100,14/08/2020
Hexagon Care Services Ltd,Private Contractors,17670,21/08/2020
Hexagon Care Services Ltd,Private Contractors,17670,24/09/2020
HFT (CROMWELL CRESCENT)&&SSARO3174,Payments in Advance,1590,07/08/2020
HFT (CROMWELL CRESCENT)&&SSARO3174,Residential,6445,21/09/2020
HFT (CROMWELL CRESCENT)&&SSARO3174,Residential,6445,24/08/2020
HICARE LTD&&SSAROE438,Residential,4840,24/08/2020
HICARE LTD&&SSAROE438,Residential,4564,21/09/2020
HICARE LTD&&SSAROE438,Residential,4564,24/08/2020
Higham On The Hill CE Primary School Academy,Payment to Ext SEN Providers,-1034,24/09/2020
Higham On The Hill CE Primary School Academy,Payment to Ext SEN Providers,530,25/08/2020
Higham On The Hill CE Primary School Academy,Payment to Ext SEN Providers,2333,24/09/2020
Highcliffe Primary School Academy,Payment to Ext SEN Providers,-4467,24/09/2020
Highcliffe Primary School Academy,Payment to Ext SEN Providers,1443,25/08/2020
Highcliffe Primary School Academy,Payment to Ext SEN Providers,7558,24/09/2020
Highfields Associates Ltd,S.E.N. Taxi Hire,1411.2,27/08/2020
Hilldale Housing Association,Supported Living,1358.56,10/09/2020
Hinckley Academy & John Cleveland Sixth Form Centre,Payment to Ext SEN Providers,-5635,24/09/2020
Hinckley Academy & John Cleveland Sixth Form Centre,Payment to Ext SEN Providers,1905,25/08/2020
Hinckley Academy & John Cleveland Sixth Form Centre,Payment to Ext SEN Providers,12251,24/09/2020
Hinckley & Bosworth Borough Council,Furniture & Equipment,2043.62,06/08/2020
Hinckley & Bosworth Borough Council,Deferred Charges (Grants & Advances),315000,21/08/2020
Hinckley & Bosworth Borough Council,Other Local Authorities,1000,11/09/2020
Hinckley & Bosworth Borough Council,Other Local Authorities,39783,24/09/2020
Hinckley & Bosworth Borough Council (NDR),Furniture & Equipment,2043.62,03/08/2020
Hinckley Parks Primary School (Owls Academy Trust),Payment to Ext SEN Providers,-3677,24/09/2020
Hinckley Parks Primary School (Owls Academy Trust),Payment to Ext SEN Providers,902,25/08/2020
Hinckley Parks Primary School (Owls Academy Trust),Payment to Ext SEN Providers,3548,24/09/2020
Hinckley Parks Primary School (Owls Academy Trust),Payment to Ext SEN Providers,6250,30/09/2020
Hinckley Parks Primary School (Owls Academy Trust),Payment to Ext SEN Providers,3891,30/09/2020
HIND LEYS PRE SCHOOL&&EYRS1119,Grants,10228.02,28/08/2020
HL Smith Transmissions Ltd,R&M of Vehicles-Non Contract,-1200,11/09/2020
HL Smith Transmissions Ltd,R&M of Vehicles-Non Contract,4260,11/09/2020
HM PATEL T/A CHERRE RESIDENTIAL HOME&&SSAROE40427,Residential,4873.06,21/09/2020
HM PATEL T/A CHERRE RESIDENTIAL HOME&&SSAROE40427,Residential,4873.06,24/08/2020
HOLLYBANK TRUST&&SSAROE756,Residential,5519.65,21/09/2020
HOLLYBANK TRUST&&SSAROE756,Residential,5519.65,24/08/2020
Hollycroft Hotel,Casual/Essential,742,07/09/2020
Holy Trinity Church Ashby (Ashby Foodbank),Other Local Authorities,13887,28/09/2020
Home Care Harborough Ltd t/a Home Instead Senior Care,Payments in Advance,22512,23/09/2020
Homefield College Ltd,Private Contractors,3213.35,28/09/2020
Homefield College Ltd,Private Contractors,3032,28/09/2020
HOMEFIELD COLLEGE LTD&&SSAROE40389,Payments in Advance,2120,07/08/2020
HOMEFIELD COLLEGE LTD&&SSAROE40389,Payments in Advance,1590,07/08/2020
HOMEFIELD COLLEGE LTD&&SSAROE40389,Payments in Advance,1590,07/08/2020
HOMEFIELD COLLEGE LTD&&SSAROE40389,Payments in Advance,1590,07/08/2020
HOMEFIELD COLLEGE LTD&&SSAROE40389,Residential,3032,21/09/2020
HOMEFIELD COLLEGE LTD&&SSAROE40389,Residential,3032,24/08/2020
HOMEFIELD COLLEGE LTD&&SSAROE40389,Residential,4017.52,21/09/2020
HOMEFIELD COLLEGE LTD&&SSAROE40389,Residential,4017.52,24/08/2020
HOMEFIELD COLLEGE LTD T/AS HOMEFIELD VIEW&&SSARO3389,Residential,3032,21/09/2020
HOMEFIELD COLLEGE LTD T/AS HOMEFIELD VIEW&&SSARO3389,Residential,3790,24/08/2020
HOMEFIELD&&SSARO3168,Nursing,4612.75,21/09/2020
HOMEFIELD&&SSARO3168,Private Contractors,4612.75,21/09/2020
HOMEFIELD&&SSARO3168,Nursing,4612.75,24/08/2020
HOMEFIELD&&SSARO3168,Private Contractors,4612.75,24/08/2020
HOME FROM HOME RESIDENTIAL CARE LTD&&SSAROE421,Payments in Advance,5300,07/08/2020
HOME FROM HOME RESIDENTIAL CARE LTD&&SSAROE421,Residential,4824,21/09/2020
HOME FROM HOME RESIDENTIAL CARE LTD&&SSAROE421,Residential,7236,24/08/2020
Honeydew Healthcare Ltd,Private Contractors,12730,11/09/2020
HOPE COMMUNITY CHURCH & FAMILY CENTRE&&EYRS1624,Grants,2726.1,04/09/2020
HOPE COMMUNITY CHURCH & FAMILY CENTRE&&EYRS1624,Grants,2097,07/09/2020
HOPSCOTCH SOLUTIONS LTD&&SSARO2119,Residential,17726.04,21/09/2020
HOPSCOTCH SOLUTIONS LTD&&SSARO2119,Residential,17726.04,24/08/2020
Horizon Care & Education Group Ltd,Payment to Ext SEN Providers,-5720,21/08/2020
Horizon Care & Education Group Ltd,Private Contractors,12400,07/08/2020
Horizon Care & Education Group Ltd,Private Contractors,12400,07/08/2020
Horizon Care & Education Group Ltd,Private Contractors,14698.34,07/08/2020
Horizon Care & Education Group Ltd,Private Contractors,14698.34,07/08/2020
Horizon Care & Education Group Ltd,Private Contractors,14698.34,07/08/2020
Horizon Care & Education Group Ltd,Private Contractors,14698.34,06/08/2020
Horizon Care & Education Group Ltd,Private Contractors,12400,07/08/2020
Horizon Care & Education Group Ltd,Private Contractors,12400,07/08/2020
Horizon Care & Education Group Ltd,Private Contractors,12400,07/08/2020
Horizon Care & Education Group Ltd,Private Contractors,12400,07/08/2020
Horizon Care & Education Group Ltd,Private Contractors,12114.33,07/08/2020
Horizon Care & Education Group Ltd,Private Contractors,16328.01,06/08/2020
Horizon Care & Education Group Ltd,Private Contractors,12400,07/08/2020
Horizon Care & Education Group Ltd,Payment to Ext SEN Providers,15600,21/08/2020
Horizon Care & Education Group Ltd,Payment to Ext SEN Providers,13000,21/08/2020
Horizon Care & Education Group Ltd,Payment to Ext SEN Providers,12184.9,21/08/2020
Horizon Care & Education Group Ltd,Payment to Ext SEN Providers,12184.9,21/08/2020
Horizon Care & Education Group Ltd,Payment to Ext SEN Providers,13000,21/08/2020
Horizon Care & Education Group Ltd,Payment to Ext SEN Providers,13000,21/08/2020
Horizon Care & Education Group Ltd,Payment to Ext SEN Providers,13000,21/08/2020
Horizon Care & Education Group Ltd,Payment to Ext SEN Providers,13000,21/08/2020
Horizon Care & Education Group Ltd,Payment to Ext SEN Providers,13000,21/08/2020
Horizon Care & Education Group Ltd,Payment to Ext SEN Providers,13000,21/08/2020
Horizon Care & Education Group Ltd,Payment to Ext SEN Providers,13000,21/08/2020
Horizon Care & Education Group Ltd,Private Contractors,1200,07/08/2020
Horizon Care & Education Group Ltd,Private Contractors,1200,07/08/2020
Horizon Care & Education Group Ltd,Private Contractors,1200,07/08/2020
Horizon Care & Education Group Ltd,Private Contractors,1200,07/08/2020
Horizon Care & Education Group Ltd,Private Contractors,1200,11/08/2020
Horizon Care & Education Group Ltd,Private Contractors,3875,11/08/2020
Horizon Care & Education Group Ltd,Private Contractors,3154.25,11/08/2020
Horizon Care & Education Group Ltd,Private Contractors,6200,07/08/2020
Horizon Care & Education Group Ltd,Private Contractors,3000,07/08/2020
Horizon Care & Education Group Ltd,Private Contractors,2000,07/08/2020
Horizon Care & Education Group Ltd,Private Contractors,2000,11/08/2020
Horizon Care & Education Group Ltd,Private Contractors,2000,08/09/2020
Horizon Care & Education Group Ltd,Private Contractors,14698.34,08/09/2020
Horizon Care & Education Group Ltd,Private Contractors,12400,08/09/2020
Horizon Care & Education Group Ltd,Private Contractors,12400,08/09/2020
Horizon Care & Education Group Ltd,Private Contractors,11060.91,08/09/2020
Horizon Care & Education Group Ltd,Private Contractors,16328.01,08/09/2020
Horizon Care & Education Group Ltd,Private Contractors,12400,08/09/2020
Horizon Care & Education Group Ltd,Private Contractors,12400,08/09/2020
Horizon Care & Education Group Ltd,Private Contractors,12400,08/09/2020
Horizon Care & Education Group Ltd,Private Contractors,14698.34,08/09/2020
Horizon Care & Education Group Ltd,Private Contractors,14698.34,08/09/2020
Horizon Care & Education Group Ltd,Private Contractors,14698.34,08/09/2020
Horizon Care & Education Group Ltd,Private Contractors,12400,08/09/2020
Horizon Care & Education Group Ltd,Private Contractors,12400,08/09/2020
Horizon Care & Education Group Ltd,Private Contractors,18600,08/09/2020
Horizon Care & Education Group Ltd,Private Contractors,3875,08/09/2020
Horizon Care & Education Group Ltd,Private Contractors,3154.25,08/09/2020
Horizon Care & Education Group Ltd,Private Contractors,6200,08/09/2020
HR CARE HOMES LTD&&SSARO1363,Residential,5202.28,21/09/2020
HR CARE HOMES LTD&&SSARO1363,Residential,-2476.58,24/08/2020
HR CARE HOMES LTD&&SSARO1363,Residential,5202.28,24/08/2020
HR CARE HOMES LTD&&SSARO1363,Residential,2601.14,24/08/2020
H&S RANA T/A LYNCROFT CARE HOME&&SSAROE901,Residential,2219.28,21/09/2020
H&S RANA T/A LYNCROFT CARE HOME&&SSAROE901,Residential,2219.28,24/08/2020
HUMAN SUPPORT GROUP (EXTRA CARE)&&ISHC5052,Private Contractors,11023.91,19/08/2020
HUMAN SUPPORT GROUP (EXTRA CARE)&&ISHC5052,Private Contractors,11023.91,19/08/2020
HUMAN SUPPORT GROUP (EXTRA CARE)&&ISHC5052,Private Contractors,11023.91,04/09/2020
HUMAN SUPPORT GROUP (EXTRA CARE)&&ISHC5052,Private Contractors,11023.91,04/09/2020
HUMAN SUPPORT GROUP (EXTRA CARE)&&ISHC5052,Payments in Advance,4280,14/08/2020
HUMAN SUPPORT GROUP (EXTRA CARE)&&ISHC5052,Payments in Advance,3470,09/09/2020
HUMAN SUPPORT GROUP (EXTRA CARE)&&ISHC5052,Payments in Advance,12408,24/08/2020
HUMAN SUPPORT GROUP (EXTRA CARE)&&ISHC5052,Home Care / Domiciliary,-966,04/09/2020
HUMAN SUPPORT GROUP (EXTRA CARE)&&ISHC5052,Home Care / Domiciliary,-1077.36,04/09/2020
HUMAN SUPPORT GROUP (EXTRA CARE)&&ISHC5052,Home Care / Domiciliary,560.71,04/09/2020
HUMAN SUPPORT GROUP (EXTRA CARE)&&ISHC5052,Home Care / Domiciliary,1302.69,07/08/2020
HUMAN SUPPORT GROUP (EXTRA CARE)&&ISHC5052,Home Care / Domiciliary,-955.91,04/09/2020
HUMAN SUPPORT GROUP (EXTRA CARE)&&ISHC5052,Home Care / Domiciliary,27654.59,04/09/2020
HUMAN SUPPORT GROUP (EXTRA CARE)&&ISHC5052,Home Care / Domiciliary,-964.41,04/09/2020
HUMAN SUPPORT GROUP (EXTRA CARE)&&ISHC5052,Home Care / Domiciliary,23196.59,07/08/2020
HUMAN SUPPORT GROUP (EXTRA CARE)&&ISHC5052,Home Care / Domiciliary,3653.81,04/09/2020
HUMAN SUPPORT GROUP (EXTRA CARE)&&ISHC5052,Home Care / Domiciliary,2957.42,07/08/2020
HUMAN SUPPORT GROUP (EXTRA CARE)&&ISHC5052,Home Care / Domiciliary,-1087.32,04/09/2020
HUMAN SUPPORT GROUP (EXTRA CARE)&&ISHC5052,Home Care / Domiciliary,-1031.95,04/09/2020
HUMAN SUPPORT GROUP (EXTRA CARE)&&ISHC5052,Home Care / Domiciliary,-966,04/09/2020
Humphrey Perkins School Academy,Payment to Ext SEN Providers,1187,25/08/2020
HUNNY POT DAY NURSERY&&EYRS1662,Grants,629.1,08/09/2020
HUNNY POT DAY NURSERY&&EYRS1662,Grants,943.65,04/09/2020
HUNTERS LODGE RETIREMENT HOME LTD&&SSAROE40396,Payments in Advance,1625,18/08/2020
HUNTERS LODGE RETIREMENT HOME LTD&&SSAROE40396,Payments in Advance,1500,14/09/2020
HUNTERS LODGE RETIREMENT HOME LTD&&SSAROE40396,Payments in Advance,19080,07/08/2020
HUNTERS LODGE RETIREMENT HOME LTD&&SSAROE40396,Residential,53161.24,21/09/2020
HUNTERS LODGE RETIREMENT HOME LTD&&SSAROE40396,Residential,49561.24,24/08/2020
HUNTERS LODGE RETIREMENT HOME LTD&&SSAROE40396,Residential,4050,21/09/2020
HUNTERS LODGE RETIREMENT HOME LTD&&SSAROE40396,Residential,2971.42,21/09/2020
HUNTERS LODGE RETIREMENT HOME LTD&&SSAROE40396,Other Support,-685.71,21/09/2020
HUNTERS LODGE RETIREMENT HOME LTD&&SSAROE40396,Other Support,-571.43,24/08/2020
HUSKARDS NEW CARE LTD&&SSARO1910,Private Contractors,2584,21/09/2020
HUSKARDS NEW CARE LTD&&SSARO1910,Residential,2584,21/09/2020
HUSKARDS NEW CARE LTD&&SSARO1910,Private Contractors,2584,24/08/2020
HUSKARDS NEW CARE LTD&&SSARO1910,Residential,2584,24/08/2020
Hymans Robertson LLP,Investment Admin Expenses,20640,20/08/2020
Ibstock Community College Academy,Payment to Ext SEN Providers,-1928,24/09/2020
Ibstock Community College Academy,Payment to Ext SEN Providers,1106,25/08/2020
Ibstock Community College Academy,Payment to Ext SEN Providers,4868,24/09/2020
IDEAL CARE HOMES LTD MAIN ACCOUNT T/A WOODTHORPE LODGE&&SARO9362,Payments in Advance,34980,07/08/2020
IDEAL CARE HOMES LTD MAIN ACCOUNT T/A WOODTHORPE LODGE&&SARO9362,Residential,8800,24/08/2020
IDEAL CARE HOMES LTD T/AS MOUNTVIEW CARE HOME&&SSARO3374,Payments in Advance,875,18/08/2020
IDEAL CARE HOMES LTD T/AS MOUNTVIEW CARE HOME&&SSARO3374,Payments in Advance,700,14/09/2020
IDEAL CARE HOMES LTD T/AS MOUNTVIEW CARE HOME&&SSARO3374,Payments in Advance,34980,07/08/2020
IDEAL CARE HOMES LTD T/AS MOUNTVIEW CARE HOME&&SSARO3374,Residential,11992,21/09/2020
IDEAL CARE HOMES LTD T/AS MOUNTVIEW CARE HOME&&SSARO3374,Residential,27992,24/08/2020
IDEAL CARE HOMES LTD T/AS MOUNTVIEW CARE HOME&&SSARO3374,Residential,4000,24/08/2020
IDEAL CARE HOMES LTD T/AS MOUNTVIEW CARE HOME&&SSARO3374,Residential,4000,24/08/2020
IDEAL CAREHOMES NUMBER 1 LTD T/A COPPICE LODGE&&SSARO3303,Residential,2738,21/09/2020
IDEAL CAREHOMES NUMBER 1 LTD T/A COPPICE LODGE&&SSARO3303,Residential,2738,24/08/2020
IDEAL CARE HOMES (NUMBER ONE) LTD&&SSARO2786,Residential,8884,21/09/2020
IDEAL CARE HOMES (NUMBER ONE) LTD&&SSARO2786,Residential,12684,24/08/2020
IDEAL CARE HOMES (NUMBER ONE) LTD&&SSARO2786,Payments in Advance,500,18/08/2020
Imraan Bhikha,S.E.N. Taxi Hire,944,19/08/2020
Ingham Aviation Heritage Ltd,Other Transfer Payments,807.4,29/09/2020
Ingham Aviation Heritage Ltd,Other Transfer Payments,1498.4,29/09/2020
Innes England,Consultants & Specialists,16200,28/09/2020
Inspirations Leicestershire Ltd,Private Contractors,15810,11/09/2020
Inspirations Leicestershire Ltd,Private Contractors,16607.01,11/09/2020
Inspirations Leicestershire Ltd,Private Contractors,22320,11/09/2020
Institute of Leadership & Management (ILM),Training Expenses,-500,24/09/2020
Institute of Leadership & Management (ILM),Personal Accounts - Other,500,24/09/2020
Integrated Services Programme,Other Agency & Cont Services,5752.71,28/08/2020
Integrated Services Programme,Other Agency & Cont Services,7302.71,28/08/2020
Integrated Services Programme,Other Agency & Cont Services,5567.14,30/09/2020
Integrated Services Programme,Other Agency & Cont Services,7067.14,30/09/2020
IPAT St Marys CE Primary School Bitteswell (Inspiring Academy Trust),Payment to Ext SEN Providers,-1461,24/09/2020
IPAT St Marys CE Primary School Bitteswell (Inspiring Academy Trust),Payment to Ext SEN Providers,632,25/08/2020
IPAT St Marys CE Primary School Bitteswell (Inspiring Academy Trust),Payment to Ext SEN Providers,2781,24/09/2020
Island Project School,Payment to Ext SEN Providers,22543.27,21/08/2020
Island Project School,Payment to Ext SEN Providers,16083.11,21/08/2020
Ivanhoe College Specialist Technology Academy,Payment to Ext SEN Providers,-8986,24/09/2020
Ivanhoe College Specialist Technology Academy,Payment to Ext SEN Providers,1399,25/08/2020
Ivanhoe College Specialist Technology Academy,Payment to Ext SEN Providers,9169,24/09/2020
Jack Stubbings,Fees & Charges (833),511,11/08/2020
Jacqueline Walker,Schools Agency staff,806.26,17/09/2020
Jacqueline Walker,Schools Agency staff,516,17/09/2020
JADE BLOSSOM LTD T/A THE GRANGE NURSING & RESIDENTIAL HOME&&SSARO3403,Payments in Advance,2475,18/08/2020
JADE BLOSSOM LTD T/A THE GRANGE NURSING & RESIDENTIAL HOME&&SSARO3403,Payments in Advance,1900,14/09/2020
JADE BLOSSOM LTD T/A THE GRANGE NURSING & RESIDENTIAL HOME&&SSARO3403,Payments in Advance,26500,07/08/2020
JADE BLOSSOM LTD T/A THE GRANGE NURSING & RESIDENTIAL HOME&&SSARO3403,Residential,39838.86,21/09/2020
JADE BLOSSOM LTD T/A THE GRANGE NURSING & RESIDENTIAL HOME&&SSARO3403,Residential,43038.86,24/08/2020
JADE BLOSSOM LTD T/A THE GRANGE NURSING & RESIDENTIAL HOME&&SSARO3403,Residential,3080.58,21/09/2020
JADE BLOSSOM LTD T/A THE GRANGE NURSING & RESIDENTIAL HOME&&SSARO3403,Residential,2385.29,24/08/2020
